{"text_format":"3","workbook":"xlsx","n_sheets":2,"sheets":["Календарь сменной работы","Структура смен"],"not_rendered":{"defined_names":19},"read":"whole","date_system":"1900"}

{"sheet":"Календарь сменной работы","index":0,"n_rows":30,"n_cols":32,"rows_kept":30,"merged":[[0,28,0,31],[4,1,4,7],[4,9,4,15],[4,17,4,23],[4,25,4,31],[13,1,13,7],[13,9,13,15],[13,17,13,23],[13,25,13,31],[22,1,22,7],[22,9,22,15],[22,17,22,23],[22,25,22,31]]}
[null,"Календарь СМЕННОЙ РАБОТЫ",{"$nulls":26},2021]
[]
[null,null,{"$f":"IF('Структура смен'!D4=0,\"\",'Структура смен'!D4)","v":"6:00 – 14:00"},{"$nulls":5},{"$f":"IF('Структура смен'!D5=0,\"\",'Структура смен'!D5)","v":"22:00 – 6:00"},{"$nulls":5},{"$f":"IF('Структура смен'!D6=0,\"\",'Структура смен'!D6)","v":""}]
[]
[null,"Январь",{"$nulls":7},"Февраль",{"$nulls":7},"Март",{"$nulls":7},"Апрель"]
[null,"Пн","Вт","Ср","Чт","Пт","Сб","Вс",null,"Пн","Вт","Ср","Чт","Пт","Сб","Вс",null,"Пн","Вт","Ср","Чт","Пт","Сб","Вс",null,"Пн","Вт","Ср","Чт","Пт","Сб","Вс"]
[null,{"$f":"IF(DAY(_xlfn.SINGLE(ЯнвВс1))=1,\"\",IF(AND(YEAR(_xlfn.SINGLE(ЯнвВс1)+1)=_xlfn.SINGLE(КалендарныйГод),MONTH(_xlfn.SINGLE(ЯнвВс1)+1)=1),_xlfn.SINGLE(ЯнвВс1)+1,\"\"))","v":""},{"$f":"IF(DAY(_xlfn.SINGLE(ЯнвВс1))=1,\"\",IF(AND(YEAR(_xlfn.SINGLE(ЯнвВс1)+2)=_xlfn.SINGLE(КалендарныйГод),MONTH(_xlfn.SINGLE(ЯнвВс1)+2)=1),_xlfn.SINGLE(ЯнвВс1)+2,\"\"))","v":""},{"$f":"IF(DAY(_xlfn.SINGLE(ЯнвВс1))=1,\"\",IF(AND(YEAR(_xlfn.SINGLE(ЯнвВс1)+3)=_xlfn.SINGLE(КалендарныйГод),MONTH(_xlfn.SINGLE(ЯнвВс1)+3)=1),_xlfn.SINGLE(ЯнвВс1)+3,\"\"))","v":""},{"$f":"IF(DAY(_xlfn.SINGLE(ЯнвВс1))=1,\"\",IF(AND(YEAR(_xlfn.SINGLE(ЯнвВс1)+4)=_xlfn.SINGLE(КалендарныйГод),MONTH(_xlfn.SINGLE(ЯнвВс1)+4)=1),_xlfn.SINGLE(ЯнвВс1)+4,\"\"))","v":""},{"$f":"IF(DAY(_xlfn.SINGLE(ЯнвВс1))=1,\"\",IF(AND(YEAR(_xlfn.SINGLE(ЯнвВс1)+5)=_xlfn.SINGLE(КалендарныйГод),MONTH(_xlfn.SINGLE(ЯнвВс1)+5)=1),_xlfn.SINGLE(ЯнвВс1)+5,\"\"))","v":"2021-01-01"},{"$f":"IF(DAY(_xlfn.SINGLE(ЯнвВс1))=1,\"\",IF(AND(YEAR(_xlfn.SINGLE(ЯнвВс1)+6)=_xlfn.SINGLE(КалендарныйГод),MONTH(_xlfn.SINGLE(ЯнвВс1)+6)=1),_xlfn.SINGLE(ЯнвВс1)+6,\"\"))","v":"2021-01-02"},{"$f":"_xlfn.SINGLE(IF(DAY(_xlfn.SINGLE(ЯнвВс1))=1,IF(AND(YEAR(_xlfn.SINGLE(ЯнвВс1))=_xlfn.SINGLE(КалендарныйГод),MONTH(_xlfn.SINGLE(ЯнвВс1))=1),ЯнвВс1,\"\"),IF(AND(YEAR(_xlfn.SINGLE(ЯнвВс1)+7)=_xlfn.SINGLE(КалендарныйГод),MONTH(_xlfn.SINGLE(ЯнвВс1)+7)=1),_xlfn.SINGLE(ЯнвВс1)+7,\"\")))","v":"2021-01-03"},null,{"$f":"IF(DAY(_xlfn.SINGLE(ФевВс1))=1,\"\",IF(AND(YEAR(_xlfn.SINGLE(ФевВс1)+1)=_xlfn.SINGLE(КалендарныйГод),MONTH(_xlfn.SINGLE(ФевВс1)+1)=2),_xlfn.SINGLE(ФевВс1)+1,\"\"))","v":"2021-02-01"},{"$f":"IF(DAY(_xlfn.SINGLE(ФевВс1))=1,\"\",IF(AND(YEAR(_xlfn.SINGLE(ФевВс1)+2)=_xlfn.SINGLE(КалендарныйГод),MONTH(_xlfn.SINGLE(ФевВс1)+2)=2),_xlfn.SINGLE(ФевВс1)+2,\"\"))","v":"2021-02-02"},{"$f":"IF(DAY(_xlfn.SINGLE(ФевВс1))=1,\"\",IF(AND(YEAR(_xlfn.SINGLE(ФевВс1)+3)=_xlfn.SINGLE(КалендарныйГод),MONTH(_xlfn.SINGLE(ФевВс1)+3)=2),_xlfn.SINGLE(ФевВс1)+3,\"\"))","v":"2021-02-03"},{"$f":"IF(DAY(_xlfn.SINGLE(ФевВс1))=1,\"\",IF(AND(YEAR(_xlfn.SINGLE(ФевВс1)+4)=_xlfn.SINGLE(КалендарныйГод),MONTH(_xlfn.SINGLE(ФевВс1)+4)=2),_xlfn.SINGLE(ФевВс1)+4,\"\"))","v":"2021-02-04"},{"$f":"IF(DAY(_xlfn.SINGLE(ФевВс1))=1,\"\",IF(AND(YEAR(_xlfn.SINGLE(ФевВс1)+5)=_xlfn.SINGLE(КалендарныйГод),MONTH(_xlfn.SINGLE(ФевВс1)+5)=2),_xlfn.SINGLE(ФевВс1)+5,\"\"))","v":"2021-02-05"},{"$f":"IF(DAY(_xlfn.SINGLE(ФевВс1))=1,\"\",IF(AND(YEAR(_xlfn.SINGLE(ФевВс1)+6)=_xlfn.SINGLE(КалендарныйГод),MONTH(_xlfn.SINGLE(ФевВс1)+6)=2),_xlfn.SINGLE(ФевВс1)+6,\"\"))","v":"2021-02-06"},{"$f":"_xlfn.SINGLE(IF(DAY(_xlfn.SINGLE(ФевВс1))=1,IF(AND(YEAR(_xlfn.SINGLE(ФевВс1))=_xlfn.SINGLE(КалендарныйГод),MONTH(_xlfn.SINGLE(ФевВс1))=2),ФевВс1,\"\"),IF(AND(YEAR(_xlfn.SINGLE(ФевВс1)+7)=_xlfn.SINGLE(КалендарныйГод),MONTH(_xlfn.SINGLE(ФевВс1)+7)=2),_xlfn.SINGLE(ФевВс1)+7,\"\")))","v":"2021-02-07"},null,{"$f":"IF(DAY(_xlfn.SINGLE(МарВс1))=1,\"\",IF(AND(YEAR(_xlfn.SINGLE(МарВс1)+1)=_xlfn.SINGLE(КалендарныйГод),MONTH(_xlfn.SINGLE(МарВс1)+1)=3),_xlfn.SINGLE(МарВс1)+1,\"\"))","v":"2021-03-01"},{"$f":"IF(DAY(_xlfn.SINGLE(МарВс1))=1,\"\",IF(AND(YEAR(_xlfn.SINGLE(МарВс1)+2)=_xlfn.SINGLE(КалендарныйГод),MONTH(_xlfn.SINGLE(МарВс1)+2)=3),_xlfn.SINGLE(МарВс1)+2,\"\"))","v":"2021-03-02"},{"$f":"IF(DAY(_xlfn.SINGLE(МарВс1))=1,\"\",IF(AND(YEAR(_xlfn.SINGLE(МарВс1)+3)=_xlfn.SINGLE(КалендарныйГод),MONTH(_xlfn.SINGLE(МарВс1)+3)=3),_xlfn.SINGLE(МарВс1)+3,\"\"))","v":"2021-03-03"},{"$f":"IF(DAY(_xlfn.SINGLE(МарВс1))=1,\"\",IF(AND(YEAR(_xlfn.SINGLE(МарВс1)+4)=_xlfn.SINGLE(КалендарныйГод),MONTH(_xlfn.SINGLE(МарВс1)+4)=3),_xlfn.SINGLE(МарВс1)+4,\"\"))","v":"2021-03-04"},{"$f":"IF(DAY(_xlfn.SINGLE(МарВс1))=1,\"\",IF(AND(YEAR(_xlfn.SINGLE(МарВс1)+5)=_xlfn.SINGLE(КалендарныйГод),MONTH(_xlfn.SINGLE(МарВс1)+5)=3),_xlfn.SINGLE(МарВс1)+5,\"\"))","v":"2021-03-05"},{"$f":"IF(DAY(_xlfn.SINGLE(МарВс1))=1,\"\",IF(AND(YEAR(_xlfn.SINGLE(МарВс1)+6)=_xlfn.SINGLE(КалендарныйГод),MONTH(_xlfn.SINGLE(МарВс1)+6)=3),_xlfn.SINGLE(МарВс1)+6,\"\"))","v":"2021-03-06"},{"$f":"_xlfn.SINGLE(IF(DAY(_xlfn.SINGLE(МарВс1))=1,IF(AND(YEAR(_xlfn.SINGLE(МарВс1))=_xlfn.SINGLE(КалендарныйГод),MONTH(_xlfn.SINGLE(МарВс1))=3),МарВс1,\"\"),IF(AND(YEAR(_xlfn.SINGLE(МарВс1)+7)=_xlfn.SINGLE(КалендарныйГод),MONTH(_xlfn.SINGLE(МарВс1)+7)=3),_xlfn.SINGLE(МарВс1)+7,\"\")))","v":"2021-03-07"},null,{"$f":"IF(DAY(_xlfn.SINGLE(АпрВс1))=1,\"\",IF(AND(YEAR(_xlfn.SINGLE(АпрВс1)+1)=_xlfn.SINGLE(КалендарныйГод),MONTH(_xlfn.SINGLE(АпрВс1)+1)=4),_xlfn.SINGLE(АпрВс1)+1,\"\"))","v":""},{"$f":"IF(DAY(_xlfn.SINGLE(АпрВс1))=1,\"\",IF(AND(YEAR(_xlfn.SINGLE(АпрВс1)+2)=_xlfn.SINGLE(КалендарныйГод),MONTH(_xlfn.SINGLE(АпрВс1)+2)=4),_xlfn.SINGLE(АпрВс1)+2,\"\"))","v":""},{"$f":"IF(DAY(_xlfn.SINGLE(АпрВс1))=1,\"\",IF(AND(YEAR(_xlfn.SINGLE(АпрВс1)+3)=_xlfn.SINGLE(КалендарныйГод),MONTH(_xlfn.SINGLE(АпрВс1)+3)=4),_xlfn.SINGLE(АпрВс1)+3,\"\"))","v":""},{"$f":"IF(DAY(_xlfn.SINGLE(АпрВс1))=1,\"\",IF(AND(YEAR(_xlfn.SINGLE(АпрВс1)+4)=_xlfn.SINGLE(КалендарныйГод),MONTH(_xlfn.SINGLE(АпрВс1)+4)=4),_xlfn.SINGLE(АпрВс1)+4,\"\"))","v":"2021-04-01"},{"$f":"IF(DAY(_xlfn.SINGLE(АпрВс1))=1,\"\",IF(AND(YEAR(_xlfn.SINGLE(АпрВс1)+5)=_xlfn.SINGLE(КалендарныйГод),MONTH(_xlfn.SINGLE(АпрВс1)+5)=4),_xlfn.SINGLE(АпрВс1)+5,\"\"))","v":"2021-04-02"},{"$f":"IF(DAY(_xlfn.SINGLE(АпрВс1))=1,\"\",IF(AND(YEAR(_xlfn.SINGLE(АпрВс1)+6)=_xlfn.SINGLE(КалендарныйГод),MONTH(_xlfn.SINGLE(АпрВс1)+6)=4),_xlfn.SINGLE(АпрВс1)+6,\"\"))","v":"2021-04-03"},{"$f":"_xlfn.SINGLE(IF(DAY(_xlfn.SINGLE(АпрВс1))=1,IF(AND(YEAR(_xlfn.SINGLE(АпрВс1))=_xlfn.SINGLE(КалендарныйГод),MONTH(_xlfn.SINGLE(АпрВс1))=4),АпрВс1,\"\"),IF(AND(YEAR(_xlfn.SINGLE(АпрВс1)+7)=_xlfn.SINGLE(КалендарныйГод),MONTH(_xlfn.SINGLE(АпрВс1)+7)=4),_xlfn.SINGLE(АпрВс1)+7,\"\")))","v":"2021-04-04"}]
[null,{"$f":"IF(DAY(_xlfn.SINGLE(ЯнвВс1))=1,IF(AND(YEAR(_xlfn.SINGLE(ЯнвВс1)+1)=_xlfn.SINGLE(КалендарныйГод),MONTH(_xlfn.SINGLE(ЯнвВс1)+1)=1),_xlfn.SINGLE(ЯнвВс1)+1,\"\"),IF(AND(YEAR(_xlfn.SINGLE(ЯнвВс1)+8)=_xlfn.SINGLE(КалендарныйГод),MONTH(_xlfn.SINGLE(ЯнвВс1)+8)=1),_xlfn.SINGLE(ЯнвВс1)+8,\"\"))","v":"2021-01-04"},{"$f":"IF(DAY(_xlfn.SINGLE(ЯнвВс1))=1,IF(AND(YEAR(_xlfn.SINGLE(ЯнвВс1)+2)=_xlfn.SINGLE(КалендарныйГод),MONTH(_xlfn.SINGLE(ЯнвВс1)+2)=1),_xlfn.SINGLE(ЯнвВс1)+2,\"\"),IF(AND(YEAR(_xlfn.SINGLE(ЯнвВс1)+9)=_xlfn.SINGLE(КалендарныйГод),MONTH(_xlfn.SINGLE(ЯнвВс1)+9)=1),_xlfn.SINGLE(ЯнвВс1)+9,\"\"))","v":"2021-01-05"},{"$f":"IF(DAY(_xlfn.SINGLE(ЯнвВс1))=1,IF(AND(YEAR(_xlfn.SINGLE(ЯнвВс1)+3)=_xlfn.SINGLE(КалендарныйГод),MONTH(_xlfn.SINGLE(ЯнвВс1)+3)=1),_xlfn.SINGLE(ЯнвВс1)+3,\"\"),IF(AND(YEAR(_xlfn.SINGLE(ЯнвВс1)+10)=_xlfn.SINGLE(КалендарныйГод),MONTH(_xlfn.SINGLE(ЯнвВс1)+10)=1),_xlfn.SINGLE(ЯнвВс1)+10,\"\"))","v":"2021-01-06"},{"$f":"IF(DAY(_xlfn.SINGLE(ЯнвВс1))=1,IF(AND(YEAR(_xlfn.SINGLE(ЯнвВс1)+4)=_xlfn.SINGLE(КалендарныйГод),MONTH(_xlfn.SINGLE(ЯнвВс1)+4)=1),_xlfn.SINGLE(ЯнвВс1)+4,\"\"),IF(AND(YEAR(_xlfn.SINGLE(ЯнвВс1)+11)=_xlfn.SINGLE(КалендарныйГод),MONTH(_xlfn.SINGLE(ЯнвВс1)+11)=1),_xlfn.SINGLE(ЯнвВс1)+11,\"\"))","v":"2021-01-07"},{"$f":"IF(DAY(_xlfn.SINGLE(ЯнвВс1))=1,IF(AND(YEAR(_xlfn.SINGLE(ЯнвВс1)+5)=_xlfn.SINGLE(КалендарныйГод),MONTH(_xlfn.SINGLE(ЯнвВс1)+5)=1),_xlfn.SINGLE(ЯнвВс1)+5,\"\"),IF(AND(YEAR(_xlfn.SINGLE(ЯнвВс1)+12)=_xlfn.SINGLE(КалендарныйГод),MONTH(_xlfn.SINGLE(ЯнвВс1)+12)=1),_xlfn.SINGLE(ЯнвВс1)+12,\"\"))","v":"2021-01-08"},{"$f":"IF(DAY(_xlfn.SINGLE(ЯнвВс1))=1,IF(AND(YEAR(_xlfn.SINGLE(ЯнвВс1)+6)=_xlfn.SINGLE(КалендарныйГод),MONTH(_xlfn.SINGLE(ЯнвВс1)+6)=1),_xlfn.SINGLE(ЯнвВс1)+6,\"\"),IF(AND(YEAR(_xlfn.SINGLE(ЯнвВс1)+13)=_xlfn.SINGLE(КалендарныйГод),MONTH(_xlfn.SINGLE(ЯнвВс1)+13)=1),_xlfn.SINGLE(ЯнвВс1)+13,\"\"))","v":"2021-01-09"},{"$f":"IF(DAY(_xlfn.SINGLE(ЯнвВс1))=1,IF(AND(YEAR(_xlfn.SINGLE(ЯнвВс1)+7)=_xlfn.SINGLE(КалендарныйГод),MONTH(_xlfn.SINGLE(ЯнвВс1)+7)=1),_xlfn.SINGLE(ЯнвВс1)+7,\"\"),IF(AND(YEAR(_xlfn.SINGLE(ЯнвВс1)+14)=_xlfn.SINGLE(КалендарныйГод),MONTH(_xlfn.SINGLE(ЯнвВс1)+14)=1),_xlfn.SINGLE(ЯнвВс1)+14,\"\"))","v":"2021-01-10"},null,{"$f":"IF(DAY(_xlfn.SINGLE(ФевВс1))=1,IF(AND(YEAR(_xlfn.SINGLE(ФевВс1)+1)=_xlfn.SINGLE(КалендарныйГод),MONTH(_xlfn.SINGLE(ФевВс1)+1)=2),_xlfn.SINGLE(ФевВс1)+1,\"\"),IF(AND(YEAR(_xlfn.SINGLE(ФевВс1)+8)=_xlfn.SINGLE(КалендарныйГод),MONTH(_xlfn.SINGLE(ФевВс1)+8)=2),_xlfn.SINGLE(ФевВс1)+8,\"\"))","v":"2021-02-08"},{"$f":"IF(DAY(_xlfn.SINGLE(ФевВс1))=1,IF(AND(YEAR(_xlfn.SINGLE(ФевВс1)+2)=_xlfn.SINGLE(КалендарныйГод),MONTH(_xlfn.SINGLE(ФевВс1)+2)=2),_xlfn.SINGLE(ФевВс1)+2,\"\"),IF(AND(YEAR(_xlfn.SINGLE(ФевВс1)+9)=_xlfn.SINGLE(КалендарныйГод),MONTH(_xlfn.SINGLE(ФевВс1)+9)=2),_xlfn.SINGLE(ФевВс1)+9,\"\"))","v":"2021-02-09"},{"$f":"IF(DAY(_xlfn.SINGLE(ФевВс1))=1,IF(AND(YEAR(_xlfn.SINGLE(ФевВс1)+3)=_xlfn.SINGLE(КалендарныйГод),MONTH(_xlfn.SINGLE(ФевВс1)+3)=2),_xlfn.SINGLE(ФевВс1)+3,\"\"),IF(AND(YEAR(_xlfn.SINGLE(ФевВс1)+10)=_xlfn.SINGLE(КалендарныйГод),MONTH(_xlfn.SINGLE(ФевВс1)+10)=2),_xlfn.SINGLE(ФевВс1)+10,\"\"))","v":"2021-02-10"},{"$f":"IF(DAY(_xlfn.SINGLE(ФевВс1))=1,IF(AND(YEAR(_xlfn.SINGLE(ФевВс1)+4)=_xlfn.SINGLE(КалендарныйГод),MONTH(_xlfn.SINGLE(ФевВс1)+4)=2),_xlfn.SINGLE(ФевВс1)+4,\"\"),IF(AND(YEAR(_xlfn.SINGLE(ФевВс1)+11)=_xlfn.SINGLE(КалендарныйГод),MONTH(_xlfn.SINGLE(ФевВс1)+11)=2),_xlfn.SINGLE(ФевВс1)+11,\"\"))","v":"2021-02-11"},{"$f":"IF(DAY(_xlfn.SINGLE(ФевВс1))=1,IF(AND(YEAR(_xlfn.SINGLE(ФевВс1)+5)=_xlfn.SINGLE(КалендарныйГод),MONTH(_xlfn.SINGLE(ФевВс1)+5)=2),_xlfn.SINGLE(ФевВс1)+5,\"\"),IF(AND(YEAR(_xlfn.SINGLE(ФевВс1)+12)=_xlfn.SINGLE(КалендарныйГод),MONTH(_xlfn.SINGLE(ФевВс1)+12)=2),_xlfn.SINGLE(ФевВс1)+12,\"\"))","v":"2021-02-12"},{"$f":"IF(DAY(_xlfn.SINGLE(ФевВс1))=1,IF(AND(YEAR(_xlfn.SINGLE(ФевВс1)+6)=_xlfn.SINGLE(КалендарныйГод),MONTH(_xlfn.SINGLE(ФевВс1)+6)=2),_xlfn.SINGLE(ФевВс1)+6,\"\"),IF(AND(YEAR(_xlfn.SINGLE(ФевВс1)+13)=_xlfn.SINGLE(КалендарныйГод),MONTH(_xlfn.SINGLE(ФевВс1)+13)=2),_xlfn.SINGLE(ФевВс1)+13,\"\"))","v":"2021-02-13"},{"$f":"IF(DAY(_xlfn.SINGLE(ФевВс1))=1,IF(AND(YEAR(_xlfn.SINGLE(ФевВс1)+7)=_xlfn.SINGLE(КалендарныйГод),MONTH(_xlfn.SINGLE(ФевВс1)+7)=2),_xlfn.SINGLE(ФевВс1)+7,\"\"),IF(AND(YEAR(_xlfn.SINGLE(ФевВс1)+14)=_xlfn.SINGLE(КалендарныйГод),MONTH(_xlfn.SINGLE(ФевВс1)+14)=2),_xlfn.SINGLE(ФевВс1)+14,\"\"))","v":"2021-02-14"},null,{"$f":"IF(DAY(_xlfn.SINGLE(МарВс1))=1,IF(AND(YEAR(_xlfn.SINGLE(МарВс1)+1)=_xlfn.SINGLE(КалендарныйГод),MONTH(_xlfn.SINGLE(МарВс1)+1)=3),_xlfn.SINGLE(МарВс1)+1,\"\"),IF(AND(YEAR(_xlfn.SINGLE(МарВс1)+8)=_xlfn.SINGLE(КалендарныйГод),MONTH(_xlfn.SINGLE(МарВс1)+8)=3),_xlfn.SINGLE(МарВс1)+8,\"\"))","v":"2021-03-08"},{"$f":"IF(DAY(_xlfn.SINGLE(МарВс1))=1,IF(AND(YEAR(_xlfn.SINGLE(МарВс1)+2)=_xlfn.SINGLE(КалендарныйГод),MONTH(_xlfn.SINGLE(МарВс1)+2)=3),_xlfn.SINGLE(МарВс1)+2,\"\"),IF(AND(YEAR(_xlfn.SINGLE(МарВс1)+9)=_xlfn.SINGLE(КалендарныйГод),MONTH(_xlfn.SINGLE(МарВс1)+9)=3),_xlfn.SINGLE(МарВс1)+9,\"\"))","v":"2021-03-09"},{"$f":"IF(DAY(_xlfn.SINGLE(МарВс1))=1,IF(AND(YEAR(_xlfn.SINGLE(МарВс1)+3)=_xlfn.SINGLE(КалендарныйГод),MONTH(_xlfn.SINGLE(МарВс1)+3)=3),_xlfn.SINGLE(МарВс1)+3,\"\"),IF(AND(YEAR(_xlfn.SINGLE(МарВс1)+10)=_xlfn.SINGLE(КалендарныйГод),MONTH(_xlfn.SINGLE(МарВс1)+10)=3),_xlfn.SINGLE(МарВс1)+10,\"\"))","v":"2021-03-10"},{"$f":"IF(DAY(_xlfn.SINGLE(МарВс1))=1,IF(AND(YEAR(_xlfn.SINGLE(МарВс1)+4)=_xlfn.SINGLE(КалендарныйГод),MONTH(_xlfn.SINGLE(МарВс1)+4)=3),_xlfn.SINGLE(МарВс1)+4,\"\"),IF(AND(YEAR(_xlfn.SINGLE(МарВс1)+11)=_xlfn.SINGLE(КалендарныйГод),MONTH(_xlfn.SINGLE(МарВс1)+11)=3),_xlfn.SINGLE(МарВс1)+11,\"\"))","v":"2021-03-11"},{"$f":"IF(DAY(_xlfn.SINGLE(МарВс1))=1,IF(AND(YEAR(_xlfn.SINGLE(МарВс1)+5)=_xlfn.SINGLE(КалендарныйГод),MONTH(_xlfn.SINGLE(МарВс1)+5)=3),_xlfn.SINGLE(МарВс1)+5,\"\"),IF(AND(YEAR(_xlfn.SINGLE(МарВс1)+12)=_xlfn.SINGLE(КалендарныйГод),MONTH(_xlfn.SINGLE(МарВс1)+12)=3),_xlfn.SINGLE(МарВс1)+12,\"\"))","v":"2021-03-12"},{"$f":"IF(DAY(_xlfn.SINGLE(МарВс1))=1,IF(AND(YEAR(_xlfn.SINGLE(МарВс1)+6)=_xlfn.SINGLE(КалендарныйГод),MONTH(_xlfn.SINGLE(МарВс1)+6)=3),_xlfn.SINGLE(МарВс1)+6,\"\"),IF(AND(YEAR(_xlfn.SINGLE(МарВс1)+13)=_xlfn.SINGLE(КалендарныйГод),MONTH(_xlfn.SINGLE(МарВс1)+13)=3),_xlfn.SINGLE(МарВс1)+13,\"\"))","v":"2021-03-13"},{"$f":"IF(DAY(_xlfn.SINGLE(МарВс1))=1,IF(AND(YEAR(_xlfn.SINGLE(МарВс1)+7)=_xlfn.SINGLE(КалендарныйГод),MONTH(_xlfn.SINGLE(МарВс1)+7)=3),_xlfn.SINGLE(МарВс1)+7,\"\"),IF(AND(YEAR(_xlfn.SINGLE(МарВс1)+14)=_xlfn.SINGLE(КалендарныйГод),MONTH(_xlfn.SINGLE(МарВс1)+14)=3),_xlfn.SINGLE(МарВс1)+14,\"\"))","v":"2021-03-14"},null,{"$f":"IF(DAY(_xlfn.SINGLE(АпрВс1))=1,IF(AND(YEAR(_xlfn.SINGLE(АпрВс1)+1)=_xlfn.SINGLE(КалендарныйГод),MONTH(_xlfn.SINGLE(АпрВс1)+1)=4),_xlfn.SINGLE(АпрВс1)+1,\"\"),IF(AND(YEAR(_xlfn.SINGLE(АпрВс1)+8)=_xlfn.SINGLE(КалендарныйГод),MONTH(_xlfn.SINGLE(АпрВс1)+8)=4),_xlfn.SINGLE(АпрВс1)+8,\"\"))","v":"2021-04-05"},{"$f":"IF(DAY(_xlfn.SINGLE(АпрВс1))=1,IF(AND(YEAR(_xlfn.SINGLE(АпрВс1)+2)=_xlfn.SINGLE(КалендарныйГод),MONTH(_xlfn.SINGLE(АпрВс1)+2)=4),_xlfn.SINGLE(АпрВс1)+2,\"\"),IF(AND(YEAR(_xlfn.SINGLE(АпрВс1)+9)=_xlfn.SINGLE(КалендарныйГод),MONTH(_xlfn.SINGLE(АпрВс1)+9)=4),_xlfn.SINGLE(АпрВс1)+9,\"\"))","v":"2021-04-06"},{"$f":"IF(DAY(_xlfn.SINGLE(АпрВс1))=1,IF(AND(YEAR(_xlfn.SINGLE(АпрВс1)+3)=_xlfn.SINGLE(КалендарныйГод),MONTH(_xlfn.SINGLE(АпрВс1)+3)=4),_xlfn.SINGLE(АпрВс1)+3,\"\"),IF(AND(YEAR(_xlfn.SINGLE(АпрВс1)+10)=_xlfn.SINGLE(КалендарныйГод),MONTH(_xlfn.SINGLE(АпрВс1)+10)=4),_xlfn.SINGLE(АпрВс1)+10,\"\"))","v":"2021-04-07"},{"$f":"IF(DAY(_xlfn.SINGLE(АпрВс1))=1,IF(AND(YEAR(_xlfn.SINGLE(АпрВс1)+4)=_xlfn.SINGLE(КалендарныйГод),MONTH(_xlfn.SINGLE(АпрВс1)+4)=4),_xlfn.SINGLE(АпрВс1)+4,\"\"),IF(AND(YEAR(_xlfn.SINGLE(АпрВс1)+11)=_xlfn.SINGLE(КалендарныйГод),MONTH(_xlfn.SINGLE(АпрВс1)+11)=4),_xlfn.SINGLE(АпрВс1)+11,\"\"))","v":"2021-04-08"},{"$f":"IF(DAY(_xlfn.SINGLE(АпрВс1))=1,IF(AND(YEAR(_xlfn.SINGLE(АпрВс1)+5)=_xlfn.SINGLE(КалендарныйГод),MONTH(_xlfn.SINGLE(АпрВс1)+5)=4),_xlfn.SINGLE(АпрВс1)+5,\"\"),IF(AND(YEAR(_xlfn.SINGLE(АпрВс1)+12)=_xlfn.SINGLE(КалендарныйГод),MONTH(_xlfn.SINGLE(АпрВс1)+12)=4),_xlfn.SINGLE(АпрВс1)+12,\"\"))","v":"2021-04-09"},{"$f":"IF(DAY(_xlfn.SINGLE(АпрВс1))=1,IF(AND(YEAR(_xlfn.SINGLE(АпрВс1)+6)=_xlfn.SINGLE(КалендарныйГод),MONTH(_xlfn.SINGLE(АпрВс1)+6)=4),_xlfn.SINGLE(АпрВс1)+6,\"\"),IF(AND(YEAR(_xlfn.SINGLE(АпрВс1)+13)=_xlfn.SINGLE(КалендарныйГод),MONTH(_xlfn.SINGLE(АпрВс1)+13)=4),_xlfn.SINGLE(АпрВс1)+13,\"\"))","v":"2021-04-10"},{"$f":"IF(DAY(_xlfn.SINGLE(АпрВс1))=1,IF(AND(YEAR(_xlfn.SINGLE(АпрВс1)+7)=_xlfn.SINGLE(КалендарныйГод),MONTH(_xlfn.SINGLE(АпрВс1)+7)=4),_xlfn.SINGLE(АпрВс1)+7,\"\"),IF(AND(YEAR(_xlfn.SINGLE(АпрВс1)+14)=_xlfn.SINGLE(КалендарныйГод),MONTH(_xlfn.SINGLE(АпрВс1)+14)=4),_xlfn.SINGLE(АпрВс1)+14,\"\"))","v":"2021-04-11"}]
[null,{"$f":"IF(DAY(_xlfn.SINGLE(ЯнвВс1))=1,IF(AND(YEAR(_xlfn.SINGLE(ЯнвВс1)+8)=_xlfn.SINGLE(КалендарныйГод),MONTH(_xlfn.SINGLE(ЯнвВс1)+8)=1),_xlfn.SINGLE(ЯнвВс1)+8,\"\"),IF(AND(YEAR(_xlfn.SINGLE(ЯнвВс1)+15)=_xlfn.SINGLE(КалендарныйГод),MONTH(_xlfn.SINGLE(ЯнвВс1)+15)=1),_xlfn.SINGLE(ЯнвВс1)+15,\"\"))","v":"2021-01-11"},{"$f":"IF(DAY(_xlfn.SINGLE(ЯнвВс1))=1,IF(AND(YEAR(_xlfn.SINGLE(ЯнвВс1)+9)=_xlfn.SINGLE(КалендарныйГод),MONTH(_xlfn.SINGLE(ЯнвВс1)+9)=1),_xlfn.SINGLE(ЯнвВс1)+9,\"\"),IF(AND(YEAR(_xlfn.SINGLE(ЯнвВс1)+16)=_xlfn.SINGLE(КалендарныйГод),MONTH(_xlfn.SINGLE(ЯнвВс1)+16)=1),_xlfn.SINGLE(ЯнвВс1)+16,\"\"))","v":"2021-01-12"},{"$f":"IF(DAY(_xlfn.SINGLE(ЯнвВс1))=1,IF(AND(YEAR(_xlfn.SINGLE(ЯнвВс1)+10)=_xlfn.SINGLE(КалендарныйГод),MONTH(_xlfn.SINGLE(ЯнвВс1)+10)=1),_xlfn.SINGLE(ЯнвВс1)+10,\"\"),IF(AND(YEAR(_xlfn.SINGLE(ЯнвВс1)+17)=_xlfn.SINGLE(КалендарныйГод),MONTH(_xlfn.SINGLE(ЯнвВс1)+17)=1),_xlfn.SINGLE(ЯнвВс1)+17,\"\"))","v":"2021-01-13"},{"$f":"IF(DAY(_xlfn.SINGLE(ЯнвВс1))=1,IF(AND(YEAR(_xlfn.SINGLE(ЯнвВс1)+11)=_xlfn.SINGLE(КалендарныйГод),MONTH(_xlfn.SINGLE(ЯнвВс1)+11)=1),_xlfn.SINGLE(ЯнвВс1)+11,\"\"),IF(AND(YEAR(_xlfn.SINGLE(ЯнвВс1)+18)=_xlfn.SINGLE(КалендарныйГод),MONTH(_xlfn.SINGLE(ЯнвВс1)+18)=1),_xlfn.SINGLE(ЯнвВс1)+18,\"\"))","v":"2021-01-14"},{"$f":"IF(DAY(_xlfn.SINGLE(ЯнвВс1))=1,IF(AND(YEAR(_xlfn.SINGLE(ЯнвВс1)+12)=_xlfn.SINGLE(КалендарныйГод),MONTH(_xlfn.SINGLE(ЯнвВс1)+12)=1),_xlfn.SINGLE(ЯнвВс1)+12,\"\"),IF(AND(YEAR(_xlfn.SINGLE(ЯнвВс1)+19)=_xlfn.SINGLE(КалендарныйГод),MONTH(_xlfn.SINGLE(ЯнвВс1)+19)=1),_xlfn.SINGLE(ЯнвВс1)+19,\"\"))","v":"2021-01-15"},{"$f":"IF(DAY(_xlfn.SINGLE(ЯнвВс1))=1,IF(AND(YEAR(_xlfn.SINGLE(ЯнвВс1)+13)=_xlfn.SINGLE(КалендарныйГод),MONTH(_xlfn.SINGLE(ЯнвВс1)+13)=1),_xlfn.SINGLE(ЯнвВс1)+13,\"\"),IF(AND(YEAR(_xlfn.SINGLE(ЯнвВс1)+20)=_xlfn.SINGLE(КалендарныйГод),MONTH(_xlfn.SINGLE(ЯнвВс1)+20)=1),_xlfn.SINGLE(ЯнвВс1)+20,\"\"))","v":"2021-01-16"},{"$f":"IF(DAY(_xlfn.SINGLE(ЯнвВс1))=1,IF(AND(YEAR(_xlfn.SINGLE(ЯнвВс1)+14)=_xlfn.SINGLE(КалендарныйГод),MONTH(_xlfn.SINGLE(ЯнвВс1)+14)=1),_xlfn.SINGLE(ЯнвВс1)+14,\"\"),IF(AND(YEAR(_xlfn.SINGLE(ЯнвВс1)+21)=_xlfn.SINGLE(КалендарныйГод),MONTH(_xlfn.SINGLE(ЯнвВс1)+21)=1),_xlfn.SINGLE(ЯнвВс1)+21,\"\"))","v":"2021-01-17"},null,{"$f":"IF(DAY(_xlfn.SINGLE(ФевВс1))=1,IF(AND(YEAR(_xlfn.SINGLE(ФевВс1)+8)=_xlfn.SINGLE(КалендарныйГод),MONTH(_xlfn.SINGLE(ФевВс1)+8)=2),_xlfn.SINGLE(ФевВс1)+8,\"\"),IF(AND(YEAR(_xlfn.SINGLE(ФевВс1)+15)=_xlfn.SINGLE(КалендарныйГод),MONTH(_xlfn.SINGLE(ФевВс1)+15)=2),_xlfn.SINGLE(ФевВс1)+15,\"\"))","v":"2021-02-15"},{"$f":"IF(DAY(_xlfn.SINGLE(ФевВс1))=1,IF(AND(YEAR(_xlfn.SINGLE(ФевВс1)+9)=_xlfn.SINGLE(КалендарныйГод),MONTH(_xlfn.SINGLE(ФевВс1)+9)=2),_xlfn.SINGLE(ФевВс1)+9,\"\"),IF(AND(YEAR(_xlfn.SINGLE(ФевВс1)+16)=_xlfn.SINGLE(КалендарныйГод),MONTH(_xlfn.SINGLE(ФевВс1)+16)=2),_xlfn.SINGLE(ФевВс1)+16,\"\"))","v":"2021-02-16"},{"$f":"IF(DAY(_xlfn.SINGLE(ФевВс1))=1,IF(AND(YEAR(_xlfn.SINGLE(ФевВс1)+10)=_xlfn.SINGLE(КалендарныйГод),MONTH(_xlfn.SINGLE(ФевВс1)+10)=2),_xlfn.SINGLE(ФевВс1)+10,\"\"),IF(AND(YEAR(_xlfn.SINGLE(ФевВс1)+17)=_xlfn.SINGLE(КалендарныйГод),MONTH(_xlfn.SINGLE(ФевВс1)+17)=2),_xlfn.SINGLE(ФевВс1)+17,\"\"))","v":"2021-02-17"},{"$f":"IF(DAY(_xlfn.SINGLE(ФевВс1))=1,IF(AND(YEAR(_xlfn.SINGLE(ФевВс1)+11)=_xlfn.SINGLE(КалендарныйГод),MONTH(_xlfn.SINGLE(ФевВс1)+11)=2),_xlfn.SINGLE(ФевВс1)+11,\"\"),IF(AND(YEAR(_xlfn.SINGLE(ФевВс1)+18)=_xlfn.SINGLE(КалендарныйГод),MONTH(_xlfn.SINGLE(ФевВс1)+18)=2),_xlfn.SINGLE(ФевВс1)+18,\"\"))","v":"2021-02-18"},{"$f":"IF(DAY(_xlfn.SINGLE(ФевВс1))=1,IF(AND(YEAR(_xlfn.SINGLE(ФевВс1)+12)=_xlfn.SINGLE(КалендарныйГод),MONTH(_xlfn.SINGLE(ФевВс1)+12)=2),_xlfn.SINGLE(ФевВс1)+12,\"\"),IF(AND(YEAR(_xlfn.SINGLE(ФевВс1)+19)=_xlfn.SINGLE(КалендарныйГод),MONTH(_xlfn.SINGLE(ФевВс1)+19)=2),_xlfn.SINGLE(ФевВс1)+19,\"\"))","v":"2021-02-19"},{"$f":"IF(DAY(_xlfn.SINGLE(ФевВс1))=1,IF(AND(YEAR(_xlfn.SINGLE(ФевВс1)+13)=_xlfn.SINGLE(КалендарныйГод),MONTH(_xlfn.SINGLE(ФевВс1)+13)=2),_xlfn.SINGLE(ФевВс1)+13,\"\"),IF(AND(YEAR(_xlfn.SINGLE(ФевВс1)+20)=_xlfn.SINGLE(КалендарныйГод),MONTH(_xlfn.SINGLE(ФевВс1)+20)=2),_xlfn.SINGLE(ФевВс1)+20,\"\"))","v":"2021-02-20"},{"$f":"IF(DAY(_xlfn.SINGLE(ФевВс1))=1,IF(AND(YEAR(_xlfn.SINGLE(ФевВс1)+14)=_xlfn.SINGLE(КалендарныйГод),MONTH(_xlfn.SINGLE(ФевВс1)+14)=2),_xlfn.SINGLE(ФевВс1)+14,\"\"),IF(AND(YEAR(_xlfn.SINGLE(ФевВс1)+21)=_xlfn.SINGLE(КалендарныйГод),MONTH(_xlfn.SINGLE(ФевВс1)+21)=2),_xlfn.SINGLE(ФевВс1)+21,\"\"))","v":"2021-02-21"},null,{"$f":"IF(DAY(_xlfn.SINGLE(МарВс1))=1,IF(AND(YEAR(_xlfn.SINGLE(МарВс1)+8)=_xlfn.SINGLE(КалендарныйГод),MONTH(_xlfn.SINGLE(МарВс1)+8)=3),_xlfn.SINGLE(МарВс1)+8,\"\"),IF(AND(YEAR(_xlfn.SINGLE(МарВс1)+15)=_xlfn.SINGLE(КалендарныйГод),MONTH(_xlfn.SINGLE(МарВс1)+15)=3),_xlfn.SINGLE(МарВс1)+15,\"\"))","v":"2021-03-15"},{"$f":"IF(DAY(_xlfn.SINGLE(МарВс1))=1,IF(AND(YEAR(_xlfn.SINGLE(МарВс1)+9)=_xlfn.SINGLE(КалендарныйГод),MONTH(_xlfn.SINGLE(МарВс1)+9)=3),_xlfn.SINGLE(МарВс1)+9,\"\"),IF(AND(YEAR(_xlfn.SINGLE(МарВс1)+16)=_xlfn.SINGLE(КалендарныйГод),MONTH(_xlfn.SINGLE(МарВс1)+16)=3),_xlfn.SINGLE(МарВс1)+16,\"\"))","v":"2021-03-16"},{"$f":"IF(DAY(_xlfn.SINGLE(МарВс1))=1,IF(AND(YEAR(_xlfn.SINGLE(МарВс1)+10)=_xlfn.SINGLE(КалендарныйГод),MONTH(_xlfn.SINGLE(МарВс1)+10)=3),_xlfn.SINGLE(МарВс1)+10,\"\"),IF(AND(YEAR(_xlfn.SINGLE(МарВс1)+17)=_xlfn.SINGLE(КалендарныйГод),MONTH(_xlfn.SINGLE(МарВс1)+17)=3),_xlfn.SINGLE(МарВс1)+17,\"\"))","v":"2021-03-17"},{"$f":"IF(DAY(_xlfn.SINGLE(МарВс1))=1,IF(AND(YEAR(_xlfn.SINGLE(МарВс1)+11)=_xlfn.SINGLE(КалендарныйГод),MONTH(_xlfn.SINGLE(МарВс1)+11)=3),_xlfn.SINGLE(МарВс1)+11,\"\"),IF(AND(YEAR(_xlfn.SINGLE(МарВс1)+18)=_xlfn.SINGLE(КалендарныйГод),MONTH(_xlfn.SINGLE(МарВс1)+18)=3),_xlfn.SINGLE(МарВс1)+18,\"\"))","v":"2021-03-18"},{"$f":"IF(DAY(_xlfn.SINGLE(МарВс1))=1,IF(AND(YEAR(_xlfn.SINGLE(МарВс1)+12)=_xlfn.SINGLE(КалендарныйГод),MONTH(_xlfn.SINGLE(МарВс1)+12)=3),_xlfn.SINGLE(МарВс1)+12,\"\"),IF(AND(YEAR(_xlfn.SINGLE(МарВс1)+19)=_xlfn.SINGLE(КалендарныйГод),MONTH(_xlfn.SINGLE(МарВс1)+19)=3),_xlfn.SINGLE(МарВс1)+19,\"\"))","v":"2021-03-19"},{"$f":"IF(DAY(_xlfn.SINGLE(МарВс1))=1,IF(AND(YEAR(_xlfn.SINGLE(МарВс1)+13)=_xlfn.SINGLE(КалендарныйГод),MONTH(_xlfn.SINGLE(МарВс1)+13)=3),_xlfn.SINGLE(МарВс1)+13,\"\"),IF(AND(YEAR(_xlfn.SINGLE(МарВс1)+20)=_xlfn.SINGLE(КалендарныйГод),MONTH(_xlfn.SINGLE(МарВс1)+20)=3),_xlfn.SINGLE(МарВс1)+20,\"\"))","v":"2021-03-20"},{"$f":"IF(DAY(_xlfn.SINGLE(МарВс1))=1,IF(AND(YEAR(_xlfn.SINGLE(МарВс1)+14)=_xlfn.SINGLE(КалендарныйГод),MONTH(_xlfn.SINGLE(МарВс1)+14)=3),_xlfn.SINGLE(МарВс1)+14,\"\"),IF(AND(YEAR(_xlfn.SINGLE(МарВс1)+21)=_xlfn.SINGLE(КалендарныйГод),MONTH(_xlfn.SINGLE(МарВс1)+21)=3),_xlfn.SINGLE(МарВс1)+21,\"\"))","v":"2021-03-21"},null,{"$f":"IF(DAY(_xlfn.SINGLE(АпрВс1))=1,IF(AND(YEAR(_xlfn.SINGLE(АпрВс1)+8)=_xlfn.SINGLE(КалендарныйГод),MONTH(_xlfn.SINGLE(АпрВс1)+8)=4),_xlfn.SINGLE(АпрВс1)+8,\"\"),IF(AND(YEAR(_xlfn.SINGLE(АпрВс1)+15)=_xlfn.SINGLE(КалендарныйГод),MONTH(_xlfn.SINGLE(АпрВс1)+15)=4),_xlfn.SINGLE(АпрВс1)+15,\"\"))","v":"2021-04-12"},{"$f":"IF(DAY(_xlfn.SINGLE(АпрВс1))=1,IF(AND(YEAR(_xlfn.SINGLE(АпрВс1)+9)=_xlfn.SINGLE(КалендарныйГод),MONTH(_xlfn.SINGLE(АпрВс1)+9)=4),_xlfn.SINGLE(АпрВс1)+9,\"\"),IF(AND(YEAR(_xlfn.SINGLE(АпрВс1)+16)=_xlfn.SINGLE(КалендарныйГод),MONTH(_xlfn.SINGLE(АпрВс1)+16)=4),_xlfn.SINGLE(АпрВс1)+16,\"\"))","v":"2021-04-13"},{"$f":"IF(DAY(_xlfn.SINGLE(АпрВс1))=1,IF(AND(YEAR(_xlfn.SINGLE(АпрВс1)+10)=_xlfn.SINGLE(КалендарныйГод),MONTH(_xlfn.SINGLE(АпрВс1)+10)=4),_xlfn.SINGLE(АпрВс1)+10,\"\"),IF(AND(YEAR(_xlfn.SINGLE(АпрВс1)+17)=_xlfn.SINGLE(КалендарныйГод),MONTH(_xlfn.SINGLE(АпрВс1)+17)=4),_xlfn.SINGLE(АпрВс1)+17,\"\"))","v":"2021-04-14"},{"$f":"IF(DAY(_xlfn.SINGLE(АпрВс1))=1,IF(AND(YEAR(_xlfn.SINGLE(АпрВс1)+11)=_xlfn.SINGLE(КалендарныйГод),MONTH(_xlfn.SINGLE(АпрВс1)+11)=4),_xlfn.SINGLE(АпрВс1)+11,\"\"),IF(AND(YEAR(_xlfn.SINGLE(АпрВс1)+18)=_xlfn.SINGLE(КалендарныйГод),MONTH(_xlfn.SINGLE(АпрВс1)+18)=4),_xlfn.SINGLE(АпрВс1)+18,\"\"))","v":"2021-04-15"},{"$f":"IF(DAY(_xlfn.SINGLE(АпрВс1))=1,IF(AND(YEAR(_xlfn.SINGLE(АпрВс1)+12)=_xlfn.SINGLE(КалендарныйГод),MONTH(_xlfn.SINGLE(АпрВс1)+12)=4),_xlfn.SINGLE(АпрВс1)+12,\"\"),IF(AND(YEAR(_xlfn.SINGLE(АпрВс1)+19)=_xlfn.SINGLE(КалендарныйГод),MONTH(_xlfn.SINGLE(АпрВс1)+19)=4),_xlfn.SINGLE(АпрВс1)+19,\"\"))","v":"2021-04-16"},{"$f":"IF(DAY(_xlfn.SINGLE(АпрВс1))=1,IF(AND(YEAR(_xlfn.SINGLE(АпрВс1)+13)=_xlfn.SINGLE(КалендарныйГод),MONTH(_xlfn.SINGLE(АпрВс1)+13)=4),_xlfn.SINGLE(АпрВс1)+13,\"\"),IF(AND(YEAR(_xlfn.SINGLE(АпрВс1)+20)=_xlfn.SINGLE(КалендарныйГод),MONTH(_xlfn.SINGLE(АпрВс1)+20)=4),_xlfn.SINGLE(АпрВс1)+20,\"\"))","v":"2021-04-17"},{"$f":"IF(DAY(_xlfn.SINGLE(АпрВс1))=1,IF(AND(YEAR(_xlfn.SINGLE(АпрВс1)+14)=_xlfn.SINGLE(КалендарныйГод),MONTH(_xlfn.SINGLE(АпрВс1)+14)=4),_xlfn.SINGLE(АпрВс1)+14,\"\"),IF(AND(YEAR(_xlfn.SINGLE(АпрВс1)+21)=_xlfn.SINGLE(КалендарныйГод),MONTH(_xlfn.SINGLE(АпрВс1)+21)=4),_xlfn.SINGLE(АпрВс1)+21,\"\"))","v":"2021-04-18"}]
[null,{"$f":"IF(DAY(_xlfn.SINGLE(ЯнвВс1))=1,IF(AND(YEAR(_xlfn.SINGLE(ЯнвВс1)+15)=_xlfn.SINGLE(КалендарныйГод),MONTH(_xlfn.SINGLE(ЯнвВс1)+15)=1),_xlfn.SINGLE(ЯнвВс1)+15,\"\"),IF(AND(YEAR(_xlfn.SINGLE(ЯнвВс1)+22)=_xlfn.SINGLE(КалендарныйГод),MONTH(_xlfn.SINGLE(ЯнвВс1)+22)=1),_xlfn.SINGLE(ЯнвВс1)+22,\"\"))","v":"2021-01-18"},{"$f":"IF(DAY(_xlfn.SINGLE(ЯнвВс1))=1,IF(AND(YEAR(_xlfn.SINGLE(ЯнвВс1)+16)=_xlfn.SINGLE(КалендарныйГод),MONTH(_xlfn.SINGLE(ЯнвВс1)+16)=1),_xlfn.SINGLE(ЯнвВс1)+16,\"\"),IF(AND(YEAR(_xlfn.SINGLE(ЯнвВс1)+23)=_xlfn.SINGLE(КалендарныйГод),MONTH(_xlfn.SINGLE(ЯнвВс1)+23)=1),_xlfn.SINGLE(ЯнвВс1)+23,\"\"))","v":"2021-01-19"},{"$f":"IF(DAY(_xlfn.SINGLE(ЯнвВс1))=1,IF(AND(YEAR(_xlfn.SINGLE(ЯнвВс1)+17)=_xlfn.SINGLE(КалендарныйГод),MONTH(_xlfn.SINGLE(ЯнвВс1)+17)=1),_xlfn.SINGLE(ЯнвВс1)+17,\"\"),IF(AND(YEAR(_xlfn.SINGLE(ЯнвВс1)+24)=_xlfn.SINGLE(КалендарныйГод),MONTH(_xlfn.SINGLE(ЯнвВс1)+24)=1),_xlfn.SINGLE(ЯнвВс1)+24,\"\"))","v":"2021-01-20"},{"$f":"IF(DAY(_xlfn.SINGLE(ЯнвВс1))=1,IF(AND(YEAR(_xlfn.SINGLE(ЯнвВс1)+18)=_xlfn.SINGLE(КалендарныйГод),MONTH(_xlfn.SINGLE(ЯнвВс1)+18)=1),_xlfn.SINGLE(ЯнвВс1)+18,\"\"),IF(AND(YEAR(_xlfn.SINGLE(ЯнвВс1)+25)=_xlfn.SINGLE(КалендарныйГод),MONTH(_xlfn.SINGLE(ЯнвВс1)+25)=1),_xlfn.SINGLE(ЯнвВс1)+25,\"\"))","v":"2021-01-21"},{"$f":"IF(DAY(_xlfn.SINGLE(ЯнвВс1))=1,IF(AND(YEAR(_xlfn.SINGLE(ЯнвВс1)+19)=_xlfn.SINGLE(КалендарныйГод),MONTH(_xlfn.SINGLE(ЯнвВс1)+19)=1),_xlfn.SINGLE(ЯнвВс1)+19,\"\"),IF(AND(YEAR(_xlfn.SINGLE(ЯнвВс1)+26)=_xlfn.SINGLE(КалендарныйГод),MONTH(_xlfn.SINGLE(ЯнвВс1)+26)=1),_xlfn.SINGLE(ЯнвВс1)+26,\"\"))","v":"2021-01-22"},{"$f":"IF(DAY(_xlfn.SINGLE(ЯнвВс1))=1,IF(AND(YEAR(_xlfn.SINGLE(ЯнвВс1)+20)=_xlfn.SINGLE(КалендарныйГод),MONTH(_xlfn.SINGLE(ЯнвВс1)+20)=1),_xlfn.SINGLE(ЯнвВс1)+20,\"\"),IF(AND(YEAR(_xlfn.SINGLE(ЯнвВс1)+27)=_xlfn.SINGLE(КалендарныйГод),MONTH(_xlfn.SINGLE(ЯнвВс1)+27)=1),_xlfn.SINGLE(ЯнвВс1)+27,\"\"))","v":"2021-01-23"},{"$f":"IF(DAY(_xlfn.SINGLE(ЯнвВс1))=1,IF(AND(YEAR(_xlfn.SINGLE(ЯнвВс1)+21)=_xlfn.SINGLE(КалендарныйГод),MONTH(_xlfn.SINGLE(ЯнвВс1)+21)=1),_xlfn.SINGLE(ЯнвВс1)+21,\"\"),IF(AND(YEAR(_xlfn.SINGLE(ЯнвВс1)+28)=_xlfn.SINGLE(КалендарныйГод),MONTH(_xlfn.SINGLE(ЯнвВс1)+28)=1),_xlfn.SINGLE(ЯнвВс1)+28,\"\"))","v":"2021-01-24"},null,{"$f":"IF(DAY(_xlfn.SINGLE(ФевВс1))=1,IF(AND(YEAR(_xlfn.SINGLE(ФевВс1)+15)=_xlfn.SINGLE(КалендарныйГод),MONTH(_xlfn.SINGLE(ФевВс1)+15)=2),_xlfn.SINGLE(ФевВс1)+15,\"\"),IF(AND(YEAR(_xlfn.SINGLE(ФевВс1)+22)=_xlfn.SINGLE(КалендарныйГод),MONTH(_xlfn.SINGLE(ФевВс1)+22)=2),_xlfn.SINGLE(ФевВс1)+22,\"\"))","v":"2021-02-22"},{"$f":"IF(DAY(_xlfn.SINGLE(ФевВс1))=1,IF(AND(YEAR(_xlfn.SINGLE(ФевВс1)+16)=_xlfn.SINGLE(КалендарныйГод),MONTH(_xlfn.SINGLE(ФевВс1)+16)=2),_xlfn.SINGLE(ФевВс1)+16,\"\"),IF(AND(YEAR(_xlfn.SINGLE(ФевВс1)+23)=_xlfn.SINGLE(КалендарныйГод),MONTH(_xlfn.SINGLE(ФевВс1)+23)=2),_xlfn.SINGLE(ФевВс1)+23,\"\"))","v":"2021-02-23"},{"$f":"IF(DAY(_xlfn.SINGLE(ФевВс1))=1,IF(AND(YEAR(_xlfn.SINGLE(ФевВс1)+17)=_xlfn.SINGLE(КалендарныйГод),MONTH(_xlfn.SINGLE(ФевВс1)+17)=2),_xlfn.SINGLE(ФевВс1)+17,\"\"),IF(AND(YEAR(_xlfn.SINGLE(ФевВс1)+24)=_xlfn.SINGLE(КалендарныйГод),MONTH(_xlfn.SINGLE(ФевВс1)+24)=2),_xlfn.SINGLE(ФевВс1)+24,\"\"))","v":"2021-02-24"},{"$f":"IF(DAY(_xlfn.SINGLE(ФевВс1))=1,IF(AND(YEAR(_xlfn.SINGLE(ФевВс1)+18)=_xlfn.SINGLE(КалендарныйГод),MONTH(_xlfn.SINGLE(ФевВс1)+18)=2),_xlfn.SINGLE(ФевВс1)+18,\"\"),IF(AND(YEAR(_xlfn.SINGLE(ФевВс1)+25)=_xlfn.SINGLE(КалендарныйГод),MONTH(_xlfn.SINGLE(ФевВс1)+25)=2),_xlfn.SINGLE(ФевВс1)+25,\"\"))","v":"2021-02-25"},{"$f":"IF(DAY(_xlfn.SINGLE(ФевВс1))=1,IF(AND(YEAR(_xlfn.SINGLE(ФевВс1)+19)=_xlfn.SINGLE(КалендарныйГод),MONTH(_xlfn.SINGLE(ФевВс1)+19)=2),_xlfn.SINGLE(ФевВс1)+19,\"\"),IF(AND(YEAR(_xlfn.SINGLE(ФевВс1)+26)=_xlfn.SINGLE(КалендарныйГод),MONTH(_xlfn.SINGLE(ФевВс1)+26)=2),_xlfn.SINGLE(ФевВс1)+26,\"\"))","v":"2021-02-26"},{"$f":"IF(DAY(_xlfn.SINGLE(ФевВс1))=1,IF(AND(YEAR(_xlfn.SINGLE(ФевВс1)+20)=_xlfn.SINGLE(КалендарныйГод),MONTH(_xlfn.SINGLE(ФевВс1)+20)=2),_xlfn.SINGLE(ФевВс1)+20,\"\"),IF(AND(YEAR(_xlfn.SINGLE(ФевВс1)+27)=_xlfn.SINGLE(КалендарныйГод),MONTH(_xlfn.SINGLE(ФевВс1)+27)=2),_xlfn.SINGLE(ФевВс1)+27,\"\"))","v":"2021-02-27"},{"$f":"IF(DAY(_xlfn.SINGLE(ФевВс1))=1,IF(AND(YEAR(_xlfn.SINGLE(ФевВс1)+21)=_xlfn.SINGLE(КалендарныйГод),MONTH(_xlfn.SINGLE(ФевВс1)+21)=2),_xlfn.SINGLE(ФевВс1)+21,\"\"),IF(AND(YEAR(_xlfn.SINGLE(ФевВс1)+28)=_xlfn.SINGLE(КалендарныйГод),MONTH(_xlfn.SINGLE(ФевВс1)+28)=2),_xlfn.SINGLE(ФевВс1)+28,\"\"))","v":"2021-02-28"},null,{"$f":"IF(DAY(_xlfn.SINGLE(МарВс1))=1,IF(AND(YEAR(_xlfn.SINGLE(МарВс1)+15)=_xlfn.SINGLE(КалендарныйГод),MONTH(_xlfn.SINGLE(МарВс1)+15)=3),_xlfn.SINGLE(МарВс1)+15,\"\"),IF(AND(YEAR(_xlfn.SINGLE(МарВс1)+22)=_xlfn.SINGLE(КалендарныйГод),MONTH(_xlfn.SINGLE(МарВс1)+22)=3),_xlfn.SINGLE(МарВс1)+22,\"\"))","v":"2021-03-22"},{"$f":"IF(DAY(_xlfn.SINGLE(МарВс1))=1,IF(AND(YEAR(_xlfn.SINGLE(МарВс1)+16)=_xlfn.SINGLE(КалендарныйГод),MONTH(_xlfn.SINGLE(МарВс1)+16)=3),_xlfn.SINGLE(МарВс1)+16,\"\"),IF(AND(YEAR(_xlfn.SINGLE(МарВс1)+23)=_xlfn.SINGLE(КалендарныйГод),MONTH(_xlfn.SINGLE(МарВс1)+23)=3),_xlfn.SINGLE(МарВс1)+23,\"\"))","v":"2021-03-23"},{"$f":"IF(DAY(_xlfn.SINGLE(МарВс1))=1,IF(AND(YEAR(_xlfn.SINGLE(МарВс1)+17)=_xlfn.SINGLE(КалендарныйГод),MONTH(_xlfn.SINGLE(МарВс1)+17)=3),_xlfn.SINGLE(МарВс1)+17,\"\"),IF(AND(YEAR(_xlfn.SINGLE(МарВс1)+24)=_xlfn.SINGLE(КалендарныйГод),MONTH(_xlfn.SINGLE(МарВс1)+24)=3),_xlfn.SINGLE(МарВс1)+24,\"\"))","v":"2021-03-24"},{"$f":"IF(DAY(_xlfn.SINGLE(МарВс1))=1,IF(AND(YEAR(_xlfn.SINGLE(МарВс1)+18)=_xlfn.SINGLE(КалендарныйГод),MONTH(_xlfn.SINGLE(МарВс1)+18)=3),_xlfn.SINGLE(МарВс1)+18,\"\"),IF(AND(YEAR(_xlfn.SINGLE(МарВс1)+25)=_xlfn.SINGLE(КалендарныйГод),MONTH(_xlfn.SINGLE(МарВс1)+25)=3),_xlfn.SINGLE(МарВс1)+25,\"\"))","v":"2021-03-25"},{"$f":"IF(DAY(_xlfn.SINGLE(МарВс1))=1,IF(AND(YEAR(_xlfn.SINGLE(МарВс1)+19)=_xlfn.SINGLE(КалендарныйГод),MONTH(_xlfn.SINGLE(МарВс1)+19)=3),_xlfn.SINGLE(МарВс1)+19,\"\"),IF(AND(YEAR(_xlfn.SINGLE(МарВс1)+26)=_xlfn.SINGLE(КалендарныйГод),MONTH(_xlfn.SINGLE(МарВс1)+26)=3),_xlfn.SINGLE(МарВс1)+26,\"\"))","v":"2021-03-26"},{"$f":"IF(DAY(_xlfn.SINGLE(МарВс1))=1,IF(AND(YEAR(_xlfn.SINGLE(МарВс1)+20)=_xlfn.SINGLE(КалендарныйГод),MONTH(_xlfn.SINGLE(МарВс1)+20)=3),_xlfn.SINGLE(МарВс1)+20,\"\"),IF(AND(YEAR(_xlfn.SINGLE(МарВс1)+27)=_xlfn.SINGLE(КалендарныйГод),MONTH(_xlfn.SINGLE(МарВс1)+27)=3),_xlfn.SINGLE(МарВс1)+27,\"\"))","v":"2021-03-27"},{"$f":"IF(DAY(_xlfn.SINGLE(МарВс1))=1,IF(AND(YEAR(_xlfn.SINGLE(МарВс1)+21)=_xlfn.SINGLE(КалендарныйГод),MONTH(_xlfn.SINGLE(МарВс1)+21)=3),_xlfn.SINGLE(МарВс1)+21,\"\"),IF(AND(YEAR(_xlfn.SINGLE(МарВс1)+28)=_xlfn.SINGLE(КалендарныйГод),MONTH(_xlfn.SINGLE(МарВс1)+28)=3),_xlfn.SINGLE(МарВс1)+28,\"\"))","v":"2021-03-28"},null,{"$f":"IF(DAY(_xlfn.SINGLE(АпрВс1))=1,IF(AND(YEAR(_xlfn.SINGLE(АпрВс1)+15)=_xlfn.SINGLE(КалендарныйГод),MONTH(_xlfn.SINGLE(АпрВс1)+15)=4),_xlfn.SINGLE(АпрВс1)+15,\"\"),IF(AND(YEAR(_xlfn.SINGLE(АпрВс1)+22)=_xlfn.SINGLE(КалендарныйГод),MONTH(_xlfn.SINGLE(АпрВс1)+22)=4),_xlfn.SINGLE(АпрВс1)+22,\"\"))","v":"2021-04-19"},{"$f":"IF(DAY(_xlfn.SINGLE(АпрВс1))=1,IF(AND(YEAR(_xlfn.SINGLE(АпрВс1)+16)=_xlfn.SINGLE(КалендарныйГод),MONTH(_xlfn.SINGLE(АпрВс1)+16)=4),_xlfn.SINGLE(АпрВс1)+16,\"\"),IF(AND(YEAR(_xlfn.SINGLE(АпрВс1)+23)=_xlfn.SINGLE(КалендарныйГод),MONTH(_xlfn.SINGLE(АпрВс1)+23)=4),_xlfn.SINGLE(АпрВс1)+23,\"\"))","v":"2021-04-20"},{"$f":"IF(DAY(_xlfn.SINGLE(АпрВс1))=1,IF(AND(YEAR(_xlfn.SINGLE(АпрВс1)+17)=_xlfn.SINGLE(КалендарныйГод),MONTH(_xlfn.SINGLE(АпрВс1)+17)=4),_xlfn.SINGLE(АпрВс1)+17,\"\"),IF(AND(YEAR(_xlfn.SINGLE(АпрВс1)+24)=_xlfn.SINGLE(КалендарныйГод),MONTH(_xlfn.SINGLE(АпрВс1)+24)=4),_xlfn.SINGLE(АпрВс1)+24,\"\"))","v":"2021-04-21"},{"$f":"IF(DAY(_xlfn.SINGLE(АпрВс1))=1,IF(AND(YEAR(_xlfn.SINGLE(АпрВс1)+18)=_xlfn.SINGLE(КалендарныйГод),MONTH(_xlfn.SINGLE(АпрВс1)+18)=4),_xlfn.SINGLE(АпрВс1)+18,\"\"),IF(AND(YEAR(_xlfn.SINGLE(АпрВс1)+25)=_xlfn.SINGLE(КалендарныйГод),MONTH(_xlfn.SINGLE(АпрВс1)+25)=4),_xlfn.SINGLE(АпрВс1)+25,\"\"))","v":"2021-04-22"},{"$f":"IF(DAY(_xlfn.SINGLE(АпрВс1))=1,IF(AND(YEAR(_xlfn.SINGLE(АпрВс1)+19)=_xlfn.SINGLE(КалендарныйГод),MONTH(_xlfn.SINGLE(АпрВс1)+19)=4),_xlfn.SINGLE(АпрВс1)+19,\"\"),IF(AND(YEAR(_xlfn.SINGLE(АпрВс1)+26)=_xlfn.SINGLE(КалендарныйГод),MONTH(_xlfn.SINGLE(АпрВс1)+26)=4),_xlfn.SINGLE(АпрВс1)+26,\"\"))","v":"2021-04-23"},{"$f":"IF(DAY(_xlfn.SINGLE(АпрВс1))=1,IF(AND(YEAR(_xlfn.SINGLE(АпрВс1)+20)=_xlfn.SINGLE(КалендарныйГод),MONTH(_xlfn.SINGLE(АпрВс1)+20)=4),_xlfn.SINGLE(АпрВс1)+20,\"\"),IF(AND(YEAR(_xlfn.SINGLE(АпрВс1)+27)=_xlfn.SINGLE(КалендарныйГод),MONTH(_xlfn.SINGLE(АпрВс1)+27)=4),_xlfn.SINGLE(АпрВс1)+27,\"\"))","v":"2021-04-24"},{"$f":"IF(DAY(_xlfn.SINGLE(АпрВс1))=1,IF(AND(YEAR(_xlfn.SINGLE(АпрВс1)+21)=_xlfn.SINGLE(КалендарныйГод),MONTH(_xlfn.SINGLE(АпрВс1)+21)=4),_xlfn.SINGLE(АпрВс1)+21,\"\"),IF(AND(YEAR(_xlfn.SINGLE(АпрВс1)+28)=_xlfn.SINGLE(КалендарныйГод),MONTH(_xlfn.SINGLE(АпрВс1)+28)=4),_xlfn.SINGLE(АпрВс1)+28,\"\"))","v":"2021-04-25"}]
[null,{"$f":"IF(DAY(_xlfn.SINGLE(ЯнвВс1))=1,IF(AND(YEAR(_xlfn.SINGLE(ЯнвВс1)+22)=_xlfn.SINGLE(КалендарныйГод),MONTH(_xlfn.SINGLE(ЯнвВс1)+22)=1),_xlfn.SINGLE(ЯнвВс1)+22,\"\"),IF(AND(YEAR(_xlfn.SINGLE(ЯнвВс1)+29)=_xlfn.SINGLE(КалендарныйГод),MONTH(_xlfn.SINGLE(ЯнвВс1)+29)=1),_xlfn.SINGLE(ЯнвВс1)+29,\"\"))","v":"2021-01-25"},{"$f":"IF(DAY(_xlfn.SINGLE(ЯнвВс1))=1,IF(AND(YEAR(_xlfn.SINGLE(ЯнвВс1)+23)=_xlfn.SINGLE(КалендарныйГод),MONTH(_xlfn.SINGLE(ЯнвВс1)+23)=1),_xlfn.SINGLE(ЯнвВс1)+23,\"\"),IF(AND(YEAR(_xlfn.SINGLE(ЯнвВс1)+30)=_xlfn.SINGLE(КалендарныйГод),MONTH(_xlfn.SINGLE(ЯнвВс1)+30)=1),_xlfn.SINGLE(ЯнвВс1)+30,\"\"))","v":"2021-01-26"},{"$f":"IF(DAY(_xlfn.SINGLE(ЯнвВс1))=1,IF(AND(YEAR(_xlfn.SINGLE(ЯнвВс1)+24)=_xlfn.SINGLE(КалендарныйГод),MONTH(_xlfn.SINGLE(ЯнвВс1)+24)=1),_xlfn.SINGLE(ЯнвВс1)+24,\"\"),IF(AND(YEAR(_xlfn.SINGLE(ЯнвВс1)+31)=_xlfn.SINGLE(КалендарныйГод),MONTH(_xlfn.SINGLE(ЯнвВс1)+31)=1),_xlfn.SINGLE(ЯнвВс1)+31,\"\"))","v":"2021-01-27"},{"$f":"IF(DAY(_xlfn.SINGLE(ЯнвВс1))=1,IF(AND(YEAR(_xlfn.SINGLE(ЯнвВс1)+25)=_xlfn.SINGLE(КалендарныйГод),MONTH(_xlfn.SINGLE(ЯнвВс1)+25)=1),_xlfn.SINGLE(ЯнвВс1)+25,\"\"),IF(AND(YEAR(_xlfn.SINGLE(ЯнвВс1)+32)=_xlfn.SINGLE(КалендарныйГод),MONTH(_xlfn.SINGLE(ЯнвВс1)+32)=1),_xlfn.SINGLE(ЯнвВс1)+32,\"\"))","v":"2021-01-28"},{"$f":"IF(DAY(_xlfn.SINGLE(ЯнвВс1))=1,IF(AND(YEAR(_xlfn.SINGLE(ЯнвВс1)+26)=_xlfn.SINGLE(КалендарныйГод),MONTH(_xlfn.SINGLE(ЯнвВс1)+26)=1),_xlfn.SINGLE(ЯнвВс1)+26,\"\"),IF(AND(YEAR(_xlfn.SINGLE(ЯнвВс1)+33)=_xlfn.SINGLE(КалендарныйГод),MONTH(_xlfn.SINGLE(ЯнвВс1)+33)=1),_xlfn.SINGLE(ЯнвВс1)+33,\"\"))","v":"2021-01-29"},{"$f":"IF(DAY(_xlfn.SINGLE(ЯнвВс1))=1,IF(AND(YEAR(_xlfn.SINGLE(ЯнвВс1)+27)=_xlfn.SINGLE(КалендарныйГод),MONTH(_xlfn.SINGLE(ЯнвВс1)+27)=1),_xlfn.SINGLE(ЯнвВс1)+27,\"\"),IF(AND(YEAR(_xlfn.SINGLE(ЯнвВс1)+34)=_xlfn.SINGLE(КалендарныйГод),MONTH(_xlfn.SINGLE(ЯнвВс1)+34)=1),_xlfn.SINGLE(ЯнвВс1)+34,\"\"))","v":"2021-01-30"},{"$f":"IF(DAY(_xlfn.SINGLE(ЯнвВс1))=1,IF(AND(YEAR(_xlfn.SINGLE(ЯнвВс1)+28)=_xlfn.SINGLE(КалендарныйГод),MONTH(_xlfn.SINGLE(ЯнвВс1)+28)=1),_xlfn.SINGLE(ЯнвВс1)+28,\"\"),IF(AND(YEAR(_xlfn.SINGLE(ЯнвВс1)+35)=_xlfn.SINGLE(КалендарныйГод),MONTH(_xlfn.SINGLE(ЯнвВс1)+35)=1),_xlfn.SINGLE(ЯнвВс1)+35,\"\"))","v":"2021-01-31"},null,{"$f":"IF(DAY(_xlfn.SINGLE(ФевВс1))=1,IF(AND(YEAR(_xlfn.SINGLE(ФевВс1)+22)=_xlfn.SINGLE(КалендарныйГод),MONTH(_xlfn.SINGLE(ФевВс1)+22)=2),_xlfn.SINGLE(ФевВс1)+22,\"\"),IF(AND(YEAR(_xlfn.SINGLE(ФевВс1)+29)=_xlfn.SINGLE(КалендарныйГод),MONTH(_xlfn.SINGLE(ФевВс1)+29)=2),_xlfn.SINGLE(ФевВс1)+29,\"\"))","v":""},{"$f":"IF(DAY(_xlfn.SINGLE(ФевВс1))=1,IF(AND(YEAR(_xlfn.SINGLE(ФевВс1)+23)=_xlfn.SINGLE(КалендарныйГод),MONTH(_xlfn.SINGLE(ФевВс1)+23)=2),_xlfn.SINGLE(ФевВс1)+23,\"\"),IF(AND(YEAR(_xlfn.SINGLE(ФевВс1)+30)=_xlfn.SINGLE(КалендарныйГод),MONTH(_xlfn.SINGLE(ФевВс1)+30)=2),_xlfn.SINGLE(ФевВс1)+30,\"\"))","v":""},{"$f":"IF(DAY(_xlfn.SINGLE(ФевВс1))=1,IF(AND(YEAR(_xlfn.SINGLE(ФевВс1)+24)=_xlfn.SINGLE(КалендарныйГод),MONTH(_xlfn.SINGLE(ФевВс1)+24)=2),_xlfn.SINGLE(ФевВс1)+24,\"\"),IF(AND(YEAR(_xlfn.SINGLE(ФевВс1)+31)=_xlfn.SINGLE(КалендарныйГод),MONTH(_xlfn.SINGLE(ФевВс1)+31)=2),_xlfn.SINGLE(ФевВс1)+31,\"\"))","v":""},{"$f":"IF(DAY(_xlfn.SINGLE(ФевВс1))=1,IF(AND(YEAR(_xlfn.SINGLE(ФевВс1)+25)=_xlfn.SINGLE(КалендарныйГод),MONTH(_xlfn.SINGLE(ФевВс1)+25)=2),_xlfn.SINGLE(ФевВс1)+25,\"\"),IF(AND(YEAR(_xlfn.SINGLE(ФевВс1)+32)=_xlfn.SINGLE(КалендарныйГод),MONTH(_xlfn.SINGLE(ФевВс1)+32)=2),_xlfn.SINGLE(ФевВс1)+32,\"\"))","v":""},{"$f":"IF(DAY(_xlfn.SINGLE(ФевВс1))=1,IF(AND(YEAR(_xlfn.SINGLE(ФевВс1)+26)=_xlfn.SINGLE(КалендарныйГод),MONTH(_xlfn.SINGLE(ФевВс1)+26)=2),_xlfn.SINGLE(ФевВс1)+26,\"\"),IF(AND(YEAR(_xlfn.SINGLE(ФевВс1)+33)=_xlfn.SINGLE(КалендарныйГод),MONTH(_xlfn.SINGLE(ФевВс1)+33)=2),_xlfn.SINGLE(ФевВс1)+33,\"\"))","v":""},{"$f":"IF(DAY(_xlfn.SINGLE(ФевВс1))=1,IF(AND(YEAR(_xlfn.SINGLE(ФевВс1)+27)=_xlfn.SINGLE(КалендарныйГод),MONTH(_xlfn.SINGLE(ФевВс1)+27)=2),_xlfn.SINGLE(ФевВс1)+27,\"\"),IF(AND(YEAR(_xlfn.SINGLE(ФевВс1)+34)=_xlfn.SINGLE(КалендарныйГод),MONTH(_xlfn.SINGLE(ФевВс1)+34)=2),_xlfn.SINGLE(ФевВс1)+34,\"\"))","v":""},{"$f":"IF(DAY(_xlfn.SINGLE(ФевВс1))=1,IF(AND(YEAR(_xlfn.SINGLE(ФевВс1)+28)=_xlfn.SINGLE(КалендарныйГод),MONTH(_xlfn.SINGLE(ФевВс1)+28)=2),_xlfn.SINGLE(ФевВс1)+28,\"\"),IF(AND(YEAR(_xlfn.SINGLE(ФевВс1)+35)=_xlfn.SINGLE(КалендарныйГод),MONTH(_xlfn.SINGLE(ФевВс1)+35)=2),_xlfn.SINGLE(ФевВс1)+35,\"\"))","v":""},null,{"$f":"IF(DAY(_xlfn.SINGLE(МарВс1))=1,IF(AND(YEAR(_xlfn.SINGLE(МарВс1)+22)=_xlfn.SINGLE(КалендарныйГод),MONTH(_xlfn.SINGLE(МарВс1)+22)=3),_xlfn.SINGLE(МарВс1)+22,\"\"),IF(AND(YEAR(_xlfn.SINGLE(МарВс1)+29)=_xlfn.SINGLE(КалендарныйГод),MONTH(_xlfn.SINGLE(МарВс1)+29)=3),_xlfn.SINGLE(МарВс1)+29,\"\"))","v":"2021-03-29"},{"$f":"IF(DAY(_xlfn.SINGLE(МарВс1))=1,IF(AND(YEAR(_xlfn.SINGLE(МарВс1)+23)=_xlfn.SINGLE(КалендарныйГод),MONTH(_xlfn.SINGLE(МарВс1)+23)=3),_xlfn.SINGLE(МарВс1)+23,\"\"),IF(AND(YEAR(_xlfn.SINGLE(МарВс1)+30)=_xlfn.SINGLE(КалендарныйГод),MONTH(_xlfn.SINGLE(МарВс1)+30)=3),_xlfn.SINGLE(МарВс1)+30,\"\"))","v":"2021-03-30"},{"$f":"IF(DAY(_xlfn.SINGLE(МарВс1))=1,IF(AND(YEAR(_xlfn.SINGLE(МарВс1)+24)=_xlfn.SINGLE(КалендарныйГод),MONTH(_xlfn.SINGLE(МарВс1)+24)=3),_xlfn.SINGLE(МарВс1)+24,\"\"),IF(AND(YEAR(_xlfn.SINGLE(МарВс1)+31)=_xlfn.SINGLE(КалендарныйГод),MONTH(_xlfn.SINGLE(МарВс1)+31)=3),_xlfn.SINGLE(МарВс1)+31,\"\"))","v":"2021-03-31"},{"$f":"IF(DAY(_xlfn.SINGLE(МарВс1))=1,IF(AND(YEAR(_xlfn.SINGLE(МарВс1)+25)=_xlfn.SINGLE(КалендарныйГод),MONTH(_xlfn.SINGLE(МарВс1)+25)=3),_xlfn.SINGLE(МарВс1)+25,\"\"),IF(AND(YEAR(_xlfn.SINGLE(МарВс1)+32)=_xlfn.SINGLE(КалендарныйГод),MONTH(_xlfn.SINGLE(МарВс1)+32)=3),_xlfn.SINGLE(МарВс1)+32,\"\"))","v":""},{"$f":"IF(DAY(_xlfn.SINGLE(МарВс1))=1,IF(AND(YEAR(_xlfn.SINGLE(МарВс1)+26)=_xlfn.SINGLE(КалендарныйГод),MONTH(_xlfn.SINGLE(МарВс1)+26)=3),_xlfn.SINGLE(МарВс1)+26,\"\"),IF(AND(YEAR(_xlfn.SINGLE(МарВс1)+33)=_xlfn.SINGLE(КалендарныйГод),MONTH(_xlfn.SINGLE(МарВс1)+33)=3),_xlfn.SINGLE(МарВс1)+33,\"\"))","v":""},{"$f":"IF(DAY(_xlfn.SINGLE(МарВс1))=1,IF(AND(YEAR(_xlfn.SINGLE(МарВс1)+27)=_xlfn.SINGLE(КалендарныйГод),MONTH(_xlfn.SINGLE(МарВс1)+27)=3),_xlfn.SINGLE(МарВс1)+27,\"\"),IF(AND(YEAR(_xlfn.SINGLE(МарВс1)+34)=_xlfn.SINGLE(КалендарныйГод),MONTH(_xlfn.SINGLE(МарВс1)+34)=3),_xlfn.SINGLE(МарВс1)+34,\"\"))","v":""},{"$f":"IF(DAY(_xlfn.SINGLE(МарВс1))=1,IF(AND(YEAR(_xlfn.SINGLE(МарВс1)+28)=_xlfn.SINGLE(КалендарныйГод),MONTH(_xlfn.SINGLE(МарВс1)+28)=3),_xlfn.SINGLE(МарВс1)+28,\"\"),IF(AND(YEAR(_xlfn.SINGLE(МарВс1)+35)=_xlfn.SINGLE(КалендарныйГод),MONTH(_xlfn.SINGLE(МарВс1)+35)=3),_xlfn.SINGLE(МарВс1)+35,\"\"))","v":""},null,{"$f":"IF(DAY(_xlfn.SINGLE(АпрВс1))=1,IF(AND(YEAR(_xlfn.SINGLE(АпрВс1)+22)=_xlfn.SINGLE(КалендарныйГод),MONTH(_xlfn.SINGLE(АпрВс1)+22)=4),_xlfn.SINGLE(АпрВс1)+22,\"\"),IF(AND(YEAR(_xlfn.SINGLE(АпрВс1)+29)=_xlfn.SINGLE(КалендарныйГод),MONTH(_xlfn.SINGLE(АпрВс1)+29)=4),_xlfn.SINGLE(АпрВс1)+29,\"\"))","v":"2021-04-26"},{"$f":"IF(DAY(_xlfn.SINGLE(АпрВс1))=1,IF(AND(YEAR(_xlfn.SINGLE(АпрВс1)+23)=_xlfn.SINGLE(КалендарныйГод),MONTH(_xlfn.SINGLE(АпрВс1)+23)=4),_xlfn.SINGLE(АпрВс1)+23,\"\"),IF(AND(YEAR(_xlfn.SINGLE(АпрВс1)+30)=_xlfn.SINGLE(КалендарныйГод),MONTH(_xlfn.SINGLE(АпрВс1)+30)=4),_xlfn.SINGLE(АпрВс1)+30,\"\"))","v":"2021-04-27"},{"$f":"IF(DAY(_xlfn.SINGLE(АпрВс1))=1,IF(AND(YEAR(_xlfn.SINGLE(АпрВс1)+24)=_xlfn.SINGLE(КалендарныйГод),MONTH(_xlfn.SINGLE(АпрВс1)+24)=4),_xlfn.SINGLE(АпрВс1)+24,\"\"),IF(AND(YEAR(_xlfn.SINGLE(АпрВс1)+31)=_xlfn.SINGLE(КалендарныйГод),MONTH(_xlfn.SINGLE(АпрВс1)+31)=4),_xlfn.SINGLE(АпрВс1)+31,\"\"))","v":"2021-04-28"},{"$f":"IF(DAY(_xlfn.SINGLE(АпрВс1))=1,IF(AND(YEAR(_xlfn.SINGLE(АпрВс1)+25)=_xlfn.SINGLE(КалендарныйГод),MONTH(_xlfn.SINGLE(АпрВс1)+25)=4),_xlfn.SINGLE(АпрВс1)+25,\"\"),IF(AND(YEAR(_xlfn.SINGLE(АпрВс1)+32)=_xlfn.SINGLE(КалендарныйГод),MONTH(_xlfn.SINGLE(АпрВс1)+32)=4),_xlfn.SINGLE(АпрВс1)+32,\"\"))","v":"2021-04-29"},{"$f":"IF(DAY(_xlfn.SINGLE(АпрВс1))=1,IF(AND(YEAR(_xlfn.SINGLE(АпрВс1)+26)=_xlfn.SINGLE(КалендарныйГод),MONTH(_xlfn.SINGLE(АпрВс1)+26)=4),_xlfn.SINGLE(АпрВс1)+26,\"\"),IF(AND(YEAR(_xlfn.SINGLE(АпрВс1)+33)=_xlfn.SINGLE(КалендарныйГод),MONTH(_xlfn.SINGLE(АпрВс1)+33)=4),_xlfn.SINGLE(АпрВс1)+33,\"\"))","v":"2021-04-30"},{"$f":"IF(DAY(_xlfn.SINGLE(АпрВс1))=1,IF(AND(YEAR(_xlfn.SINGLE(АпрВс1)+27)=_xlfn.SINGLE(КалендарныйГод),MONTH(_xlfn.SINGLE(АпрВс1)+27)=4),_xlfn.SINGLE(АпрВс1)+27,\"\"),IF(AND(YEAR(_xlfn.SINGLE(АпрВс1)+34)=_xlfn.SINGLE(КалендарныйГод),MONTH(_xlfn.SINGLE(АпрВс1)+34)=4),_xlfn.SINGLE(АпрВс1)+34,\"\"))","v":""},{"$f":"IF(DAY(_xlfn.SINGLE(АпрВс1))=1,IF(AND(YEAR(_xlfn.SINGLE(АпрВс1)+28)=_xlfn.SINGLE(КалендарныйГод),MONTH(_xlfn.SINGLE(АпрВс1)+28)=4),_xlfn.SINGLE(АпрВс1)+28,\"\"),IF(AND(YEAR(_xlfn.SINGLE(АпрВс1)+35)=_xlfn.SINGLE(КалендарныйГод),MONTH(_xlfn.SINGLE(АпрВс1)+35)=4),_xlfn.SINGLE(АпрВс1)+35,\"\"))","v":""}]
[null,{"$f":"IF(DAY(_xlfn.SINGLE(ЯнвВс1))=1,IF(AND(YEAR(_xlfn.SINGLE(ЯнвВс1)+29)=_xlfn.SINGLE(КалендарныйГод),MONTH(_xlfn.SINGLE(ЯнвВс1)+29)=1),_xlfn.SINGLE(ЯнвВс1)+29,\"\"),IF(AND(YEAR(_xlfn.SINGLE(ЯнвВс1)+36)=_xlfn.SINGLE(КалендарныйГод),MONTH(_xlfn.SINGLE(ЯнвВс1)+36)=1),_xlfn.SINGLE(ЯнвВс1)+36,\"\"))","v":""},{"$f":"IF(DAY(_xlfn.SINGLE(ЯнвВс1))=1,IF(AND(YEAR(_xlfn.SINGLE(ЯнвВс1)+30)=_xlfn.SINGLE(КалендарныйГод),MONTH(_xlfn.SINGLE(ЯнвВс1)+30)=1),_xlfn.SINGLE(ЯнвВс1)+30,\"\"),IF(AND(YEAR(_xlfn.SINGLE(ЯнвВс1)+37)=_xlfn.SINGLE(КалендарныйГод),MONTH(_xlfn.SINGLE(ЯнвВс1)+37)=1),_xlfn.SINGLE(ЯнвВс1)+37,\"\"))","v":""},{"$f":"IF(DAY(_xlfn.SINGLE(ЯнвВс1))=1,IF(AND(YEAR(_xlfn.SINGLE(ЯнвВс1)+31)=_xlfn.SINGLE(КалендарныйГод),MONTH(_xlfn.SINGLE(ЯнвВс1)+31)=1),_xlfn.SINGLE(ЯнвВс1)+31,\"\"),IF(AND(YEAR(_xlfn.SINGLE(ЯнвВс1)+38)=_xlfn.SINGLE(КалендарныйГод),MONTH(_xlfn.SINGLE(ЯнвВс1)+38)=1),_xlfn.SINGLE(ЯнвВс1)+38,\"\"))","v":""},{"$f":"IF(DAY(_xlfn.SINGLE(ЯнвВс1))=1,IF(AND(YEAR(_xlfn.SINGLE(ЯнвВс1)+32)=_xlfn.SINGLE(КалендарныйГод),MONTH(_xlfn.SINGLE(ЯнвВс1)+32)=1),_xlfn.SINGLE(ЯнвВс1)+32,\"\"),IF(AND(YEAR(_xlfn.SINGLE(ЯнвВс1)+39)=_xlfn.SINGLE(КалендарныйГод),MONTH(_xlfn.SINGLE(ЯнвВс1)+39)=1),_xlfn.SINGLE(ЯнвВс1)+39,\"\"))","v":""},{"$f":"IF(DAY(_xlfn.SINGLE(ЯнвВс1))=1,IF(AND(YEAR(_xlfn.SINGLE(ЯнвВс1)+33)=_xlfn.SINGLE(КалендарныйГод),MONTH(_xlfn.SINGLE(ЯнвВс1)+33)=1),_xlfn.SINGLE(ЯнвВс1)+33,\"\"),IF(AND(YEAR(_xlfn.SINGLE(ЯнвВс1)+40)=_xlfn.SINGLE(КалендарныйГод),MONTH(_xlfn.SINGLE(ЯнвВс1)+40)=1),_xlfn.SINGLE(ЯнвВс1)+40,\"\"))","v":""},{"$f":"IF(DAY(_xlfn.SINGLE(ЯнвВс1))=1,IF(AND(YEAR(_xlfn.SINGLE(ЯнвВс1)+34)=_xlfn.SINGLE(КалендарныйГод),MONTH(_xlfn.SINGLE(ЯнвВс1)+34)=1),_xlfn.SINGLE(ЯнвВс1)+34,\"\"),IF(AND(YEAR(_xlfn.SINGLE(ЯнвВс1)+41)=_xlfn.SINGLE(КалендарныйГод),MONTH(_xlfn.SINGLE(ЯнвВс1)+41)=1),_xlfn.SINGLE(ЯнвВс1)+41,\"\"))","v":""},{"$f":"IF(DAY(_xlfn.SINGLE(ЯнвВс1))=1,IF(AND(YEAR(_xlfn.SINGLE(ЯнвВс1)+35)=_xlfn.SINGLE(КалендарныйГод),MONTH(_xlfn.SINGLE(ЯнвВс1)+35)=1),_xlfn.SINGLE(ЯнвВс1)+35,\"\"),IF(AND(YEAR(_xlfn.SINGLE(ЯнвВс1)+42)=_xlfn.SINGLE(КалендарныйГод),MONTH(_xlfn.SINGLE(ЯнвВс1)+42)=1),_xlfn.SINGLE(ЯнвВс1)+42,\"\"))","v":""},null,{"$f":"IF(DAY(_xlfn.SINGLE(ФевВс1))=1,IF(AND(YEAR(_xlfn.SINGLE(ФевВс1)+29)=_xlfn.SINGLE(КалендарныйГод),MONTH(_xlfn.SINGLE(ФевВс1)+29)=2),_xlfn.SINGLE(ФевВс1)+29,\"\"),IF(AND(YEAR(_xlfn.SINGLE(ФевВс1)+36)=_xlfn.SINGLE(КалендарныйГод),MONTH(_xlfn.SINGLE(ФевВс1)+36)=2),_xlfn.SINGLE(ФевВс1)+36,\"\"))","v":""},{"$f":"IF(DAY(_xlfn.SINGLE(ФевВс1))=1,IF(AND(YEAR(_xlfn.SINGLE(ФевВс1)+30)=_xlfn.SINGLE(КалендарныйГод),MONTH(_xlfn.SINGLE(ФевВс1)+30)=2),_xlfn.SINGLE(ФевВс1)+30,\"\"),IF(AND(YEAR(_xlfn.SINGLE(ФевВс1)+37)=_xlfn.SINGLE(КалендарныйГод),MONTH(_xlfn.SINGLE(ФевВс1)+37)=2),_xlfn.SINGLE(ФевВс1)+37,\"\"))","v":""},{"$f":"IF(DAY(_xlfn.SINGLE(ФевВс1))=1,IF(AND(YEAR(_xlfn.SINGLE(ФевВс1)+31)=_xlfn.SINGLE(КалендарныйГод),MONTH(_xlfn.SINGLE(ФевВс1)+31)=2),_xlfn.SINGLE(ФевВс1)+31,\"\"),IF(AND(YEAR(_xlfn.SINGLE(ФевВс1)+38)=_xlfn.SINGLE(КалендарныйГод),MONTH(_xlfn.SINGLE(ФевВс1)+38)=2),_xlfn.SINGLE(ФевВс1)+38,\"\"))","v":""},{"$f":"IF(DAY(_xlfn.SINGLE(ФевВс1))=1,IF(AND(YEAR(_xlfn.SINGLE(ФевВс1)+32)=_xlfn.SINGLE(КалендарныйГод),MONTH(_xlfn.SINGLE(ФевВс1)+32)=2),_xlfn.SINGLE(ФевВс1)+32,\"\"),IF(AND(YEAR(_xlfn.SINGLE(ФевВс1)+39)=_xlfn.SINGLE(КалендарныйГод),MONTH(_xlfn.SINGLE(ФевВс1)+39)=2),_xlfn.SINGLE(ФевВс1)+39,\"\"))","v":""},{"$f":"IF(DAY(_xlfn.SINGLE(ФевВс1))=1,IF(AND(YEAR(_xlfn.SINGLE(ФевВс1)+33)=_xlfn.SINGLE(КалендарныйГод),MONTH(_xlfn.SINGLE(ФевВс1)+33)=2),_xlfn.SINGLE(ФевВс1)+33,\"\"),IF(AND(YEAR(_xlfn.SINGLE(ФевВс1)+40)=_xlfn.SINGLE(КалендарныйГод),MONTH(_xlfn.SINGLE(ФевВс1)+40)=2),_xlfn.SINGLE(ФевВс1)+40,\"\"))","v":""},{"$f":"IF(DAY(_xlfn.SINGLE(ФевВс1))=1,IF(AND(YEAR(_xlfn.SINGLE(ФевВс1)+34)=_xlfn.SINGLE(КалендарныйГод),MONTH(_xlfn.SINGLE(ФевВс1)+34)=2),_xlfn.SINGLE(ФевВс1)+34,\"\"),IF(AND(YEAR(_xlfn.SINGLE(ФевВс1)+41)=_xlfn.SINGLE(КалендарныйГод),MONTH(_xlfn.SINGLE(ФевВс1)+41)=2),_xlfn.SINGLE(ФевВс1)+41,\"\"))","v":""},{"$f":"IF(DAY(_xlfn.SINGLE(ФевВс1))=1,IF(AND(YEAR(_xlfn.SINGLE(ФевВс1)+35)=_xlfn.SINGLE(КалендарныйГод),MONTH(_xlfn.SINGLE(ФевВс1)+35)=2),_xlfn.SINGLE(ФевВс1)+35,\"\"),IF(AND(YEAR(_xlfn.SINGLE(ФевВс1)+42)=_xlfn.SINGLE(КалендарныйГод),MONTH(_xlfn.SINGLE(ФевВс1)+42)=2),_xlfn.SINGLE(ФевВс1)+42,\"\"))","v":""},null,{"$f":"IF(DAY(_xlfn.SINGLE(МарВс1))=1,IF(AND(YEAR(_xlfn.SINGLE(МарВс1)+29)=_xlfn.SINGLE(КалендарныйГод),MONTH(_xlfn.SINGLE(МарВс1)+29)=3),_xlfn.SINGLE(МарВс1)+29,\"\"),IF(AND(YEAR(_xlfn.SINGLE(МарВс1)+36)=_xlfn.SINGLE(КалендарныйГод),MONTH(_xlfn.SINGLE(МарВс1)+36)=3),_xlfn.SINGLE(МарВс1)+36,\"\"))","v":""},{"$f":"IF(DAY(_xlfn.SINGLE(МарВс1))=1,IF(AND(YEAR(_xlfn.SINGLE(МарВс1)+30)=_xlfn.SINGLE(КалендарныйГод),MONTH(_xlfn.SINGLE(МарВс1)+30)=3),_xlfn.SINGLE(МарВс1)+30,\"\"),IF(AND(YEAR(_xlfn.SINGLE(МарВс1)+37)=_xlfn.SINGLE(КалендарныйГод),MONTH(_xlfn.SINGLE(МарВс1)+37)=3),_xlfn.SINGLE(МарВс1)+37,\"\"))","v":""},{"$f":"IF(DAY(_xlfn.SINGLE(МарВс1))=1,IF(AND(YEAR(_xlfn.SINGLE(МарВс1)+31)=_xlfn.SINGLE(КалендарныйГод),MONTH(_xlfn.SINGLE(МарВс1)+31)=3),_xlfn.SINGLE(МарВс1)+31,\"\"),IF(AND(YEAR(_xlfn.SINGLE(МарВс1)+38)=_xlfn.SINGLE(КалендарныйГод),MONTH(_xlfn.SINGLE(МарВс1)+38)=3),_xlfn.SINGLE(МарВс1)+38,\"\"))","v":""},{"$f":"IF(DAY(_xlfn.SINGLE(МарВс1))=1,IF(AND(YEAR(_xlfn.SINGLE(МарВс1)+32)=_xlfn.SINGLE(КалендарныйГод),MONTH(_xlfn.SINGLE(МарВс1)+32)=3),_xlfn.SINGLE(МарВс1)+32,\"\"),IF(AND(YEAR(_xlfn.SINGLE(МарВс1)+39)=_xlfn.SINGLE(КалендарныйГод),MONTH(_xlfn.SINGLE(МарВс1)+39)=3),_xlfn.SINGLE(МарВс1)+39,\"\"))","v":""},{"$f":"IF(DAY(_xlfn.SINGLE(МарВс1))=1,IF(AND(YEAR(_xlfn.SINGLE(МарВс1)+33)=_xlfn.SINGLE(КалендарныйГод),MONTH(_xlfn.SINGLE(МарВс1)+33)=3),_xlfn.SINGLE(МарВс1)+33,\"\"),IF(AND(YEAR(_xlfn.SINGLE(МарВс1)+40)=_xlfn.SINGLE(КалендарныйГод),MONTH(_xlfn.SINGLE(МарВс1)+40)=3),_xlfn.SINGLE(МарВс1)+40,\"\"))","v":""},{"$f":"IF(DAY(_xlfn.SINGLE(МарВс1))=1,IF(AND(YEAR(_xlfn.SINGLE(МарВс1)+34)=_xlfn.SINGLE(КалендарныйГод),MONTH(_xlfn.SINGLE(МарВс1)+34)=3),_xlfn.SINGLE(МарВс1)+34,\"\"),IF(AND(YEAR(_xlfn.SINGLE(МарВс1)+41)=_xlfn.SINGLE(КалендарныйГод),MONTH(_xlfn.SINGLE(МарВс1)+41)=3),_xlfn.SINGLE(МарВс1)+41,\"\"))","v":""},{"$f":"IF(DAY(_xlfn.SINGLE(МарВс1))=1,IF(AND(YEAR(_xlfn.SINGLE(МарВс1)+35)=_xlfn.SINGLE(КалендарныйГод),MONTH(_xlfn.SINGLE(МарВс1)+35)=3),_xlfn.SINGLE(МарВс1)+35,\"\"),IF(AND(YEAR(_xlfn.SINGLE(МарВс1)+42)=_xlfn.SINGLE(КалендарныйГод),MONTH(_xlfn.SINGLE(МарВс1)+42)=3),_xlfn.SINGLE(МарВс1)+42,\"\"))","v":""},null,{"$f":"IF(DAY(_xlfn.SINGLE(АпрВс1))=1,IF(AND(YEAR(_xlfn.SINGLE(АпрВс1)+29)=_xlfn.SINGLE(КалендарныйГод),MONTH(_xlfn.SINGLE(АпрВс1)+29)=4),_xlfn.SINGLE(АпрВс1)+29,\"\"),IF(AND(YEAR(_xlfn.SINGLE(АпрВс1)+36)=_xlfn.SINGLE(КалендарныйГод),MONTH(_xlfn.SINGLE(АпрВс1)+36)=4),_xlfn.SINGLE(АпрВс1)+36,\"\"))","v":""},{"$f":"IF(DAY(_xlfn.SINGLE(АпрВс1))=1,IF(AND(YEAR(_xlfn.SINGLE(АпрВс1)+30)=_xlfn.SINGLE(КалендарныйГод),MONTH(_xlfn.SINGLE(АпрВс1)+30)=4),_xlfn.SINGLE(АпрВс1)+30,\"\"),IF(AND(YEAR(_xlfn.SINGLE(АпрВс1)+37)=_xlfn.SINGLE(КалендарныйГод),MONTH(_xlfn.SINGLE(АпрВс1)+37)=4),_xlfn.SINGLE(АпрВс1)+37,\"\"))","v":""},{"$f":"IF(DAY(_xlfn.SINGLE(АпрВс1))=1,IF(AND(YEAR(_xlfn.SINGLE(АпрВс1)+31)=_xlfn.SINGLE(КалендарныйГод),MONTH(_xlfn.SINGLE(АпрВс1)+31)=4),_xlfn.SINGLE(АпрВс1)+31,\"\"),IF(AND(YEAR(_xlfn.SINGLE(АпрВс1)+38)=_xlfn.SINGLE(КалендарныйГод),MONTH(_xlfn.SINGLE(АпрВс1)+38)=4),_xlfn.SINGLE(АпрВс1)+38,\"\"))","v":""},{"$f":"IF(DAY(_xlfn.SINGLE(АпрВс1))=1,IF(AND(YEAR(_xlfn.SINGLE(АпрВс1)+32)=_xlfn.SINGLE(КалендарныйГод),MONTH(_xlfn.SINGLE(АпрВс1)+32)=4),_xlfn.SINGLE(АпрВс1)+32,\"\"),IF(AND(YEAR(_xlfn.SINGLE(АпрВс1)+39)=_xlfn.SINGLE(КалендарныйГод),MONTH(_xlfn.SINGLE(АпрВс1)+39)=4),_xlfn.SINGLE(АпрВс1)+39,\"\"))","v":""},{"$f":"IF(DAY(_xlfn.SINGLE(АпрВс1))=1,IF(AND(YEAR(_xlfn.SINGLE(АпрВс1)+33)=_xlfn.SINGLE(КалендарныйГод),MONTH(_xlfn.SINGLE(АпрВс1)+33)=4),_xlfn.SINGLE(АпрВс1)+33,\"\"),IF(AND(YEAR(_xlfn.SINGLE(АпрВс1)+40)=_xlfn.SINGLE(КалендарныйГод),MONTH(_xlfn.SINGLE(АпрВс1)+40)=4),_xlfn.SINGLE(АпрВс1)+40,\"\"))","v":""},{"$f":"IF(DAY(_xlfn.SINGLE(АпрВс1))=1,IF(AND(YEAR(_xlfn.SINGLE(АпрВс1)+34)=_xlfn.SINGLE(КалендарныйГод),MONTH(_xlfn.SINGLE(АпрВс1)+34)=4),_xlfn.SINGLE(АпрВс1)+34,\"\"),IF(AND(YEAR(_xlfn.SINGLE(АпрВс1)+41)=_xlfn.SINGLE(КалендарныйГод),MONTH(_xlfn.SINGLE(АпрВс1)+41)=4),_xlfn.SINGLE(АпрВс1)+41,\"\"))","v":""},{"$f":"IF(DAY(_xlfn.SINGLE(АпрВс1))=1,IF(AND(YEAR(_xlfn.SINGLE(АпрВс1)+35)=_xlfn.SINGLE(КалендарныйГод),MONTH(_xlfn.SINGLE(АпрВс1)+35)=4),_xlfn.SINGLE(АпрВс1)+35,\"\"),IF(AND(YEAR(_xlfn.SINGLE(АпрВс1)+42)=_xlfn.SINGLE(КалендарныйГод),MONTH(_xlfn.SINGLE(АпрВс1)+42)=4),_xlfn.SINGLE(АпрВс1)+42,\"\"))","v":""}]
[]
[null,"Май",{"$nulls":7},"Июнь",{"$nulls":7},"Июль",{"$nulls":7},"Август"]
[null,"Пн","Вт","Ср","Чт","Пт","Сб","Вс",null,"Пн","Вт","Ср","Чт","Пт","Сб","Вс",null,"Пн","Вт","Ср","Чт","Пт","Сб","Вс",null,"Пн","Вт","Ср","Чт","Пт","Сб","Вс"]
[null,{"$f":"IF(DAY(_xlfn.SINGLE(МайВс1))=1,\"\",IF(AND(YEAR(_xlfn.SINGLE(МайВс1)+1)=_xlfn.SINGLE(КалендарныйГод),MONTH(_xlfn.SINGLE(МайВс1)+1)=5),_xlfn.SINGLE(МайВс1)+1,\"\"))","v":""},{"$f":"IF(DAY(_xlfn.SINGLE(МайВс1))=1,\"\",IF(AND(YEAR(_xlfn.SINGLE(МайВс1)+2)=_xlfn.SINGLE(КалендарныйГод),MONTH(_xlfn.SINGLE(МайВс1)+2)=5),_xlfn.SINGLE(МайВс1)+2,\"\"))","v":""},{"$f":"IF(DAY(_xlfn.SINGLE(МайВс1))=1,\"\",IF(AND(YEAR(_xlfn.SINGLE(МайВс1)+3)=_xlfn.SINGLE(КалендарныйГод),MONTH(_xlfn.SINGLE(МайВс1)+3)=5),_xlfn.SINGLE(МайВс1)+3,\"\"))","v":""},{"$f":"IF(DAY(_xlfn.SINGLE(МайВс1))=1,\"\",IF(AND(YEAR(_xlfn.SINGLE(МайВс1)+4)=_xlfn.SINGLE(КалендарныйГод),MONTH(_xlfn.SINGLE(МайВс1)+4)=5),_xlfn.SINGLE(МайВс1)+4,\"\"))","v":""},{"$f":"IF(DAY(_xlfn.SINGLE(МайВс1))=1,\"\",IF(AND(YEAR(_xlfn.SINGLE(МайВс1)+5)=_xlfn.SINGLE(КалендарныйГод),MONTH(_xlfn.SINGLE(МайВс1)+5)=5),_xlfn.SINGLE(МайВс1)+5,\"\"))","v":""},{"$f":"IF(DAY(_xlfn.SINGLE(МайВс1))=1,\"\",IF(AND(YEAR(_xlfn.SINGLE(МайВс1)+6)=_xlfn.SINGLE(КалендарныйГод),MONTH(_xlfn.SINGLE(МайВс1)+6)=5),_xlfn.SINGLE(МайВс1)+6,\"\"))","v":"2021-05-01"},{"$f":"_xlfn.SINGLE(IF(DAY(_xlfn.SINGLE(МайВс1))=1,IF(AND(YEAR(_xlfn.SINGLE(МайВс1))=_xlfn.SINGLE(КалендарныйГод),MONTH(_xlfn.SINGLE(МайВс1))=5),МайВс1,\"\"),IF(AND(YEAR(_xlfn.SINGLE(МайВс1)+7)=_xlfn.SINGLE(КалендарныйГод),MONTH(_xlfn.SINGLE(МайВс1)+7)=5),_xlfn.SINGLE(МайВс1)+7,\"\")))","v":"2021-05-02"},null,{"$f":"IF(DAY(_xlfn.SINGLE(ИюнВс1))=1,\"\",IF(AND(YEAR(_xlfn.SINGLE(ИюнВс1)+1)=_xlfn.SINGLE(КалендарныйГод),MONTH(_xlfn.SINGLE(ИюнВс1)+1)=6),_xlfn.SINGLE(ИюнВс1)+1,\"\"))","v":""},{"$f":"IF(DAY(_xlfn.SINGLE(ИюнВс1))=1,\"\",IF(AND(YEAR(_xlfn.SINGLE(ИюнВс1)+2)=_xlfn.SINGLE(КалендарныйГод),MONTH(_xlfn.SINGLE(ИюнВс1)+2)=6),_xlfn.SINGLE(ИюнВс1)+2,\"\"))","v":"2021-06-01"},{"$f":"IF(DAY(_xlfn.SINGLE(ИюнВс1))=1,\"\",IF(AND(YEAR(_xlfn.SINGLE(ИюнВс1)+3)=_xlfn.SINGLE(КалендарныйГод),MONTH(_xlfn.SINGLE(ИюнВс1)+3)=6),_xlfn.SINGLE(ИюнВс1)+3,\"\"))","v":"2021-06-02"},{"$f":"IF(DAY(_xlfn.SINGLE(ИюнВс1))=1,\"\",IF(AND(YEAR(_xlfn.SINGLE(ИюнВс1)+4)=_xlfn.SINGLE(КалендарныйГод),MONTH(_xlfn.SINGLE(ИюнВс1)+4)=6),_xlfn.SINGLE(ИюнВс1)+4,\"\"))","v":"2021-06-03"},{"$f":"IF(DAY(_xlfn.SINGLE(ИюнВс1))=1,\"\",IF(AND(YEAR(_xlfn.SINGLE(ИюнВс1)+5)=_xlfn.SINGLE(КалендарныйГод),MONTH(_xlfn.SINGLE(ИюнВс1)+5)=6),_xlfn.SINGLE(ИюнВс1)+5,\"\"))","v":"2021-06-04"},{"$f":"IF(DAY(_xlfn.SINGLE(ИюнВс1))=1,\"\",IF(AND(YEAR(_xlfn.SINGLE(ИюнВс1)+6)=_xlfn.SINGLE(КалендарныйГод),MONTH(_xlfn.SINGLE(ИюнВс1)+6)=6),_xlfn.SINGLE(ИюнВс1)+6,\"\"))","v":"2021-06-05"},{"$f":"_xlfn.SINGLE(IF(DAY(_xlfn.SINGLE(ИюнВс1))=1,IF(AND(YEAR(_xlfn.SINGLE(ИюнВс1))=_xlfn.SINGLE(КалендарныйГод),MONTH(_xlfn.SINGLE(ИюнВс1))=6),ИюнВс1,\"\"),IF(AND(YEAR(_xlfn.SINGLE(ИюнВс1)+7)=_xlfn.SINGLE(КалендарныйГод),MONTH(_xlfn.SINGLE(ИюнВс1)+7)=6),_xlfn.SINGLE(ИюнВс1)+7,\"\")))","v":"2021-06-06"},null,{"$f":"IF(DAY(_xlfn.SINGLE(ИюлВс1))=1,\"\",IF(AND(YEAR(_xlfn.SINGLE(ИюлВс1)+1)=_xlfn.SINGLE(КалендарныйГод),MONTH(_xlfn.SINGLE(ИюлВс1)+1)=7),_xlfn.SINGLE(ИюлВс1)+1,\"\"))","v":""},{"$f":"IF(DAY(_xlfn.SINGLE(ИюлВс1))=1,\"\",IF(AND(YEAR(_xlfn.SINGLE(ИюлВс1)+2)=_xlfn.SINGLE(КалендарныйГод),MONTH(_xlfn.SINGLE(ИюлВс1)+2)=7),_xlfn.SINGLE(ИюлВс1)+2,\"\"))","v":""},{"$f":"IF(DAY(_xlfn.SINGLE(ИюлВс1))=1,\"\",IF(AND(YEAR(_xlfn.SINGLE(ИюлВс1)+3)=_xlfn.SINGLE(КалендарныйГод),MONTH(_xlfn.SINGLE(ИюлВс1)+3)=7),_xlfn.SINGLE(ИюлВс1)+3,\"\"))","v":""},{"$f":"IF(DAY(_xlfn.SINGLE(ИюлВс1))=1,\"\",IF(AND(YEAR(_xlfn.SINGLE(ИюлВс1)+4)=_xlfn.SINGLE(КалендарныйГод),MONTH(_xlfn.SINGLE(ИюлВс1)+4)=7),_xlfn.SINGLE(ИюлВс1)+4,\"\"))","v":"2021-07-01"},{"$f":"IF(DAY(_xlfn.SINGLE(ИюлВс1))=1,\"\",IF(AND(YEAR(_xlfn.SINGLE(ИюлВс1)+5)=_xlfn.SINGLE(КалендарныйГод),MONTH(_xlfn.SINGLE(ИюлВс1)+5)=7),_xlfn.SINGLE(ИюлВс1)+5,\"\"))","v":"2021-07-02"},{"$f":"IF(DAY(_xlfn.SINGLE(ИюлВс1))=1,\"\",IF(AND(YEAR(_xlfn.SINGLE(ИюлВс1)+6)=_xlfn.SINGLE(КалендарныйГод),MONTH(_xlfn.SINGLE(ИюлВс1)+6)=7),_xlfn.SINGLE(ИюлВс1)+6,\"\"))","v":"2021-07-03"},{"$f":"_xlfn.SINGLE(IF(DAY(_xlfn.SINGLE(ИюлВс1))=1,IF(AND(YEAR(_xlfn.SINGLE(ИюлВс1))=_xlfn.SINGLE(КалендарныйГод),MONTH(_xlfn.SINGLE(ИюлВс1))=7),ИюлВс1,\"\"),IF(AND(YEAR(_xlfn.SINGLE(ИюлВс1)+7)=_xlfn.SINGLE(КалендарныйГод),MONTH(_xlfn.SINGLE(ИюлВс1)+7)=7),_xlfn.SINGLE(ИюлВс1)+7,\"\")))","v":"2021-07-04"},null,{"$f":"IF(DAY(_xlfn.SINGLE(АвгВс1))=1,\"\",IF(AND(YEAR(_xlfn.SINGLE(АвгВс1)+1)=_xlfn.SINGLE(КалендарныйГод),MONTH(_xlfn.SINGLE(АвгВс1)+1)=8),_xlfn.SINGLE(АвгВс1)+1,\"\"))","v":""},{"$f":"IF(DAY(_xlfn.SINGLE(АвгВс1))=1,\"\",IF(AND(YEAR(_xlfn.SINGLE(АвгВс1)+2)=_xlfn.SINGLE(КалендарныйГод),MONTH(_xlfn.SINGLE(АвгВс1)+2)=8),_xlfn.SINGLE(АвгВс1)+2,\"\"))","v":""},{"$f":"IF(DAY(_xlfn.SINGLE(АвгВс1))=1,\"\",IF(AND(YEAR(_xlfn.SINGLE(АвгВс1)+3)=_xlfn.SINGLE(КалендарныйГод),MONTH(_xlfn.SINGLE(АвгВс1)+3)=8),_xlfn.SINGLE(АвгВс1)+3,\"\"))","v":""},{"$f":"IF(DAY(_xlfn.SINGLE(АвгВс1))=1,\"\",IF(AND(YEAR(_xlfn.SINGLE(АвгВс1)+4)=_xlfn.SINGLE(КалендарныйГод),MONTH(_xlfn.SINGLE(АвгВс1)+4)=8),_xlfn.SINGLE(АвгВс1)+4,\"\"))","v":""},{"$f":"IF(DAY(_xlfn.SINGLE(АвгВс1))=1,\"\",IF(AND(YEAR(_xlfn.SINGLE(АвгВс1)+5)=_xlfn.SINGLE(КалендарныйГод),MONTH(_xlfn.SINGLE(АвгВс1)+5)=8),_xlfn.SINGLE(АвгВс1)+5,\"\"))","v":""},{"$f":"IF(DAY(_xlfn.SINGLE(АвгВс1))=1,\"\",IF(AND(YEAR(_xlfn.SINGLE(АвгВс1)+6)=_xlfn.SINGLE(КалендарныйГод),MONTH(_xlfn.SINGLE(АвгВс1)+6)=8),_xlfn.SINGLE(АвгВс1)+6,\"\"))","v":""},{"$f":"_xlfn.SINGLE(IF(DAY(_xlfn.SINGLE(АвгВс1))=1,IF(AND(YEAR(_xlfn.SINGLE(АвгВс1))=_xlfn.SINGLE(КалендарныйГод),MONTH(_xlfn.SINGLE(АвгВс1))=8),АвгВс1,\"\"),IF(AND(YEAR(_xlfn.SINGLE(АвгВс1)+7)=_xlfn.SINGLE(КалендарныйГод),MONTH(_xlfn.SINGLE(АвгВс1)+7)=8),_xlfn.SINGLE(АвгВс1)+7,\"\")))","v":"2021-08-01"}]
[null,{"$f":"IF(DAY(_xlfn.SINGLE(МайВс1))=1,IF(AND(YEAR(_xlfn.SINGLE(МайВс1)+1)=_xlfn.SINGLE(КалендарныйГод),MONTH(_xlfn.SINGLE(МайВс1)+1)=5),_xlfn.SINGLE(МайВс1)+1,\"\"),IF(AND(YEAR(_xlfn.SINGLE(МайВс1)+8)=_xlfn.SINGLE(КалендарныйГод),MONTH(_xlfn.SINGLE(МайВс1)+8)=5),_xlfn.SINGLE(МайВс1)+8,\"\"))","v":"2021-05-03"},{"$f":"IF(DAY(_xlfn.SINGLE(МайВс1))=1,IF(AND(YEAR(_xlfn.SINGLE(МайВс1)+2)=_xlfn.SINGLE(КалендарныйГод),MONTH(_xlfn.SINGLE(МайВс1)+2)=5),_xlfn.SINGLE(МайВс1)+2,\"\"),IF(AND(YEAR(_xlfn.SINGLE(МайВс1)+9)=_xlfn.SINGLE(КалендарныйГод),MONTH(_xlfn.SINGLE(МайВс1)+9)=5),_xlfn.SINGLE(МайВс1)+9,\"\"))","v":"2021-05-04"},{"$f":"IF(DAY(_xlfn.SINGLE(МайВс1))=1,IF(AND(YEAR(_xlfn.SINGLE(МайВс1)+3)=_xlfn.SINGLE(КалендарныйГод),MONTH(_xlfn.SINGLE(МайВс1)+3)=5),_xlfn.SINGLE(МайВс1)+3,\"\"),IF(AND(YEAR(_xlfn.SINGLE(МайВс1)+10)=_xlfn.SINGLE(КалендарныйГод),MONTH(_xlfn.SINGLE(МайВс1)+10)=5),_xlfn.SINGLE(МайВс1)+10,\"\"))","v":"2021-05-05"},{"$f":"IF(DAY(_xlfn.SINGLE(МайВс1))=1,IF(AND(YEAR(_xlfn.SINGLE(МайВс1)+4)=_xlfn.SINGLE(КалендарныйГод),MONTH(_xlfn.SINGLE(МайВс1)+4)=5),_xlfn.SINGLE(МайВс1)+4,\"\"),IF(AND(YEAR(_xlfn.SINGLE(МайВс1)+11)=_xlfn.SINGLE(КалендарныйГод),MONTH(_xlfn.SINGLE(МайВс1)+11)=5),_xlfn.SINGLE(МайВс1)+11,\"\"))","v":"2021-05-06"},{"$f":"IF(DAY(_xlfn.SINGLE(МайВс1))=1,IF(AND(YEAR(_xlfn.SINGLE(МайВс1)+5)=_xlfn.SINGLE(КалендарныйГод),MONTH(_xlfn.SINGLE(МайВс1)+5)=5),_xlfn.SINGLE(МайВс1)+5,\"\"),IF(AND(YEAR(_xlfn.SINGLE(МайВс1)+12)=_xlfn.SINGLE(КалендарныйГод),MONTH(_xlfn.SINGLE(МайВс1)+12)=5),_xlfn.SINGLE(МайВс1)+12,\"\"))","v":"2021-05-07"},{"$f":"IF(DAY(_xlfn.SINGLE(МайВс1))=1,IF(AND(YEAR(_xlfn.SINGLE(МайВс1)+6)=_xlfn.SINGLE(КалендарныйГод),MONTH(_xlfn.SINGLE(МайВс1)+6)=5),_xlfn.SINGLE(МайВс1)+6,\"\"),IF(AND(YEAR(_xlfn.SINGLE(МайВс1)+13)=_xlfn.SINGLE(КалендарныйГод),MONTH(_xlfn.SINGLE(МайВс1)+13)=5),_xlfn.SINGLE(МайВс1)+13,\"\"))","v":"2021-05-08"},{"$f":"IF(DAY(_xlfn.SINGLE(МайВс1))=1,IF(AND(YEAR(_xlfn.SINGLE(МайВс1)+7)=_xlfn.SINGLE(КалендарныйГод),MONTH(_xlfn.SINGLE(МайВс1)+7)=5),_xlfn.SINGLE(МайВс1)+7,\"\"),IF(AND(YEAR(_xlfn.SINGLE(МайВс1)+14)=_xlfn.SINGLE(КалендарныйГод),MONTH(_xlfn.SINGLE(МайВс1)+14)=5),_xlfn.SINGLE(МайВс1)+14,\"\"))","v":"2021-05-09"},null,{"$f":"IF(DAY(_xlfn.SINGLE(ИюнВс1))=1,IF(AND(YEAR(_xlfn.SINGLE(ИюнВс1)+1)=_xlfn.SINGLE(КалендарныйГод),MONTH(_xlfn.SINGLE(ИюнВс1)+1)=6),_xlfn.SINGLE(ИюнВс1)+1,\"\"),IF(AND(YEAR(_xlfn.SINGLE(ИюнВс1)+8)=_xlfn.SINGLE(КалендарныйГод),MONTH(_xlfn.SINGLE(ИюнВс1)+8)=6),_xlfn.SINGLE(ИюнВс1)+8,\"\"))","v":"2021-06-07"},{"$f":"IF(DAY(_xlfn.SINGLE(ИюнВс1))=1,IF(AND(YEAR(_xlfn.SINGLE(ИюнВс1)+2)=_xlfn.SINGLE(КалендарныйГод),MONTH(_xlfn.SINGLE(ИюнВс1)+2)=6),_xlfn.SINGLE(ИюнВс1)+2,\"\"),IF(AND(YEAR(_xlfn.SINGLE(ИюнВс1)+9)=_xlfn.SINGLE(КалендарныйГод),MONTH(_xlfn.SINGLE(ИюнВс1)+9)=6),_xlfn.SINGLE(ИюнВс1)+9,\"\"))","v":"2021-06-08"},{"$f":"IF(DAY(_xlfn.SINGLE(ИюнВс1))=1,IF(AND(YEAR(_xlfn.SINGLE(ИюнВс1)+3)=_xlfn.SINGLE(КалендарныйГод),MONTH(_xlfn.SINGLE(ИюнВс1)+3)=6),_xlfn.SINGLE(ИюнВс1)+3,\"\"),IF(AND(YEAR(_xlfn.SINGLE(ИюнВс1)+10)=_xlfn.SINGLE(КалендарныйГод),MONTH(_xlfn.SINGLE(ИюнВс1)+10)=6),_xlfn.SINGLE(ИюнВс1)+10,\"\"))","v":"2021-06-09"},{"$f":"IF(DAY(_xlfn.SINGLE(ИюнВс1))=1,IF(AND(YEAR(_xlfn.SINGLE(ИюнВс1)+4)=_xlfn.SINGLE(КалендарныйГод),MONTH(_xlfn.SINGLE(ИюнВс1)+4)=6),_xlfn.SINGLE(ИюнВс1)+4,\"\"),IF(AND(YEAR(_xlfn.SINGLE(ИюнВс1)+11)=_xlfn.SINGLE(КалендарныйГод),MONTH(_xlfn.SINGLE(ИюнВс1)+11)=6),_xlfn.SINGLE(ИюнВс1)+11,\"\"))","v":"2021-06-10"},{"$f":"IF(DAY(_xlfn.SINGLE(ИюнВс1))=1,IF(AND(YEAR(_xlfn.SINGLE(ИюнВс1)+5)=_xlfn.SINGLE(КалендарныйГод),MONTH(_xlfn.SINGLE(ИюнВс1)+5)=6),_xlfn.SINGLE(ИюнВс1)+5,\"\"),IF(AND(YEAR(_xlfn.SINGLE(ИюнВс1)+12)=_xlfn.SINGLE(КалендарныйГод),MONTH(_xlfn.SINGLE(ИюнВс1)+12)=6),_xlfn.SINGLE(ИюнВс1)+12,\"\"))","v":"2021-06-11"},{"$f":"IF(DAY(_xlfn.SINGLE(ИюнВс1))=1,IF(AND(YEAR(_xlfn.SINGLE(ИюнВс1)+6)=_xlfn.SINGLE(КалендарныйГод),MONTH(_xlfn.SINGLE(ИюнВс1)+6)=6),_xlfn.SINGLE(ИюнВс1)+6,\"\"),IF(AND(YEAR(_xlfn.SINGLE(ИюнВс1)+13)=_xlfn.SINGLE(КалендарныйГод),MONTH(_xlfn.SINGLE(ИюнВс1)+13)=6),_xlfn.SINGLE(ИюнВс1)+13,\"\"))","v":"2021-06-12"},{"$f":"IF(DAY(_xlfn.SINGLE(ИюнВс1))=1,IF(AND(YEAR(_xlfn.SINGLE(ИюнВс1)+7)=_xlfn.SINGLE(КалендарныйГод),MONTH(_xlfn.SINGLE(ИюнВс1)+7)=6),_xlfn.SINGLE(ИюнВс1)+7,\"\"),IF(AND(YEAR(_xlfn.SINGLE(ИюнВс1)+14)=_xlfn.SINGLE(КалендарныйГод),MONTH(_xlfn.SINGLE(ИюнВс1)+14)=6),_xlfn.SINGLE(ИюнВс1)+14,\"\"))","v":"2021-06-13"},null,{"$f":"IF(DAY(_xlfn.SINGLE(ИюлВс1))=1,IF(AND(YEAR(_xlfn.SINGLE(ИюлВс1)+1)=_xlfn.SINGLE(КалендарныйГод),MONTH(_xlfn.SINGLE(ИюлВс1)+1)=7),_xlfn.SINGLE(ИюлВс1)+1,\"\"),IF(AND(YEAR(_xlfn.SINGLE(ИюлВс1)+8)=_xlfn.SINGLE(КалендарныйГод),MONTH(_xlfn.SINGLE(ИюлВс1)+8)=7),_xlfn.SINGLE(ИюлВс1)+8,\"\"))","v":"2021-07-05"},{"$f":"IF(DAY(_xlfn.SINGLE(ИюлВс1))=1,IF(AND(YEAR(_xlfn.SINGLE(ИюлВс1)+2)=_xlfn.SINGLE(КалендарныйГод),MONTH(_xlfn.SINGLE(ИюлВс1)+2)=7),_xlfn.SINGLE(ИюлВс1)+2,\"\"),IF(AND(YEAR(_xlfn.SINGLE(ИюлВс1)+9)=_xlfn.SINGLE(КалендарныйГод),MONTH(_xlfn.SINGLE(ИюлВс1)+9)=7),_xlfn.SINGLE(ИюлВс1)+9,\"\"))","v":"2021-07-06"},{"$f":"IF(DAY(_xlfn.SINGLE(ИюлВс1))=1,IF(AND(YEAR(_xlfn.SINGLE(ИюлВс1)+3)=_xlfn.SINGLE(КалендарныйГод),MONTH(_xlfn.SINGLE(ИюлВс1)+3)=7),_xlfn.SINGLE(ИюлВс1)+3,\"\"),IF(AND(YEAR(_xlfn.SINGLE(ИюлВс1)+10)=_xlfn.SINGLE(КалендарныйГод),MONTH(_xlfn.SINGLE(ИюлВс1)+10)=7),_xlfn.SINGLE(ИюлВс1)+10,\"\"))","v":"2021-07-07"},{"$f":"IF(DAY(_xlfn.SINGLE(ИюлВс1))=1,IF(AND(YEAR(_xlfn.SINGLE(ИюлВс1)+4)=_xlfn.SINGLE(КалендарныйГод),MONTH(_xlfn.SINGLE(ИюлВс1)+4)=7),_xlfn.SINGLE(ИюлВс1)+4,\"\"),IF(AND(YEAR(_xlfn.SINGLE(ИюлВс1)+11)=_xlfn.SINGLE(КалендарныйГод),MONTH(_xlfn.SINGLE(ИюлВс1)+11)=7),_xlfn.SINGLE(ИюлВс1)+11,\"\"))","v":"2021-07-08"},{"$f":"IF(DAY(_xlfn.SINGLE(ИюлВс1))=1,IF(AND(YEAR(_xlfn.SINGLE(ИюлВс1)+5)=_xlfn.SINGLE(КалендарныйГод),MONTH(_xlfn.SINGLE(ИюлВс1)+5)=7),_xlfn.SINGLE(ИюлВс1)+5,\"\"),IF(AND(YEAR(_xlfn.SINGLE(ИюлВс1)+12)=_xlfn.SINGLE(КалендарныйГод),MONTH(_xlfn.SINGLE(ИюлВс1)+12)=7),_xlfn.SINGLE(ИюлВс1)+12,\"\"))","v":"2021-07-09"},{"$f":"IF(DAY(_xlfn.SINGLE(ИюлВс1))=1,IF(AND(YEAR(_xlfn.SINGLE(ИюлВс1)+6)=_xlfn.SINGLE(КалендарныйГод),MONTH(_xlfn.SINGLE(ИюлВс1)+6)=7),_xlfn.SINGLE(ИюлВс1)+6,\"\"),IF(AND(YEAR(_xlfn.SINGLE(ИюлВс1)+13)=_xlfn.SINGLE(КалендарныйГод),MONTH(_xlfn.SINGLE(ИюлВс1)+13)=7),_xlfn.SINGLE(ИюлВс1)+13,\"\"))","v":"2021-07-10"},{"$f":"IF(DAY(_xlfn.SINGLE(ИюлВс1))=1,IF(AND(YEAR(_xlfn.SINGLE(ИюлВс1)+7)=_xlfn.SINGLE(КалендарныйГод),MONTH(_xlfn.SINGLE(ИюлВс1)+7)=7),_xlfn.SINGLE(ИюлВс1)+7,\"\"),IF(AND(YEAR(_xlfn.SINGLE(ИюлВс1)+14)=_xlfn.SINGLE(КалендарныйГод),MONTH(_xlfn.SINGLE(ИюлВс1)+14)=7),_xlfn.SINGLE(ИюлВс1)+14,\"\"))","v":"2021-07-11"},null,{"$f":"IF(DAY(_xlfn.SINGLE(АвгВс1))=1,IF(AND(YEAR(_xlfn.SINGLE(АвгВс1)+1)=_xlfn.SINGLE(КалендарныйГод),MONTH(_xlfn.SINGLE(АвгВс1)+1)=8),_xlfn.SINGLE(АвгВс1)+1,\"\"),IF(AND(YEAR(_xlfn.SINGLE(АвгВс1)+8)=_xlfn.SINGLE(КалендарныйГод),MONTH(_xlfn.SINGLE(АвгВс1)+8)=8),_xlfn.SINGLE(АвгВс1)+8,\"\"))","v":"2021-08-02"},{"$f":"IF(DAY(_xlfn.SINGLE(АвгВс1))=1,IF(AND(YEAR(_xlfn.SINGLE(АвгВс1)+2)=_xlfn.SINGLE(КалендарныйГод),MONTH(_xlfn.SINGLE(АвгВс1)+2)=8),_xlfn.SINGLE(АвгВс1)+2,\"\"),IF(AND(YEAR(_xlfn.SINGLE(АвгВс1)+9)=_xlfn.SINGLE(КалендарныйГод),MONTH(_xlfn.SINGLE(АвгВс1)+9)=8),_xlfn.SINGLE(АвгВс1)+9,\"\"))","v":"2021-08-03"},{"$f":"IF(DAY(_xlfn.SINGLE(АвгВс1))=1,IF(AND(YEAR(_xlfn.SINGLE(АвгВс1)+3)=_xlfn.SINGLE(КалендарныйГод),MONTH(_xlfn.SINGLE(АвгВс1)+3)=8),_xlfn.SINGLE(АвгВс1)+3,\"\"),IF(AND(YEAR(_xlfn.SINGLE(АвгВс1)+10)=_xlfn.SINGLE(КалендарныйГод),MONTH(_xlfn.SINGLE(АвгВс1)+10)=8),_xlfn.SINGLE(АвгВс1)+10,\"\"))","v":"2021-08-04"},{"$f":"IF(DAY(_xlfn.SINGLE(АвгВс1))=1,IF(AND(YEAR(_xlfn.SINGLE(АвгВс1)+4)=_xlfn.SINGLE(КалендарныйГод),MONTH(_xlfn.SINGLE(АвгВс1)+4)=8),_xlfn.SINGLE(АвгВс1)+4,\"\"),IF(AND(YEAR(_xlfn.SINGLE(АвгВс1)+11)=_xlfn.SINGLE(КалендарныйГод),MONTH(_xlfn.SINGLE(АвгВс1)+11)=8),_xlfn.SINGLE(АвгВс1)+11,\"\"))","v":"2021-08-05"},{"$f":"IF(DAY(_xlfn.SINGLE(АвгВс1))=1,IF(AND(YEAR(_xlfn.SINGLE(АвгВс1)+5)=_xlfn.SINGLE(КалендарныйГод),MONTH(_xlfn.SINGLE(АвгВс1)+5)=8),_xlfn.SINGLE(АвгВс1)+5,\"\"),IF(AND(YEAR(_xlfn.SINGLE(АвгВс1)+12)=_xlfn.SINGLE(КалендарныйГод),MONTH(_xlfn.SINGLE(АвгВс1)+12)=8),_xlfn.SINGLE(АвгВс1)+12,\"\"))","v":"2021-08-06"},{"$f":"IF(DAY(_xlfn.SINGLE(АвгВс1))=1,IF(AND(YEAR(_xlfn.SINGLE(АвгВс1)+6)=_xlfn.SINGLE(КалендарныйГод),MONTH(_xlfn.SINGLE(АвгВс1)+6)=8),_xlfn.SINGLE(АвгВс1)+6,\"\"),IF(AND(YEAR(_xlfn.SINGLE(АвгВс1)+13)=_xlfn.SINGLE(КалендарныйГод),MONTH(_xlfn.SINGLE(АвгВс1)+13)=8),_xlfn.SINGLE(АвгВс1)+13,\"\"))","v":"2021-08-07"},{"$f":"IF(DAY(_xlfn.SINGLE(АвгВс1))=1,IF(AND(YEAR(_xlfn.SINGLE(АвгВс1)+7)=_xlfn.SINGLE(КалендарныйГод),MONTH(_xlfn.SINGLE(АвгВс1)+7)=8),_xlfn.SINGLE(АвгВс1)+7,\"\"),IF(AND(YEAR(_xlfn.SINGLE(АвгВс1)+14)=_xlfn.SINGLE(КалендарныйГод),MONTH(_xlfn.SINGLE(АвгВс1)+14)=8),_xlfn.SINGLE(АвгВс1)+14,\"\"))","v":"2021-08-08"}]
[null,{"$f":"IF(DAY(_xlfn.SINGLE(МайВс1))=1,IF(AND(YEAR(_xlfn.SINGLE(МайВс1)+8)=_xlfn.SINGLE(КалендарныйГод),MONTH(_xlfn.SINGLE(МайВс1)+8)=5),_xlfn.SINGLE(МайВс1)+8,\"\"),IF(AND(YEAR(_xlfn.SINGLE(МайВс1)+15)=_xlfn.SINGLE(КалендарныйГод),MONTH(_xlfn.SINGLE(МайВс1)+15)=5),_xlfn.SINGLE(МайВс1)+15,\"\"))","v":"2021-05-10"},{"$f":"IF(DAY(_xlfn.SINGLE(МайВс1))=1,IF(AND(YEAR(_xlfn.SINGLE(МайВс1)+9)=_xlfn.SINGLE(КалендарныйГод),MONTH(_xlfn.SINGLE(МайВс1)+9)=5),_xlfn.SINGLE(МайВс1)+9,\"\"),IF(AND(YEAR(_xlfn.SINGLE(МайВс1)+16)=_xlfn.SINGLE(КалендарныйГод),MONTH(_xlfn.SINGLE(МайВс1)+16)=5),_xlfn.SINGLE(МайВс1)+16,\"\"))","v":"2021-05-11"},{"$f":"IF(DAY(_xlfn.SINGLE(МайВс1))=1,IF(AND(YEAR(_xlfn.SINGLE(МайВс1)+10)=_xlfn.SINGLE(КалендарныйГод),MONTH(_xlfn.SINGLE(МайВс1)+10)=5),_xlfn.SINGLE(МайВс1)+10,\"\"),IF(AND(YEAR(_xlfn.SINGLE(МайВс1)+17)=_xlfn.SINGLE(КалендарныйГод),MONTH(_xlfn.SINGLE(МайВс1)+17)=5),_xlfn.SINGLE(МайВс1)+17,\"\"))","v":"2021-05-12"},{"$f":"IF(DAY(_xlfn.SINGLE(МайВс1))=1,IF(AND(YEAR(_xlfn.SINGLE(МайВс1)+11)=_xlfn.SINGLE(КалендарныйГод),MONTH(_xlfn.SINGLE(МайВс1)+11)=5),_xlfn.SINGLE(МайВс1)+11,\"\"),IF(AND(YEAR(_xlfn.SINGLE(МайВс1)+18)=_xlfn.SINGLE(КалендарныйГод),MONTH(_xlfn.SINGLE(МайВс1)+18)=5),_xlfn.SINGLE(МайВс1)+18,\"\"))","v":"2021-05-13"},{"$f":"IF(DAY(_xlfn.SINGLE(МайВс1))=1,IF(AND(YEAR(_xlfn.SINGLE(МайВс1)+12)=_xlfn.SINGLE(КалендарныйГод),MONTH(_xlfn.SINGLE(МайВс1)+12)=5),_xlfn.SINGLE(МайВс1)+12,\"\"),IF(AND(YEAR(_xlfn.SINGLE(МайВс1)+19)=_xlfn.SINGLE(КалендарныйГод),MONTH(_xlfn.SINGLE(МайВс1)+19)=5),_xlfn.SINGLE(МайВс1)+19,\"\"))","v":"2021-05-14"},{"$f":"IF(DAY(_xlfn.SINGLE(МайВс1))=1,IF(AND(YEAR(_xlfn.SINGLE(МайВс1)+13)=_xlfn.SINGLE(КалендарныйГод),MONTH(_xlfn.SINGLE(МайВс1)+13)=5),_xlfn.SINGLE(МайВс1)+13,\"\"),IF(AND(YEAR(_xlfn.SINGLE(МайВс1)+20)=_xlfn.SINGLE(КалендарныйГод),MONTH(_xlfn.SINGLE(МайВс1)+20)=5),_xlfn.SINGLE(МайВс1)+20,\"\"))","v":"2021-05-15"},{"$f":"IF(DAY(_xlfn.SINGLE(МайВс1))=1,IF(AND(YEAR(_xlfn.SINGLE(МайВс1)+14)=_xlfn.SINGLE(КалендарныйГод),MONTH(_xlfn.SINGLE(МайВс1)+14)=5),_xlfn.SINGLE(МайВс1)+14,\"\"),IF(AND(YEAR(_xlfn.SINGLE(МайВс1)+21)=_xlfn.SINGLE(КалендарныйГод),MONTH(_xlfn.SINGLE(МайВс1)+21)=5),_xlfn.SINGLE(МайВс1)+21,\"\"))","v":"2021-05-16"},null,{"$f":"IF(DAY(_xlfn.SINGLE(ИюнВс1))=1,IF(AND(YEAR(_xlfn.SINGLE(ИюнВс1)+8)=_xlfn.SINGLE(КалендарныйГод),MONTH(_xlfn.SINGLE(ИюнВс1)+8)=6),_xlfn.SINGLE(ИюнВс1)+8,\"\"),IF(AND(YEAR(_xlfn.SINGLE(ИюнВс1)+15)=_xlfn.SINGLE(КалендарныйГод),MONTH(_xlfn.SINGLE(ИюнВс1)+15)=6),_xlfn.SINGLE(ИюнВс1)+15,\"\"))","v":"2021-06-14"},{"$f":"IF(DAY(_xlfn.SINGLE(ИюнВс1))=1,IF(AND(YEAR(_xlfn.SINGLE(ИюнВс1)+9)=_xlfn.SINGLE(КалендарныйГод),MONTH(_xlfn.SINGLE(ИюнВс1)+9)=6),_xlfn.SINGLE(ИюнВс1)+9,\"\"),IF(AND(YEAR(_xlfn.SINGLE(ИюнВс1)+16)=_xlfn.SINGLE(КалендарныйГод),MONTH(_xlfn.SINGLE(ИюнВс1)+16)=6),_xlfn.SINGLE(ИюнВс1)+16,\"\"))","v":"2021-06-15"},{"$f":"IF(DAY(_xlfn.SINGLE(ИюнВс1))=1,IF(AND(YEAR(_xlfn.SINGLE(ИюнВс1)+10)=_xlfn.SINGLE(КалендарныйГод),MONTH(_xlfn.SINGLE(ИюнВс1)+10)=6),_xlfn.SINGLE(ИюнВс1)+10,\"\"),IF(AND(YEAR(_xlfn.SINGLE(ИюнВс1)+17)=_xlfn.SINGLE(КалендарныйГод),MONTH(_xlfn.SINGLE(ИюнВс1)+17)=6),_xlfn.SINGLE(ИюнВс1)+17,\"\"))","v":"2021-06-16"},{"$f":"IF(DAY(_xlfn.SINGLE(ИюнВс1))=1,IF(AND(YEAR(_xlfn.SINGLE(ИюнВс1)+11)=_xlfn.SINGLE(КалендарныйГод),MONTH(_xlfn.SINGLE(ИюнВс1)+11)=6),_xlfn.SINGLE(ИюнВс1)+11,\"\"),IF(AND(YEAR(_xlfn.SINGLE(ИюнВс1)+18)=_xlfn.SINGLE(КалендарныйГод),MONTH(_xlfn.SINGLE(ИюнВс1)+18)=6),_xlfn.SINGLE(ИюнВс1)+18,\"\"))","v":"2021-06-17"},{"$f":"IF(DAY(_xlfn.SINGLE(ИюнВс1))=1,IF(AND(YEAR(_xlfn.SINGLE(ИюнВс1)+12)=_xlfn.SINGLE(КалендарныйГод),MONTH(_xlfn.SINGLE(ИюнВс1)+12)=6),_xlfn.SINGLE(ИюнВс1)+12,\"\"),IF(AND(YEAR(_xlfn.SINGLE(ИюнВс1)+19)=_xlfn.SINGLE(КалендарныйГод),MONTH(_xlfn.SINGLE(ИюнВс1)+19)=6),_xlfn.SINGLE(ИюнВс1)+19,\"\"))","v":"2021-06-18"},{"$f":"IF(DAY(_xlfn.SINGLE(ИюнВс1))=1,IF(AND(YEAR(_xlfn.SINGLE(ИюнВс1)+13)=_xlfn.SINGLE(КалендарныйГод),MONTH(_xlfn.SINGLE(ИюнВс1)+13)=6),_xlfn.SINGLE(ИюнВс1)+13,\"\"),IF(AND(YEAR(_xlfn.SINGLE(ИюнВс1)+20)=_xlfn.SINGLE(КалендарныйГод),MONTH(_xlfn.SINGLE(ИюнВс1)+20)=6),_xlfn.SINGLE(ИюнВс1)+20,\"\"))","v":"2021-06-19"},{"$f":"IF(DAY(_xlfn.SINGLE(ИюнВс1))=1,IF(AND(YEAR(_xlfn.SINGLE(ИюнВс1)+14)=_xlfn.SINGLE(КалендарныйГод),MONTH(_xlfn.SINGLE(ИюнВс1)+14)=6),_xlfn.SINGLE(ИюнВс1)+14,\"\"),IF(AND(YEAR(_xlfn.SINGLE(ИюнВс1)+21)=_xlfn.SINGLE(КалендарныйГод),MONTH(_xlfn.SINGLE(ИюнВс1)+21)=6),_xlfn.SINGLE(ИюнВс1)+21,\"\"))","v":"2021-06-20"},null,{"$f":"IF(DAY(_xlfn.SINGLE(ИюлВс1))=1,IF(AND(YEAR(_xlfn.SINGLE(ИюлВс1)+8)=_xlfn.SINGLE(КалендарныйГод),MONTH(_xlfn.SINGLE(ИюлВс1)+8)=7),_xlfn.SINGLE(ИюлВс1)+8,\"\"),IF(AND(YEAR(_xlfn.SINGLE(ИюлВс1)+15)=_xlfn.SINGLE(КалендарныйГод),MONTH(_xlfn.SINGLE(ИюлВс1)+15)=7),_xlfn.SINGLE(ИюлВс1)+15,\"\"))","v":"2021-07-12"},{"$f":"IF(DAY(_xlfn.SINGLE(ИюлВс1))=1,IF(AND(YEAR(_xlfn.SINGLE(ИюлВс1)+9)=_xlfn.SINGLE(КалендарныйГод),MONTH(_xlfn.SINGLE(ИюлВс1)+9)=7),_xlfn.SINGLE(ИюлВс1)+9,\"\"),IF(AND(YEAR(_xlfn.SINGLE(ИюлВс1)+16)=_xlfn.SINGLE(КалендарныйГод),MONTH(_xlfn.SINGLE(ИюлВс1)+16)=7),_xlfn.SINGLE(ИюлВс1)+16,\"\"))","v":"2021-07-13"},{"$f":"IF(DAY(_xlfn.SINGLE(ИюлВс1))=1,IF(AND(YEAR(_xlfn.SINGLE(ИюлВс1)+10)=_xlfn.SINGLE(КалендарныйГод),MONTH(_xlfn.SINGLE(ИюлВс1)+10)=7),_xlfn.SINGLE(ИюлВс1)+10,\"\"),IF(AND(YEAR(_xlfn.SINGLE(ИюлВс1)+17)=_xlfn.SINGLE(КалендарныйГод),MONTH(_xlfn.SINGLE(ИюлВс1)+17)=7),_xlfn.SINGLE(ИюлВс1)+17,\"\"))","v":"2021-07-14"},{"$f":"IF(DAY(_xlfn.SINGLE(ИюлВс1))=1,IF(AND(YEAR(_xlfn.SINGLE(ИюлВс1)+11)=_xlfn.SINGLE(КалендарныйГод),MONTH(_xlfn.SINGLE(ИюлВс1)+11)=7),_xlfn.SINGLE(ИюлВс1)+11,\"\"),IF(AND(YEAR(_xlfn.SINGLE(ИюлВс1)+18)=_xlfn.SINGLE(КалендарныйГод),MONTH(_xlfn.SINGLE(ИюлВс1)+18)=7),_xlfn.SINGLE(ИюлВс1)+18,\"\"))","v":"2021-07-15"},{"$f":"IF(DAY(_xlfn.SINGLE(ИюлВс1))=1,IF(AND(YEAR(_xlfn.SINGLE(ИюлВс1)+12)=_xlfn.SINGLE(КалендарныйГод),MONTH(_xlfn.SINGLE(ИюлВс1)+12)=7),_xlfn.SINGLE(ИюлВс1)+12,\"\"),IF(AND(YEAR(_xlfn.SINGLE(ИюлВс1)+19)=_xlfn.SINGLE(КалендарныйГод),MONTH(_xlfn.SINGLE(ИюлВс1)+19)=7),_xlfn.SINGLE(ИюлВс1)+19,\"\"))","v":"2021-07-16"},{"$f":"IF(DAY(_xlfn.SINGLE(ИюлВс1))=1,IF(AND(YEAR(_xlfn.SINGLE(ИюлВс1)+13)=_xlfn.SINGLE(КалендарныйГод),MONTH(_xlfn.SINGLE(ИюлВс1)+13)=7),_xlfn.SINGLE(ИюлВс1)+13,\"\"),IF(AND(YEAR(_xlfn.SINGLE(ИюлВс1)+20)=_xlfn.SINGLE(КалендарныйГод),MONTH(_xlfn.SINGLE(ИюлВс1)+20)=7),_xlfn.SINGLE(ИюлВс1)+20,\"\"))","v":"2021-07-17"},{"$f":"IF(DAY(_xlfn.SINGLE(ИюлВс1))=1,IF(AND(YEAR(_xlfn.SINGLE(ИюлВс1)+14)=_xlfn.SINGLE(КалендарныйГод),MONTH(_xlfn.SINGLE(ИюлВс1)+14)=7),_xlfn.SINGLE(ИюлВс1)+14,\"\"),IF(AND(YEAR(_xlfn.SINGLE(ИюлВс1)+21)=_xlfn.SINGLE(КалендарныйГод),MONTH(_xlfn.SINGLE(ИюлВс1)+21)=7),_xlfn.SINGLE(ИюлВс1)+21,\"\"))","v":"2021-07-18"},null,{"$f":"IF(DAY(_xlfn.SINGLE(АвгВс1))=1,IF(AND(YEAR(_xlfn.SINGLE(АвгВс1)+8)=_xlfn.SINGLE(КалендарныйГод),MONTH(_xlfn.SINGLE(АвгВс1)+8)=8),_xlfn.SINGLE(АвгВс1)+8,\"\"),IF(AND(YEAR(_xlfn.SINGLE(АвгВс1)+15)=_xlfn.SINGLE(КалендарныйГод),MONTH(_xlfn.SINGLE(АвгВс1)+15)=8),_xlfn.SINGLE(АвгВс1)+15,\"\"))","v":"2021-08-09"},{"$f":"IF(DAY(_xlfn.SINGLE(АвгВс1))=1,IF(AND(YEAR(_xlfn.SINGLE(АвгВс1)+9)=_xlfn.SINGLE(КалендарныйГод),MONTH(_xlfn.SINGLE(АвгВс1)+9)=8),_xlfn.SINGLE(АвгВс1)+9,\"\"),IF(AND(YEAR(_xlfn.SINGLE(АвгВс1)+16)=_xlfn.SINGLE(КалендарныйГод),MONTH(_xlfn.SINGLE(АвгВс1)+16)=8),_xlfn.SINGLE(АвгВс1)+16,\"\"))","v":"2021-08-10"},{"$f":"IF(DAY(_xlfn.SINGLE(АвгВс1))=1,IF(AND(YEAR(_xlfn.SINGLE(АвгВс1)+10)=_xlfn.SINGLE(КалендарныйГод),MONTH(_xlfn.SINGLE(АвгВс1)+10)=8),_xlfn.SINGLE(АвгВс1)+10,\"\"),IF(AND(YEAR(_xlfn.SINGLE(АвгВс1)+17)=_xlfn.SINGLE(КалендарныйГод),MONTH(_xlfn.SINGLE(АвгВс1)+17)=8),_xlfn.SINGLE(АвгВс1)+17,\"\"))","v":"2021-08-11"},{"$f":"IF(DAY(_xlfn.SINGLE(АвгВс1))=1,IF(AND(YEAR(_xlfn.SINGLE(АвгВс1)+11)=_xlfn.SINGLE(КалендарныйГод),MONTH(_xlfn.SINGLE(АвгВс1)+11)=8),_xlfn.SINGLE(АвгВс1)+11,\"\"),IF(AND(YEAR(_xlfn.SINGLE(АвгВс1)+18)=_xlfn.SINGLE(КалендарныйГод),MONTH(_xlfn.SINGLE(АвгВс1)+18)=8),_xlfn.SINGLE(АвгВс1)+18,\"\"))","v":"2021-08-12"},{"$f":"IF(DAY(_xlfn.SINGLE(АвгВс1))=1,IF(AND(YEAR(_xlfn.SINGLE(АвгВс1)+12)=_xlfn.SINGLE(КалендарныйГод),MONTH(_xlfn.SINGLE(АвгВс1)+12)=8),_xlfn.SINGLE(АвгВс1)+12,\"\"),IF(AND(YEAR(_xlfn.SINGLE(АвгВс1)+19)=_xlfn.SINGLE(КалендарныйГод),MONTH(_xlfn.SINGLE(АвгВс1)+19)=8),_xlfn.SINGLE(АвгВс1)+19,\"\"))","v":"2021-08-13"},{"$f":"IF(DAY(_xlfn.SINGLE(АвгВс1))=1,IF(AND(YEAR(_xlfn.SINGLE(АвгВс1)+13)=_xlfn.SINGLE(КалендарныйГод),MONTH(_xlfn.SINGLE(АвгВс1)+13)=8),_xlfn.SINGLE(АвгВс1)+13,\"\"),IF(AND(YEAR(_xlfn.SINGLE(АвгВс1)+20)=_xlfn.SINGLE(КалендарныйГод),MONTH(_xlfn.SINGLE(АвгВс1)+20)=8),_xlfn.SINGLE(АвгВс1)+20,\"\"))","v":"2021-08-14"},{"$f":"IF(DAY(_xlfn.SINGLE(АвгВс1))=1,IF(AND(YEAR(_xlfn.SINGLE(АвгВс1)+14)=_xlfn.SINGLE(КалендарныйГод),MONTH(_xlfn.SINGLE(АвгВс1)+14)=8),_xlfn.SINGLE(АвгВс1)+14,\"\"),IF(AND(YEAR(_xlfn.SINGLE(АвгВс1)+21)=_xlfn.SINGLE(КалендарныйГод),MONTH(_xlfn.SINGLE(АвгВс1)+21)=8),_xlfn.SINGLE(АвгВс1)+21,\"\"))","v":"2021-08-15"}]
[null,{"$f":"IF(DAY(_xlfn.SINGLE(МайВс1))=1,IF(AND(YEAR(_xlfn.SINGLE(МайВс1)+15)=_xlfn.SINGLE(КалендарныйГод),MONTH(_xlfn.SINGLE(МайВс1)+15)=5),_xlfn.SINGLE(МайВс1)+15,\"\"),IF(AND(YEAR(_xlfn.SINGLE(МайВс1)+22)=_xlfn.SINGLE(КалендарныйГод),MONTH(_xlfn.SINGLE(МайВс1)+22)=5),_xlfn.SINGLE(МайВс1)+22,\"\"))","v":"2021-05-17"},{"$f":"IF(DAY(_xlfn.SINGLE(МайВс1))=1,IF(AND(YEAR(_xlfn.SINGLE(МайВс1)+16)=_xlfn.SINGLE(КалендарныйГод),MONTH(_xlfn.SINGLE(МайВс1)+16)=5),_xlfn.SINGLE(МайВс1)+16,\"\"),IF(AND(YEAR(_xlfn.SINGLE(МайВс1)+23)=_xlfn.SINGLE(КалендарныйГод),MONTH(_xlfn.SINGLE(МайВс1)+23)=5),_xlfn.SINGLE(МайВс1)+23,\"\"))","v":"2021-05-18"},{"$f":"IF(DAY(_xlfn.SINGLE(МайВс1))=1,IF(AND(YEAR(_xlfn.SINGLE(МайВс1)+17)=_xlfn.SINGLE(КалендарныйГод),MONTH(_xlfn.SINGLE(МайВс1)+17)=5),_xlfn.SINGLE(МайВс1)+17,\"\"),IF(AND(YEAR(_xlfn.SINGLE(МайВс1)+24)=_xlfn.SINGLE(КалендарныйГод),MONTH(_xlfn.SINGLE(МайВс1)+24)=5),_xlfn.SINGLE(МайВс1)+24,\"\"))","v":"2021-05-19"},{"$f":"IF(DAY(_xlfn.SINGLE(МайВс1))=1,IF(AND(YEAR(_xlfn.SINGLE(МайВс1)+18)=_xlfn.SINGLE(КалендарныйГод),MONTH(_xlfn.SINGLE(МайВс1)+18)=5),_xlfn.SINGLE(МайВс1)+18,\"\"),IF(AND(YEAR(_xlfn.SINGLE(МайВс1)+25)=_xlfn.SINGLE(КалендарныйГод),MONTH(_xlfn.SINGLE(МайВс1)+25)=5),_xlfn.SINGLE(МайВс1)+25,\"\"))","v":"2021-05-20"},{"$f":"IF(DAY(_xlfn.SINGLE(МайВс1))=1,IF(AND(YEAR(_xlfn.SINGLE(МайВс1)+19)=_xlfn.SINGLE(КалендарныйГод),MONTH(_xlfn.SINGLE(МайВс1)+19)=5),_xlfn.SINGLE(МайВс1)+19,\"\"),IF(AND(YEAR(_xlfn.SINGLE(МайВс1)+26)=_xlfn.SINGLE(КалендарныйГод),MONTH(_xlfn.SINGLE(МайВс1)+26)=5),_xlfn.SINGLE(МайВс1)+26,\"\"))","v":"2021-05-21"},{"$f":"IF(DAY(_xlfn.SINGLE(МайВс1))=1,IF(AND(YEAR(_xlfn.SINGLE(МайВс1)+20)=_xlfn.SINGLE(КалендарныйГод),MONTH(_xlfn.SINGLE(МайВс1)+20)=5),_xlfn.SINGLE(МайВс1)+20,\"\"),IF(AND(YEAR(_xlfn.SINGLE(МайВс1)+27)=_xlfn.SINGLE(КалендарныйГод),MONTH(_xlfn.SINGLE(МайВс1)+27)=5),_xlfn.SINGLE(МайВс1)+27,\"\"))","v":"2021-05-22"},{"$f":"IF(DAY(_xlfn.SINGLE(МайВс1))=1,IF(AND(YEAR(_xlfn.SINGLE(МайВс1)+21)=_xlfn.SINGLE(КалендарныйГод),MONTH(_xlfn.SINGLE(МайВс1)+21)=5),_xlfn.SINGLE(МайВс1)+21,\"\"),IF(AND(YEAR(_xlfn.SINGLE(МайВс1)+28)=_xlfn.SINGLE(КалендарныйГод),MONTH(_xlfn.SINGLE(МайВс1)+28)=5),_xlfn.SINGLE(МайВс1)+28,\"\"))","v":"2021-05-23"},null,{"$f":"IF(DAY(_xlfn.SINGLE(ИюнВс1))=1,IF(AND(YEAR(_xlfn.SINGLE(ИюнВс1)+15)=_xlfn.SINGLE(КалендарныйГод),MONTH(_xlfn.SINGLE(ИюнВс1)+15)=6),_xlfn.SINGLE(ИюнВс1)+15,\"\"),IF(AND(YEAR(_xlfn.SINGLE(ИюнВс1)+22)=_xlfn.SINGLE(КалендарныйГод),MONTH(_xlfn.SINGLE(ИюнВс1)+22)=6),_xlfn.SINGLE(ИюнВс1)+22,\"\"))","v":"2021-06-21"},{"$f":"IF(DAY(_xlfn.SINGLE(ИюнВс1))=1,IF(AND(YEAR(_xlfn.SINGLE(ИюнВс1)+16)=_xlfn.SINGLE(КалендарныйГод),MONTH(_xlfn.SINGLE(ИюнВс1)+16)=6),_xlfn.SINGLE(ИюнВс1)+16,\"\"),IF(AND(YEAR(_xlfn.SINGLE(ИюнВс1)+23)=_xlfn.SINGLE(КалендарныйГод),MONTH(_xlfn.SINGLE(ИюнВс1)+23)=6),_xlfn.SINGLE(ИюнВс1)+23,\"\"))","v":"2021-06-22"},{"$f":"IF(DAY(_xlfn.SINGLE(ИюнВс1))=1,IF(AND(YEAR(_xlfn.SINGLE(ИюнВс1)+17)=_xlfn.SINGLE(КалендарныйГод),MONTH(_xlfn.SINGLE(ИюнВс1)+17)=6),_xlfn.SINGLE(ИюнВс1)+17,\"\"),IF(AND(YEAR(_xlfn.SINGLE(ИюнВс1)+24)=_xlfn.SINGLE(КалендарныйГод),MONTH(_xlfn.SINGLE(ИюнВс1)+24)=6),_xlfn.SINGLE(ИюнВс1)+24,\"\"))","v":"2021-06-23"},{"$f":"IF(DAY(_xlfn.SINGLE(ИюнВс1))=1,IF(AND(YEAR(_xlfn.SINGLE(ИюнВс1)+18)=_xlfn.SINGLE(КалендарныйГод),MONTH(_xlfn.SINGLE(ИюнВс1)+18)=6),_xlfn.SINGLE(ИюнВс1)+18,\"\"),IF(AND(YEAR(_xlfn.SINGLE(ИюнВс1)+25)=_xlfn.SINGLE(КалендарныйГод),MONTH(_xlfn.SINGLE(ИюнВс1)+25)=6),_xlfn.SINGLE(ИюнВс1)+25,\"\"))","v":"2021-06-24"},{"$f":"IF(DAY(_xlfn.SINGLE(ИюнВс1))=1,IF(AND(YEAR(_xlfn.SINGLE(ИюнВс1)+19)=_xlfn.SINGLE(КалендарныйГод),MONTH(_xlfn.SINGLE(ИюнВс1)+19)=6),_xlfn.SINGLE(ИюнВс1)+19,\"\"),IF(AND(YEAR(_xlfn.SINGLE(ИюнВс1)+26)=_xlfn.SINGLE(КалендарныйГод),MONTH(_xlfn.SINGLE(ИюнВс1)+26)=6),_xlfn.SINGLE(ИюнВс1)+26,\"\"))","v":"2021-06-25"},{"$f":"IF(DAY(_xlfn.SINGLE(ИюнВс1))=1,IF(AND(YEAR(_xlfn.SINGLE(ИюнВс1)+20)=_xlfn.SINGLE(КалендарныйГод),MONTH(_xlfn.SINGLE(ИюнВс1)+20)=6),_xlfn.SINGLE(ИюнВс1)+20,\"\"),IF(AND(YEAR(_xlfn.SINGLE(ИюнВс1)+27)=_xlfn.SINGLE(КалендарныйГод),MONTH(_xlfn.SINGLE(ИюнВс1)+27)=6),_xlfn.SINGLE(ИюнВс1)+27,\"\"))","v":"2021-06-26"},{"$f":"IF(DAY(_xlfn.SINGLE(ИюнВс1))=1,IF(AND(YEAR(_xlfn.SINGLE(ИюнВс1)+21)=_xlfn.SINGLE(КалендарныйГод),MONTH(_xlfn.SINGLE(ИюнВс1)+21)=6),_xlfn.SINGLE(ИюнВс1)+21,\"\"),IF(AND(YEAR(_xlfn.SINGLE(ИюнВс1)+28)=_xlfn.SINGLE(КалендарныйГод),MONTH(_xlfn.SINGLE(ИюнВс1)+28)=6),_xlfn.SINGLE(ИюнВс1)+28,\"\"))","v":"2021-06-27"},null,{"$f":"IF(DAY(_xlfn.SINGLE(ИюлВс1))=1,IF(AND(YEAR(_xlfn.SINGLE(ИюлВс1)+15)=_xlfn.SINGLE(КалендарныйГод),MONTH(_xlfn.SINGLE(ИюлВс1)+15)=7),_xlfn.SINGLE(ИюлВс1)+15,\"\"),IF(AND(YEAR(_xlfn.SINGLE(ИюлВс1)+22)=_xlfn.SINGLE(КалендарныйГод),MONTH(_xlfn.SINGLE(ИюлВс1)+22)=7),_xlfn.SINGLE(ИюлВс1)+22,\"\"))","v":"2021-07-19"},{"$f":"IF(DAY(_xlfn.SINGLE(ИюлВс1))=1,IF(AND(YEAR(_xlfn.SINGLE(ИюлВс1)+16)=_xlfn.SINGLE(КалендарныйГод),MONTH(_xlfn.SINGLE(ИюлВс1)+16)=7),_xlfn.SINGLE(ИюлВс1)+16,\"\"),IF(AND(YEAR(_xlfn.SINGLE(ИюлВс1)+23)=_xlfn.SINGLE(КалендарныйГод),MONTH(_xlfn.SINGLE(ИюлВс1)+23)=7),_xlfn.SINGLE(ИюлВс1)+23,\"\"))","v":"2021-07-20"},{"$f":"IF(DAY(_xlfn.SINGLE(ИюлВс1))=1,IF(AND(YEAR(_xlfn.SINGLE(ИюлВс1)+17)=_xlfn.SINGLE(КалендарныйГод),MONTH(_xlfn.SINGLE(ИюлВс1)+17)=7),_xlfn.SINGLE(ИюлВс1)+17,\"\"),IF(AND(YEAR(_xlfn.SINGLE(ИюлВс1)+24)=_xlfn.SINGLE(КалендарныйГод),MONTH(_xlfn.SINGLE(ИюлВс1)+24)=7),_xlfn.SINGLE(ИюлВс1)+24,\"\"))","v":"2021-07-21"},{"$f":"IF(DAY(_xlfn.SINGLE(ИюлВс1))=1,IF(AND(YEAR(_xlfn.SINGLE(ИюлВс1)+18)=_xlfn.SINGLE(КалендарныйГод),MONTH(_xlfn.SINGLE(ИюлВс1)+18)=7),_xlfn.SINGLE(ИюлВс1)+18,\"\"),IF(AND(YEAR(_xlfn.SINGLE(ИюлВс1)+25)=_xlfn.SINGLE(КалендарныйГод),MONTH(_xlfn.SINGLE(ИюлВс1)+25)=7),_xlfn.SINGLE(ИюлВс1)+25,\"\"))","v":"2021-07-22"},{"$f":"IF(DAY(_xlfn.SINGLE(ИюлВс1))=1,IF(AND(YEAR(_xlfn.SINGLE(ИюлВс1)+19)=_xlfn.SINGLE(КалендарныйГод),MONTH(_xlfn.SINGLE(ИюлВс1)+19)=7),_xlfn.SINGLE(ИюлВс1)+19,\"\"),IF(AND(YEAR(_xlfn.SINGLE(ИюлВс1)+26)=_xlfn.SINGLE(КалендарныйГод),MONTH(_xlfn.SINGLE(ИюлВс1)+26)=7),_xlfn.SINGLE(ИюлВс1)+26,\"\"))","v":"2021-07-23"},{"$f":"IF(DAY(_xlfn.SINGLE(ИюлВс1))=1,IF(AND(YEAR(_xlfn.SINGLE(ИюлВс1)+20)=_xlfn.SINGLE(КалендарныйГод),MONTH(_xlfn.SINGLE(ИюлВс1)+20)=7),_xlfn.SINGLE(ИюлВс1)+20,\"\"),IF(AND(YEAR(_xlfn.SINGLE(ИюлВс1)+27)=_xlfn.SINGLE(КалендарныйГод),MONTH(_xlfn.SINGLE(ИюлВс1)+27)=7),_xlfn.SINGLE(ИюлВс1)+27,\"\"))","v":"2021-07-24"},{"$f":"IF(DAY(_xlfn.SINGLE(ИюлВс1))=1,IF(AND(YEAR(_xlfn.SINGLE(ИюлВс1)+21)=_xlfn.SINGLE(КалендарныйГод),MONTH(_xlfn.SINGLE(ИюлВс1)+21)=7),_xlfn.SINGLE(ИюлВс1)+21,\"\"),IF(AND(YEAR(_xlfn.SINGLE(ИюлВс1)+28)=_xlfn.SINGLE(КалендарныйГод),MONTH(_xlfn.SINGLE(ИюлВс1)+28)=7),_xlfn.SINGLE(ИюлВс1)+28,\"\"))","v":"2021-07-25"},null,{"$f":"IF(DAY(_xlfn.SINGLE(АвгВс1))=1,IF(AND(YEAR(_xlfn.SINGLE(АвгВс1)+15)=_xlfn.SINGLE(КалендарныйГод),MONTH(_xlfn.SINGLE(АвгВс1)+15)=8),_xlfn.SINGLE(АвгВс1)+15,\"\"),IF(AND(YEAR(_xlfn.SINGLE(АвгВс1)+22)=_xlfn.SINGLE(КалендарныйГод),MONTH(_xlfn.SINGLE(АвгВс1)+22)=8),_xlfn.SINGLE(АвгВс1)+22,\"\"))","v":"2021-08-16"},{"$f":"IF(DAY(_xlfn.SINGLE(АвгВс1))=1,IF(AND(YEAR(_xlfn.SINGLE(АвгВс1)+16)=_xlfn.SINGLE(КалендарныйГод),MONTH(_xlfn.SINGLE(АвгВс1)+16)=8),_xlfn.SINGLE(АвгВс1)+16,\"\"),IF(AND(YEAR(_xlfn.SINGLE(АвгВс1)+23)=_xlfn.SINGLE(КалендарныйГод),MONTH(_xlfn.SINGLE(АвгВс1)+23)=8),_xlfn.SINGLE(АвгВс1)+23,\"\"))","v":"2021-08-17"},{"$f":"IF(DAY(_xlfn.SINGLE(АвгВс1))=1,IF(AND(YEAR(_xlfn.SINGLE(АвгВс1)+17)=_xlfn.SINGLE(КалендарныйГод),MONTH(_xlfn.SINGLE(АвгВс1)+17)=8),_xlfn.SINGLE(АвгВс1)+17,\"\"),IF(AND(YEAR(_xlfn.SINGLE(АвгВс1)+24)=_xlfn.SINGLE(КалендарныйГод),MONTH(_xlfn.SINGLE(АвгВс1)+24)=8),_xlfn.SINGLE(АвгВс1)+24,\"\"))","v":"2021-08-18"},{"$f":"IF(DAY(_xlfn.SINGLE(АвгВс1))=1,IF(AND(YEAR(_xlfn.SINGLE(АвгВс1)+18)=_xlfn.SINGLE(КалендарныйГод),MONTH(_xlfn.SINGLE(АвгВс1)+18)=8),_xlfn.SINGLE(АвгВс1)+18,\"\"),IF(AND(YEAR(_xlfn.SINGLE(АвгВс1)+25)=_xlfn.SINGLE(КалендарныйГод),MONTH(_xlfn.SINGLE(АвгВс1)+25)=8),_xlfn.SINGLE(АвгВс1)+25,\"\"))","v":"2021-08-19"},{"$f":"IF(DAY(_xlfn.SINGLE(АвгВс1))=1,IF(AND(YEAR(_xlfn.SINGLE(АвгВс1)+19)=_xlfn.SINGLE(КалендарныйГод),MONTH(_xlfn.SINGLE(АвгВс1)+19)=8),_xlfn.SINGLE(АвгВс1)+19,\"\"),IF(AND(YEAR(_xlfn.SINGLE(АвгВс1)+26)=_xlfn.SINGLE(КалендарныйГод),MONTH(_xlfn.SINGLE(АвгВс1)+26)=8),_xlfn.SINGLE(АвгВс1)+26,\"\"))","v":"2021-08-20"},{"$f":"IF(DAY(_xlfn.SINGLE(АвгВс1))=1,IF(AND(YEAR(_xlfn.SINGLE(АвгВс1)+20)=_xlfn.SINGLE(КалендарныйГод),MONTH(_xlfn.SINGLE(АвгВс1)+20)=8),_xlfn.SINGLE(АвгВс1)+20,\"\"),IF(AND(YEAR(_xlfn.SINGLE(АвгВс1)+27)=_xlfn.SINGLE(КалендарныйГод),MONTH(_xlfn.SINGLE(АвгВс1)+27)=8),_xlfn.SINGLE(АвгВс1)+27,\"\"))","v":"2021-08-21"},{"$f":"IF(DAY(_xlfn.SINGLE(АвгВс1))=1,IF(AND(YEAR(_xlfn.SINGLE(АвгВс1)+21)=_xlfn.SINGLE(КалендарныйГод),MONTH(_xlfn.SINGLE(АвгВс1)+21)=8),_xlfn.SINGLE(АвгВс1)+21,\"\"),IF(AND(YEAR(_xlfn.SINGLE(АвгВс1)+28)=_xlfn.SINGLE(КалендарныйГод),MONTH(_xlfn.SINGLE(АвгВс1)+28)=8),_xlfn.SINGLE(АвгВс1)+28,\"\"))","v":"2021-08-22"}]
[null,{"$f":"IF(DAY(_xlfn.SINGLE(МайВс1))=1,IF(AND(YEAR(_xlfn.SINGLE(МайВс1)+22)=_xlfn.SINGLE(КалендарныйГод),MONTH(_xlfn.SINGLE(МайВс1)+22)=5),_xlfn.SINGLE(МайВс1)+22,\"\"),IF(AND(YEAR(_xlfn.SINGLE(МайВс1)+29)=_xlfn.SINGLE(КалендарныйГод),MONTH(_xlfn.SINGLE(МайВс1)+29)=5),_xlfn.SINGLE(МайВс1)+29,\"\"))","v":"2021-05-24"},{"$f":"IF(DAY(_xlfn.SINGLE(МайВс1))=1,IF(AND(YEAR(_xlfn.SINGLE(МайВс1)+23)=_xlfn.SINGLE(КалендарныйГод),MONTH(_xlfn.SINGLE(МайВс1)+23)=5),_xlfn.SINGLE(МайВс1)+23,\"\"),IF(AND(YEAR(_xlfn.SINGLE(МайВс1)+30)=_xlfn.SINGLE(КалендарныйГод),MONTH(_xlfn.SINGLE(МайВс1)+30)=5),_xlfn.SINGLE(МайВс1)+30,\"\"))","v":"2021-05-25"},{"$f":"IF(DAY(_xlfn.SINGLE(МайВс1))=1,IF(AND(YEAR(_xlfn.SINGLE(МайВс1)+24)=_xlfn.SINGLE(КалендарныйГод),MONTH(_xlfn.SINGLE(МайВс1)+24)=5),_xlfn.SINGLE(МайВс1)+24,\"\"),IF(AND(YEAR(_xlfn.SINGLE(МайВс1)+31)=_xlfn.SINGLE(КалендарныйГод),MONTH(_xlfn.SINGLE(МайВс1)+31)=5),_xlfn.SINGLE(МайВс1)+31,\"\"))","v":"2021-05-26"},{"$f":"IF(DAY(_xlfn.SINGLE(МайВс1))=1,IF(AND(YEAR(_xlfn.SINGLE(МайВс1)+25)=_xlfn.SINGLE(КалендарныйГод),MONTH(_xlfn.SINGLE(МайВс1)+25)=5),_xlfn.SINGLE(МайВс1)+25,\"\"),IF(AND(YEAR(_xlfn.SINGLE(МайВс1)+32)=_xlfn.SINGLE(КалендарныйГод),MONTH(_xlfn.SINGLE(МайВс1)+32)=5),_xlfn.SINGLE(МайВс1)+32,\"\"))","v":"2021-05-27"},{"$f":"IF(DAY(_xlfn.SINGLE(МайВс1))=1,IF(AND(YEAR(_xlfn.SINGLE(МайВс1)+26)=_xlfn.SINGLE(КалендарныйГод),MONTH(_xlfn.SINGLE(МайВс1)+26)=5),_xlfn.SINGLE(МайВс1)+26,\"\"),IF(AND(YEAR(_xlfn.SINGLE(МайВс1)+33)=_xlfn.SINGLE(КалендарныйГод),MONTH(_xlfn.SINGLE(МайВс1)+33)=5),_xlfn.SINGLE(МайВс1)+33,\"\"))","v":"2021-05-28"},{"$f":"IF(DAY(_xlfn.SINGLE(МайВс1))=1,IF(AND(YEAR(_xlfn.SINGLE(МайВс1)+27)=_xlfn.SINGLE(КалендарныйГод),MONTH(_xlfn.SINGLE(МайВс1)+27)=5),_xlfn.SINGLE(МайВс1)+27,\"\"),IF(AND(YEAR(_xlfn.SINGLE(МайВс1)+34)=_xlfn.SINGLE(КалендарныйГод),MONTH(_xlfn.SINGLE(МайВс1)+34)=5),_xlfn.SINGLE(МайВс1)+34,\"\"))","v":"2021-05-29"},{"$f":"IF(DAY(_xlfn.SINGLE(МайВс1))=1,IF(AND(YEAR(_xlfn.SINGLE(МайВс1)+28)=_xlfn.SINGLE(КалендарныйГод),MONTH(_xlfn.SINGLE(МайВс1)+28)=5),_xlfn.SINGLE(МайВс1)+28,\"\"),IF(AND(YEAR(_xlfn.SINGLE(МайВс1)+35)=_xlfn.SINGLE(КалендарныйГод),MONTH(_xlfn.SINGLE(МайВс1)+35)=5),_xlfn.SINGLE(МайВс1)+35,\"\"))","v":"2021-05-30"},null,{"$f":"IF(DAY(_xlfn.SINGLE(ИюнВс1))=1,IF(AND(YEAR(_xlfn.SINGLE(ИюнВс1)+22)=_xlfn.SINGLE(КалендарныйГод),MONTH(_xlfn.SINGLE(ИюнВс1)+22)=6),_xlfn.SINGLE(ИюнВс1)+22,\"\"),IF(AND(YEAR(_xlfn.SINGLE(ИюнВс1)+29)=_xlfn.SINGLE(КалендарныйГод),MONTH(_xlfn.SINGLE(ИюнВс1)+29)=6),_xlfn.SINGLE(ИюнВс1)+29,\"\"))","v":"2021-06-28"},{"$f":"IF(DAY(_xlfn.SINGLE(ИюнВс1))=1,IF(AND(YEAR(_xlfn.SINGLE(ИюнВс1)+23)=_xlfn.SINGLE(КалендарныйГод),MONTH(_xlfn.SINGLE(ИюнВс1)+23)=6),_xlfn.SINGLE(ИюнВс1)+23,\"\"),IF(AND(YEAR(_xlfn.SINGLE(ИюнВс1)+30)=_xlfn.SINGLE(КалендарныйГод),MONTH(_xlfn.SINGLE(ИюнВс1)+30)=6),_xlfn.SINGLE(ИюнВс1)+30,\"\"))","v":"2021-06-29"},{"$f":"IF(DAY(_xlfn.SINGLE(ИюнВс1))=1,IF(AND(YEAR(_xlfn.SINGLE(ИюнВс1)+24)=_xlfn.SINGLE(КалендарныйГод),MONTH(_xlfn.SINGLE(ИюнВс1)+24)=6),_xlfn.SINGLE(ИюнВс1)+24,\"\"),IF(AND(YEAR(_xlfn.SINGLE(ИюнВс1)+31)=_xlfn.SINGLE(КалендарныйГод),MONTH(_xlfn.SINGLE(ИюнВс1)+31)=6),_xlfn.SINGLE(ИюнВс1)+31,\"\"))","v":"2021-06-30"},{"$f":"IF(DAY(_xlfn.SINGLE(ИюнВс1))=1,IF(AND(YEAR(_xlfn.SINGLE(ИюнВс1)+25)=_xlfn.SINGLE(КалендарныйГод),MONTH(_xlfn.SINGLE(ИюнВс1)+25)=6),_xlfn.SINGLE(ИюнВс1)+25,\"\"),IF(AND(YEAR(_xlfn.SINGLE(ИюнВс1)+32)=_xlfn.SINGLE(КалендарныйГод),MONTH(_xlfn.SINGLE(ИюнВс1)+32)=6),_xlfn.SINGLE(ИюнВс1)+32,\"\"))","v":""},{"$f":"IF(DAY(_xlfn.SINGLE(ИюнВс1))=1,IF(AND(YEAR(_xlfn.SINGLE(ИюнВс1)+26)=_xlfn.SINGLE(КалендарныйГод),MONTH(_xlfn.SINGLE(ИюнВс1)+26)=6),_xlfn.SINGLE(ИюнВс1)+26,\"\"),IF(AND(YEAR(_xlfn.SINGLE(ИюнВс1)+33)=_xlfn.SINGLE(КалендарныйГод),MONTH(_xlfn.SINGLE(ИюнВс1)+33)=6),_xlfn.SINGLE(ИюнВс1)+33,\"\"))","v":""},{"$f":"IF(DAY(_xlfn.SINGLE(ИюнВс1))=1,IF(AND(YEAR(_xlfn.SINGLE(ИюнВс1)+27)=_xlfn.SINGLE(КалендарныйГод),MONTH(_xlfn.SINGLE(ИюнВс1)+27)=6),_xlfn.SINGLE(ИюнВс1)+27,\"\"),IF(AND(YEAR(_xlfn.SINGLE(ИюнВс1)+34)=_xlfn.SINGLE(КалендарныйГод),MONTH(_xlfn.SINGLE(ИюнВс1)+34)=6),_xlfn.SINGLE(ИюнВс1)+34,\"\"))","v":""},{"$f":"IF(DAY(_xlfn.SINGLE(ИюнВс1))=1,IF(AND(YEAR(_xlfn.SINGLE(ИюнВс1)+28)=_xlfn.SINGLE(КалендарныйГод),MONTH(_xlfn.SINGLE(ИюнВс1)+28)=6),_xlfn.SINGLE(ИюнВс1)+28,\"\"),IF(AND(YEAR(_xlfn.SINGLE(ИюнВс1)+35)=_xlfn.SINGLE(КалендарныйГод),MONTH(_xlfn.SINGLE(ИюнВс1)+35)=6),_xlfn.SINGLE(ИюнВс1)+35,\"\"))","v":""},null,{"$f":"IF(DAY(_xlfn.SINGLE(ИюлВс1))=1,IF(AND(YEAR(_xlfn.SINGLE(ИюлВс1)+22)=_xlfn.SINGLE(КалендарныйГод),MONTH(_xlfn.SINGLE(ИюлВс1)+22)=7),_xlfn.SINGLE(ИюлВс1)+22,\"\"),IF(AND(YEAR(_xlfn.SINGLE(ИюлВс1)+29)=_xlfn.SINGLE(КалендарныйГод),MONTH(_xlfn.SINGLE(ИюлВс1)+29)=7),_xlfn.SINGLE(ИюлВс1)+29,\"\"))","v":"2021-07-26"},{"$f":"IF(DAY(_xlfn.SINGLE(ИюлВс1))=1,IF(AND(YEAR(_xlfn.SINGLE(ИюлВс1)+23)=_xlfn.SINGLE(КалендарныйГод),MONTH(_xlfn.SINGLE(ИюлВс1)+23)=7),_xlfn.SINGLE(ИюлВс1)+23,\"\"),IF(AND(YEAR(_xlfn.SINGLE(ИюлВс1)+30)=_xlfn.SINGLE(КалендарныйГод),MONTH(_xlfn.SINGLE(ИюлВс1)+30)=7),_xlfn.SINGLE(ИюлВс1)+30,\"\"))","v":"2021-07-27"},{"$f":"IF(DAY(_xlfn.SINGLE(ИюлВс1))=1,IF(AND(YEAR(_xlfn.SINGLE(ИюлВс1)+24)=_xlfn.SINGLE(КалендарныйГод),MONTH(_xlfn.SINGLE(ИюлВс1)+24)=7),_xlfn.SINGLE(ИюлВс1)+24,\"\"),IF(AND(YEAR(_xlfn.SINGLE(ИюлВс1)+31)=_xlfn.SINGLE(КалендарныйГод),MONTH(_xlfn.SINGLE(ИюлВс1)+31)=7),_xlfn.SINGLE(ИюлВс1)+31,\"\"))","v":"2021-07-28"},{"$f":"IF(DAY(_xlfn.SINGLE(ИюлВс1))=1,IF(AND(YEAR(_xlfn.SINGLE(ИюлВс1)+25)=_xlfn.SINGLE(КалендарныйГод),MONTH(_xlfn.SINGLE(ИюлВс1)+25)=7),_xlfn.SINGLE(ИюлВс1)+25,\"\"),IF(AND(YEAR(_xlfn.SINGLE(ИюлВс1)+32)=_xlfn.SINGLE(КалендарныйГод),MONTH(_xlfn.SINGLE(ИюлВс1)+32)=7),_xlfn.SINGLE(ИюлВс1)+32,\"\"))","v":"2021-07-29"},{"$f":"IF(DAY(_xlfn.SINGLE(ИюлВс1))=1,IF(AND(YEAR(_xlfn.SINGLE(ИюлВс1)+26)=_xlfn.SINGLE(КалендарныйГод),MONTH(_xlfn.SINGLE(ИюлВс1)+26)=7),_xlfn.SINGLE(ИюлВс1)+26,\"\"),IF(AND(YEAR(_xlfn.SINGLE(ИюлВс1)+33)=_xlfn.SINGLE(КалендарныйГод),MONTH(_xlfn.SINGLE(ИюлВс1)+33)=7),_xlfn.SINGLE(ИюлВс1)+33,\"\"))","v":"2021-07-30"},{"$f":"IF(DAY(_xlfn.SINGLE(ИюлВс1))=1,IF(AND(YEAR(_xlfn.SINGLE(ИюлВс1)+27)=_xlfn.SINGLE(КалендарныйГод),MONTH(_xlfn.SINGLE(ИюлВс1)+27)=7),_xlfn.SINGLE(ИюлВс1)+27,\"\"),IF(AND(YEAR(_xlfn.SINGLE(ИюлВс1)+34)=_xlfn.SINGLE(КалендарныйГод),MONTH(_xlfn.SINGLE(ИюлВс1)+34)=7),_xlfn.SINGLE(ИюлВс1)+34,\"\"))","v":"2021-07-31"},{"$f":"IF(DAY(_xlfn.SINGLE(ИюлВс1))=1,IF(AND(YEAR(_xlfn.SINGLE(ИюлВс1)+28)=_xlfn.SINGLE(КалендарныйГод),MONTH(_xlfn.SINGLE(ИюлВс1)+28)=7),_xlfn.SINGLE(ИюлВс1)+28,\"\"),IF(AND(YEAR(_xlfn.SINGLE(ИюлВс1)+35)=_xlfn.SINGLE(КалендарныйГод),MONTH(_xlfn.SINGLE(ИюлВс1)+35)=7),_xlfn.SINGLE(ИюлВс1)+35,\"\"))","v":""},null,{"$f":"IF(DAY(_xlfn.SINGLE(АвгВс1))=1,IF(AND(YEAR(_xlfn.SINGLE(АвгВс1)+22)=_xlfn.SINGLE(КалендарныйГод),MONTH(_xlfn.SINGLE(АвгВс1)+22)=8),_xlfn.SINGLE(АвгВс1)+22,\"\"),IF(AND(YEAR(_xlfn.SINGLE(АвгВс1)+29)=_xlfn.SINGLE(КалендарныйГод),MONTH(_xlfn.SINGLE(АвгВс1)+29)=8),_xlfn.SINGLE(АвгВс1)+29,\"\"))","v":"2021-08-23"},{"$f":"IF(DAY(_xlfn.SINGLE(АвгВс1))=1,IF(AND(YEAR(_xlfn.SINGLE(АвгВс1)+23)=_xlfn.SINGLE(КалендарныйГод),MONTH(_xlfn.SINGLE(АвгВс1)+23)=8),_xlfn.SINGLE(АвгВс1)+23,\"\"),IF(AND(YEAR(_xlfn.SINGLE(АвгВс1)+30)=_xlfn.SINGLE(КалендарныйГод),MONTH(_xlfn.SINGLE(АвгВс1)+30)=8),_xlfn.SINGLE(АвгВс1)+30,\"\"))","v":"2021-08-24"},{"$f":"IF(DAY(_xlfn.SINGLE(АвгВс1))=1,IF(AND(YEAR(_xlfn.SINGLE(АвгВс1)+24)=_xlfn.SINGLE(КалендарныйГод),MONTH(_xlfn.SINGLE(АвгВс1)+24)=8),_xlfn.SINGLE(АвгВс1)+24,\"\"),IF(AND(YEAR(_xlfn.SINGLE(АвгВс1)+31)=_xlfn.SINGLE(КалендарныйГод),MONTH(_xlfn.SINGLE(АвгВс1)+31)=8),_xlfn.SINGLE(АвгВс1)+31,\"\"))","v":"2021-08-25"},{"$f":"IF(DAY(_xlfn.SINGLE(АвгВс1))=1,IF(AND(YEAR(_xlfn.SINGLE(АвгВс1)+25)=_xlfn.SINGLE(КалендарныйГод),MONTH(_xlfn.SINGLE(АвгВс1)+25)=8),_xlfn.SINGLE(АвгВс1)+25,\"\"),IF(AND(YEAR(_xlfn.SINGLE(АвгВс1)+32)=_xlfn.SINGLE(КалендарныйГод),MONTH(_xlfn.SINGLE(АвгВс1)+32)=8),_xlfn.SINGLE(АвгВс1)+32,\"\"))","v":"2021-08-26"},{"$f":"IF(DAY(_xlfn.SINGLE(АвгВс1))=1,IF(AND(YEAR(_xlfn.SINGLE(АвгВс1)+26)=_xlfn.SINGLE(КалендарныйГод),MONTH(_xlfn.SINGLE(АвгВс1)+26)=8),_xlfn.SINGLE(АвгВс1)+26,\"\"),IF(AND(YEAR(_xlfn.SINGLE(АвгВс1)+33)=_xlfn.SINGLE(КалендарныйГод),MONTH(_xlfn.SINGLE(АвгВс1)+33)=8),_xlfn.SINGLE(АвгВс1)+33,\"\"))","v":"2021-08-27"},{"$f":"IF(DAY(_xlfn.SINGLE(АвгВс1))=1,IF(AND(YEAR(_xlfn.SINGLE(АвгВс1)+27)=_xlfn.SINGLE(КалендарныйГод),MONTH(_xlfn.SINGLE(АвгВс1)+27)=8),_xlfn.SINGLE(АвгВс1)+27,\"\"),IF(AND(YEAR(_xlfn.SINGLE(АвгВс1)+34)=_xlfn.SINGLE(КалендарныйГод),MONTH(_xlfn.SINGLE(АвгВс1)+34)=8),_xlfn.SINGLE(АвгВс1)+34,\"\"))","v":"2021-08-28"},{"$f":"IF(DAY(_xlfn.SINGLE(АвгВс1))=1,IF(AND(YEAR(_xlfn.SINGLE(АвгВс1)+28)=_xlfn.SINGLE(КалендарныйГод),MONTH(_xlfn.SINGLE(АвгВс1)+28)=8),_xlfn.SINGLE(АвгВс1)+28,\"\"),IF(AND(YEAR(_xlfn.SINGLE(АвгВс1)+35)=_xlfn.SINGLE(КалендарныйГод),MONTH(_xlfn.SINGLE(АвгВс1)+35)=8),_xlfn.SINGLE(АвгВс1)+35,\"\"))","v":"2021-08-29"}]
[null,{"$f":"IF(DAY(_xlfn.SINGLE(МайВс1))=1,IF(AND(YEAR(_xlfn.SINGLE(МайВс1)+29)=_xlfn.SINGLE(КалендарныйГод),MONTH(_xlfn.SINGLE(МайВс1)+29)=5),_xlfn.SINGLE(МайВс1)+29,\"\"),IF(AND(YEAR(_xlfn.SINGLE(МайВс1)+36)=_xlfn.SINGLE(КалендарныйГод),MONTH(_xlfn.SINGLE(МайВс1)+36)=5),_xlfn.SINGLE(МайВс1)+36,\"\"))","v":"2021-05-31"},{"$f":"IF(DAY(_xlfn.SINGLE(МайВс1))=1,IF(AND(YEAR(_xlfn.SINGLE(МайВс1)+30)=_xlfn.SINGLE(КалендарныйГод),MONTH(_xlfn.SINGLE(МайВс1)+30)=5),_xlfn.SINGLE(МайВс1)+30,\"\"),IF(AND(YEAR(_xlfn.SINGLE(МайВс1)+37)=_xlfn.SINGLE(КалендарныйГод),MONTH(_xlfn.SINGLE(МайВс1)+37)=5),_xlfn.SINGLE(МайВс1)+37,\"\"))","v":""},{"$f":"IF(DAY(_xlfn.SINGLE(МайВс1))=1,IF(AND(YEAR(_xlfn.SINGLE(МайВс1)+31)=_xlfn.SINGLE(КалендарныйГод),MONTH(_xlfn.SINGLE(МайВс1)+31)=5),_xlfn.SINGLE(МайВс1)+31,\"\"),IF(AND(YEAR(_xlfn.SINGLE(МайВс1)+38)=_xlfn.SINGLE(КалендарныйГод),MONTH(_xlfn.SINGLE(МайВс1)+38)=5),_xlfn.SINGLE(МайВс1)+38,\"\"))","v":""},{"$f":"IF(DAY(_xlfn.SINGLE(МайВс1))=1,IF(AND(YEAR(_xlfn.SINGLE(МайВс1)+32)=_xlfn.SINGLE(КалендарныйГод),MONTH(_xlfn.SINGLE(МайВс1)+32)=5),_xlfn.SINGLE(МайВс1)+32,\"\"),IF(AND(YEAR(_xlfn.SINGLE(МайВс1)+39)=_xlfn.SINGLE(КалендарныйГод),MONTH(_xlfn.SINGLE(МайВс1)+39)=5),_xlfn.SINGLE(МайВс1)+39,\"\"))","v":""},{"$f":"IF(DAY(_xlfn.SINGLE(МайВс1))=1,IF(AND(YEAR(_xlfn.SINGLE(МайВс1)+33)=_xlfn.SINGLE(КалендарныйГод),MONTH(_xlfn.SINGLE(МайВс1)+33)=5),_xlfn.SINGLE(МайВс1)+33,\"\"),IF(AND(YEAR(_xlfn.SINGLE(МайВс1)+40)=_xlfn.SINGLE(КалендарныйГод),MONTH(_xlfn.SINGLE(МайВс1)+40)=5),_xlfn.SINGLE(МайВс1)+40,\"\"))","v":""},{"$f":"IF(DAY(_xlfn.SINGLE(МайВс1))=1,IF(AND(YEAR(_xlfn.SINGLE(МайВс1)+34)=_xlfn.SINGLE(КалендарныйГод),MONTH(_xlfn.SINGLE(МайВс1)+34)=5),_xlfn.SINGLE(МайВс1)+34,\"\"),IF(AND(YEAR(_xlfn.SINGLE(МайВс1)+41)=_xlfn.SINGLE(КалендарныйГод),MONTH(_xlfn.SINGLE(МайВс1)+41)=5),_xlfn.SINGLE(МайВс1)+41,\"\"))","v":""},{"$f":"IF(DAY(_xlfn.SINGLE(МайВс1))=1,IF(AND(YEAR(_xlfn.SINGLE(МайВс1)+35)=_xlfn.SINGLE(КалендарныйГод),MONTH(_xlfn.SINGLE(МайВс1)+35)=5),_xlfn.SINGLE(МайВс1)+35,\"\"),IF(AND(YEAR(_xlfn.SINGLE(МайВс1)+42)=_xlfn.SINGLE(КалендарныйГод),MONTH(_xlfn.SINGLE(МайВс1)+42)=5),_xlfn.SINGLE(МайВс1)+42,\"\"))","v":""},null,{"$f":"IF(DAY(_xlfn.SINGLE(ИюнВс1))=1,IF(AND(YEAR(_xlfn.SINGLE(ИюнВс1)+29)=_xlfn.SINGLE(КалендарныйГод),MONTH(_xlfn.SINGLE(ИюнВс1)+29)=6),_xlfn.SINGLE(ИюнВс1)+29,\"\"),IF(AND(YEAR(_xlfn.SINGLE(ИюнВс1)+36)=_xlfn.SINGLE(КалендарныйГод),MONTH(_xlfn.SINGLE(ИюнВс1)+36)=6),_xlfn.SINGLE(ИюнВс1)+36,\"\"))","v":""},{"$f":"IF(DAY(_xlfn.SINGLE(ИюнВс1))=1,IF(AND(YEAR(_xlfn.SINGLE(ИюнВс1)+30)=_xlfn.SINGLE(КалендарныйГод),MONTH(_xlfn.SINGLE(ИюнВс1)+30)=6),_xlfn.SINGLE(ИюнВс1)+30,\"\"),IF(AND(YEAR(_xlfn.SINGLE(ИюнВс1)+37)=_xlfn.SINGLE(КалендарныйГод),MONTH(_xlfn.SINGLE(ИюнВс1)+37)=6),_xlfn.SINGLE(ИюнВс1)+37,\"\"))","v":""},{"$f":"IF(DAY(_xlfn.SINGLE(ИюнВс1))=1,IF(AND(YEAR(_xlfn.SINGLE(ИюнВс1)+31)=_xlfn.SINGLE(КалендарныйГод),MONTH(_xlfn.SINGLE(ИюнВс1)+31)=6),_xlfn.SINGLE(ИюнВс1)+31,\"\"),IF(AND(YEAR(_xlfn.SINGLE(ИюнВс1)+38)=_xlfn.SINGLE(КалендарныйГод),MONTH(_xlfn.SINGLE(ИюнВс1)+38)=6),_xlfn.SINGLE(ИюнВс1)+38,\"\"))","v":""},{"$f":"IF(DAY(_xlfn.SINGLE(ИюнВс1))=1,IF(AND(YEAR(_xlfn.SINGLE(ИюнВс1)+32)=_xlfn.SINGLE(КалендарныйГод),MONTH(_xlfn.SINGLE(ИюнВс1)+32)=6),_xlfn.SINGLE(ИюнВс1)+32,\"\"),IF(AND(YEAR(_xlfn.SINGLE(ИюнВс1)+39)=_xlfn.SINGLE(КалендарныйГод),MONTH(_xlfn.SINGLE(ИюнВс1)+39)=6),_xlfn.SINGLE(ИюнВс1)+39,\"\"))","v":""},{"$f":"IF(DAY(_xlfn.SINGLE(ИюнВс1))=1,IF(AND(YEAR(_xlfn.SINGLE(ИюнВс1)+33)=_xlfn.SINGLE(КалендарныйГод),MONTH(_xlfn.SINGLE(ИюнВс1)+33)=6),_xlfn.SINGLE(ИюнВс1)+33,\"\"),IF(AND(YEAR(_xlfn.SINGLE(ИюнВс1)+40)=_xlfn.SINGLE(КалендарныйГод),MONTH(_xlfn.SINGLE(ИюнВс1)+40)=6),_xlfn.SINGLE(ИюнВс1)+40,\"\"))","v":""},{"$f":"IF(DAY(_xlfn.SINGLE(ИюнВс1))=1,IF(AND(YEAR(_xlfn.SINGLE(ИюнВс1)+34)=_xlfn.SINGLE(КалендарныйГод),MONTH(_xlfn.SINGLE(ИюнВс1)+34)=6),_xlfn.SINGLE(ИюнВс1)+34,\"\"),IF(AND(YEAR(_xlfn.SINGLE(ИюнВс1)+41)=_xlfn.SINGLE(КалендарныйГод),MONTH(_xlfn.SINGLE(ИюнВс1)+41)=6),_xlfn.SINGLE(ИюнВс1)+41,\"\"))","v":""},{"$f":"IF(DAY(_xlfn.SINGLE(ИюнВс1))=1,IF(AND(YEAR(_xlfn.SINGLE(ИюнВс1)+35)=_xlfn.SINGLE(КалендарныйГод),MONTH(_xlfn.SINGLE(ИюнВс1)+35)=6),_xlfn.SINGLE(ИюнВс1)+35,\"\"),IF(AND(YEAR(_xlfn.SINGLE(ИюнВс1)+42)=_xlfn.SINGLE(КалендарныйГод),MONTH(_xlfn.SINGLE(ИюнВс1)+42)=6),_xlfn.SINGLE(ИюнВс1)+42,\"\"))","v":""},null,{"$f":"IF(DAY(_xlfn.SINGLE(ИюлВс1))=1,IF(AND(YEAR(_xlfn.SINGLE(ИюлВс1)+29)=_xlfn.SINGLE(КалендарныйГод),MONTH(_xlfn.SINGLE(ИюлВс1)+29)=7),_xlfn.SINGLE(ИюлВс1)+29,\"\"),IF(AND(YEAR(_xlfn.SINGLE(ИюлВс1)+36)=_xlfn.SINGLE(КалендарныйГод),MONTH(_xlfn.SINGLE(ИюлВс1)+36)=7),_xlfn.SINGLE(ИюлВс1)+36,\"\"))","v":""},{"$f":"IF(DAY(_xlfn.SINGLE(ИюлВс1))=1,IF(AND(YEAR(_xlfn.SINGLE(ИюлВс1)+30)=_xlfn.SINGLE(КалендарныйГод),MONTH(_xlfn.SINGLE(ИюлВс1)+30)=7),_xlfn.SINGLE(ИюлВс1)+30,\"\"),IF(AND(YEAR(_xlfn.SINGLE(ИюлВс1)+37)=_xlfn.SINGLE(КалендарныйГод),MONTH(_xlfn.SINGLE(ИюлВс1)+37)=7),_xlfn.SINGLE(ИюлВс1)+37,\"\"))","v":""},{"$f":"IF(DAY(_xlfn.SINGLE(ИюлВс1))=1,IF(AND(YEAR(_xlfn.SINGLE(ИюлВс1)+31)=_xlfn.SINGLE(КалендарныйГод),MONTH(_xlfn.SINGLE(ИюлВс1)+31)=7),_xlfn.SINGLE(ИюлВс1)+31,\"\"),IF(AND(YEAR(_xlfn.SINGLE(ИюлВс1)+38)=_xlfn.SINGLE(КалендарныйГод),MONTH(_xlfn.SINGLE(ИюлВс1)+38)=7),_xlfn.SINGLE(ИюлВс1)+38,\"\"))","v":""},{"$f":"IF(DAY(_xlfn.SINGLE(ИюлВс1))=1,IF(AND(YEAR(_xlfn.SINGLE(ИюлВс1)+32)=_xlfn.SINGLE(КалендарныйГод),MONTH(_xlfn.SINGLE(ИюлВс1)+32)=7),_xlfn.SINGLE(ИюлВс1)+32,\"\"),IF(AND(YEAR(_xlfn.SINGLE(ИюлВс1)+39)=_xlfn.SINGLE(КалендарныйГод),MONTH(_xlfn.SINGLE(ИюлВс1)+39)=7),_xlfn.SINGLE(ИюлВс1)+39,\"\"))","v":""},{"$f":"IF(DAY(_xlfn.SINGLE(ИюлВс1))=1,IF(AND(YEAR(_xlfn.SINGLE(ИюлВс1)+33)=_xlfn.SINGLE(КалендарныйГод),MONTH(_xlfn.SINGLE(ИюлВс1)+33)=7),_xlfn.SINGLE(ИюлВс1)+33,\"\"),IF(AND(YEAR(_xlfn.SINGLE(ИюлВс1)+40)=_xlfn.SINGLE(КалендарныйГод),MONTH(_xlfn.SINGLE(ИюлВс1)+40)=7),_xlfn.SINGLE(ИюлВс1)+40,\"\"))","v":""},{"$f":"IF(DAY(_xlfn.SINGLE(ИюлВс1))=1,IF(AND(YEAR(_xlfn.SINGLE(ИюлВс1)+34)=_xlfn.SINGLE(КалендарныйГод),MONTH(_xlfn.SINGLE(ИюлВс1)+34)=7),_xlfn.SINGLE(ИюлВс1)+34,\"\"),IF(AND(YEAR(_xlfn.SINGLE(ИюлВс1)+41)=_xlfn.SINGLE(КалендарныйГод),MONTH(_xlfn.SINGLE(ИюлВс1)+41)=7),_xlfn.SINGLE(ИюлВс1)+41,\"\"))","v":""},{"$f":"IF(DAY(_xlfn.SINGLE(ИюлВс1))=1,IF(AND(YEAR(_xlfn.SINGLE(ИюлВс1)+35)=_xlfn.SINGLE(КалендарныйГод),MONTH(_xlfn.SINGLE(ИюлВс1)+35)=7),_xlfn.SINGLE(ИюлВс1)+35,\"\"),IF(AND(YEAR(_xlfn.SINGLE(ИюлВс1)+42)=_xlfn.SINGLE(КалендарныйГод),MONTH(_xlfn.SINGLE(ИюлВс1)+42)=7),_xlfn.SINGLE(ИюлВс1)+42,\"\"))","v":""},null,{"$f":"IF(DAY(_xlfn.SINGLE(АвгВс1))=1,IF(AND(YEAR(_xlfn.SINGLE(АвгВс1)+29)=_xlfn.SINGLE(КалендарныйГод),MONTH(_xlfn.SINGLE(АвгВс1)+29)=8),_xlfn.SINGLE(АвгВс1)+29,\"\"),IF(AND(YEAR(_xlfn.SINGLE(АвгВс1)+36)=_xlfn.SINGLE(КалендарныйГод),MONTH(_xlfn.SINGLE(АвгВс1)+36)=8),_xlfn.SINGLE(АвгВс1)+36,\"\"))","v":"2021-08-30"},{"$f":"IF(DAY(_xlfn.SINGLE(АвгВс1))=1,IF(AND(YEAR(_xlfn.SINGLE(АвгВс1)+30)=_xlfn.SINGLE(КалендарныйГод),MONTH(_xlfn.SINGLE(АвгВс1)+30)=8),_xlfn.SINGLE(АвгВс1)+30,\"\"),IF(AND(YEAR(_xlfn.SINGLE(АвгВс1)+37)=_xlfn.SINGLE(КалендарныйГод),MONTH(_xlfn.SINGLE(АвгВс1)+37)=8),_xlfn.SINGLE(АвгВс1)+37,\"\"))","v":"2021-08-31"},{"$f":"IF(DAY(_xlfn.SINGLE(АвгВс1))=1,IF(AND(YEAR(_xlfn.SINGLE(АвгВс1)+31)=_xlfn.SINGLE(КалендарныйГод),MONTH(_xlfn.SINGLE(АвгВс1)+31)=8),_xlfn.SINGLE(АвгВс1)+31,\"\"),IF(AND(YEAR(_xlfn.SINGLE(АвгВс1)+38)=_xlfn.SINGLE(КалендарныйГод),MONTH(_xlfn.SINGLE(АвгВс1)+38)=8),_xlfn.SINGLE(АвгВс1)+38,\"\"))","v":""},{"$f":"IF(DAY(_xlfn.SINGLE(АвгВс1))=1,IF(AND(YEAR(_xlfn.SINGLE(АвгВс1)+32)=_xlfn.SINGLE(КалендарныйГод),MONTH(_xlfn.SINGLE(АвгВс1)+32)=8),_xlfn.SINGLE(АвгВс1)+32,\"\"),IF(AND(YEAR(_xlfn.SINGLE(АвгВс1)+39)=_xlfn.SINGLE(КалендарныйГод),MONTH(_xlfn.SINGLE(АвгВс1)+39)=8),_xlfn.SINGLE(АвгВс1)+39,\"\"))","v":""},{"$f":"IF(DAY(_xlfn.SINGLE(АвгВс1))=1,IF(AND(YEAR(_xlfn.SINGLE(АвгВс1)+33)=_xlfn.SINGLE(КалендарныйГод),MONTH(_xlfn.SINGLE(АвгВс1)+33)=8),_xlfn.SINGLE(АвгВс1)+33,\"\"),IF(AND(YEAR(_xlfn.SINGLE(АвгВс1)+40)=_xlfn.SINGLE(КалендарныйГод),MONTH(_xlfn.SINGLE(АвгВс1)+40)=8),_xlfn.SINGLE(АвгВс1)+40,\"\"))","v":""},{"$f":"IF(DAY(_xlfn.SINGLE(АвгВс1))=1,IF(AND(YEAR(_xlfn.SINGLE(АвгВс1)+34)=_xlfn.SINGLE(КалендарныйГод),MONTH(_xlfn.SINGLE(АвгВс1)+34)=8),_xlfn.SINGLE(АвгВс1)+34,\"\"),IF(AND(YEAR(_xlfn.SINGLE(АвгВс1)+41)=_xlfn.SINGLE(КалендарныйГод),MONTH(_xlfn.SINGLE(АвгВс1)+41)=8),_xlfn.SINGLE(АвгВс1)+41,\"\"))","v":""},{"$f":"IF(DAY(_xlfn.SINGLE(АвгВс1))=1,IF(AND(YEAR(_xlfn.SINGLE(АвгВс1)+35)=_xlfn.SINGLE(КалендарныйГод),MONTH(_xlfn.SINGLE(АвгВс1)+35)=8),_xlfn.SINGLE(АвгВс1)+35,\"\"),IF(AND(YEAR(_xlfn.SINGLE(АвгВс1)+42)=_xlfn.SINGLE(КалендарныйГод),MONTH(_xlfn.SINGLE(АвгВс1)+42)=8),_xlfn.SINGLE(АвгВс1)+42,\"\"))","v":""}]
[]
[null,"Сентябрь",{"$nulls":7},"Октябрь",{"$nulls":7},"Ноябрь",{"$nulls":7},"Декабрь"]
[null,"Пн","Вт","Ср","Чт","Пт","Сб","Вс",null,"Пн","Вт","Ср","Чт","Пт","Сб","Вс",null,"Пн","Вт","Ср","Чт","Пт","Сб","Вс",null,"Пн","Вт","Ср","Чт","Пт","Сб","Вс"]
[null,{"$f":"IF(DAY(_xlfn.SINGLE(СенВс1))=1,\"\",IF(AND(YEAR(_xlfn.SINGLE(СенВс1)+1)=_xlfn.SINGLE(КалендарныйГод),MONTH(_xlfn.SINGLE(СенВс1)+1)=9),_xlfn.SINGLE(СенВс1)+1,\"\"))","v":""},{"$f":"IF(DAY(_xlfn.SINGLE(СенВс1))=1,\"\",IF(AND(YEAR(_xlfn.SINGLE(СенВс1)+2)=_xlfn.SINGLE(КалендарныйГод),MONTH(_xlfn.SINGLE(СенВс1)+2)=9),_xlfn.SINGLE(СенВс1)+2,\"\"))","v":""},{"$f":"IF(DAY(_xlfn.SINGLE(СенВс1))=1,\"\",IF(AND(YEAR(_xlfn.SINGLE(СенВс1)+3)=_xlfn.SINGLE(КалендарныйГод),MONTH(_xlfn.SINGLE(СенВс1)+3)=9),_xlfn.SINGLE(СенВс1)+3,\"\"))","v":"2021-09-01"},{"$f":"IF(DAY(_xlfn.SINGLE(СенВс1))=1,\"\",IF(AND(YEAR(_xlfn.SINGLE(СенВс1)+4)=_xlfn.SINGLE(КалендарныйГод),MONTH(_xlfn.SINGLE(СенВс1)+4)=9),_xlfn.SINGLE(СенВс1)+4,\"\"))","v":"2021-09-02"},{"$f":"IF(DAY(_xlfn.SINGLE(СенВс1))=1,\"\",IF(AND(YEAR(_xlfn.SINGLE(СенВс1)+5)=_xlfn.SINGLE(КалендарныйГод),MONTH(_xlfn.SINGLE(СенВс1)+5)=9),_xlfn.SINGLE(СенВс1)+5,\"\"))","v":"2021-09-03"},{"$f":"IF(DAY(_xlfn.SINGLE(СенВс1))=1,\"\",IF(AND(YEAR(_xlfn.SINGLE(СенВс1)+6)=_xlfn.SINGLE(КалендарныйГод),MONTH(_xlfn.SINGLE(СенВс1)+6)=9),_xlfn.SINGLE(СенВс1)+6,\"\"))","v":"2021-09-04"},{"$f":"_xlfn.SINGLE(IF(DAY(_xlfn.SINGLE(СенВс1))=1,IF(AND(YEAR(_xlfn.SINGLE(СенВс1))=_xlfn.SINGLE(КалендарныйГод),MONTH(_xlfn.SINGLE(СенВс1))=9),СенВс1,\"\"),IF(AND(YEAR(_xlfn.SINGLE(СенВс1)+7)=_xlfn.SINGLE(КалендарныйГод),MONTH(_xlfn.SINGLE(СенВс1)+7)=9),_xlfn.SINGLE(СенВс1)+7,\"\")))","v":"2021-09-05"},null,{"$f":"IF(DAY(_xlfn.SINGLE(ОктВс1))=1,\"\",IF(AND(YEAR(_xlfn.SINGLE(ОктВс1)+1)=_xlfn.SINGLE(КалендарныйГод),MONTH(_xlfn.SINGLE(ОктВс1)+1)=10),_xlfn.SINGLE(ОктВс1)+1,\"\"))","v":""},{"$f":"IF(DAY(_xlfn.SINGLE(ОктВс1))=1,\"\",IF(AND(YEAR(_xlfn.SINGLE(ОктВс1)+2)=_xlfn.SINGLE(КалендарныйГод),MONTH(_xlfn.SINGLE(ОктВс1)+2)=10),_xlfn.SINGLE(ОктВс1)+2,\"\"))","v":""},{"$f":"IF(DAY(_xlfn.SINGLE(ОктВс1))=1,\"\",IF(AND(YEAR(_xlfn.SINGLE(ОктВс1)+3)=_xlfn.SINGLE(КалендарныйГод),MONTH(_xlfn.SINGLE(ОктВс1)+3)=10),_xlfn.SINGLE(ОктВс1)+3,\"\"))","v":""},{"$f":"IF(DAY(_xlfn.SINGLE(ОктВс1))=1,\"\",IF(AND(YEAR(_xlfn.SINGLE(ОктВс1)+4)=_xlfn.SINGLE(КалендарныйГод),MONTH(_xlfn.SINGLE(ОктВс1)+4)=10),_xlfn.SINGLE(ОктВс1)+4,\"\"))","v":""},{"$f":"IF(DAY(_xlfn.SINGLE(ОктВс1))=1,\"\",IF(AND(YEAR(_xlfn.SINGLE(ОктВс1)+5)=_xlfn.SINGLE(КалендарныйГод),MONTH(_xlfn.SINGLE(ОктВс1)+5)=10),_xlfn.SINGLE(ОктВс1)+5,\"\"))","v":"2021-10-01"},{"$f":"IF(DAY(_xlfn.SINGLE(ОктВс1))=1,\"\",IF(AND(YEAR(_xlfn.SINGLE(ОктВс1)+6)=_xlfn.SINGLE(КалендарныйГод),MONTH(_xlfn.SINGLE(ОктВс1)+6)=10),_xlfn.SINGLE(ОктВс1)+6,\"\"))","v":"2021-10-02"},{"$f":"_xlfn.SINGLE(IF(DAY(_xlfn.SINGLE(ОктВс1))=1,IF(AND(YEAR(_xlfn.SINGLE(ОктВс1))=_xlfn.SINGLE(КалендарныйГод),MONTH(_xlfn.SINGLE(ОктВс1))=10),ОктВс1,\"\"),IF(AND(YEAR(_xlfn.SINGLE(ОктВс1)+7)=_xlfn.SINGLE(КалендарныйГод),MONTH(_xlfn.SINGLE(ОктВс1)+7)=10),_xlfn.SINGLE(ОктВс1)+7,\"\")))","v":"2021-10-03"},null,{"$f":"IF(DAY(_xlfn.SINGLE(НояВс1))=1,\"\",IF(AND(YEAR(_xlfn.SINGLE(НояВс1)+1)=_xlfn.SINGLE(КалендарныйГод),MONTH(_xlfn.SINGLE(НояВс1)+1)=11),_xlfn.SINGLE(НояВс1)+1,\"\"))","v":"2021-11-01"},{"$f":"IF(DAY(_xlfn.SINGLE(НояВс1))=1,\"\",IF(AND(YEAR(_xlfn.SINGLE(НояВс1)+2)=_xlfn.SINGLE(КалендарныйГод),MONTH(_xlfn.SINGLE(НояВс1)+2)=11),_xlfn.SINGLE(НояВс1)+2,\"\"))","v":"2021-11-02"},{"$f":"IF(DAY(_xlfn.SINGLE(НояВс1))=1,\"\",IF(AND(YEAR(_xlfn.SINGLE(НояВс1)+3)=_xlfn.SINGLE(КалендарныйГод),MONTH(_xlfn.SINGLE(НояВс1)+3)=11),_xlfn.SINGLE(НояВс1)+3,\"\"))","v":"2021-11-03"},{"$f":"IF(DAY(_xlfn.SINGLE(НояВс1))=1,\"\",IF(AND(YEAR(_xlfn.SINGLE(НояВс1)+4)=_xlfn.SINGLE(КалендарныйГод),MONTH(_xlfn.SINGLE(НояВс1)+4)=11),_xlfn.SINGLE(НояВс1)+4,\"\"))","v":"2021-11-04"},{"$f":"IF(DAY(_xlfn.SINGLE(НояВс1))=1,\"\",IF(AND(YEAR(_xlfn.SINGLE(НояВс1)+5)=_xlfn.SINGLE(КалендарныйГод),MONTH(_xlfn.SINGLE(НояВс1)+5)=11),_xlfn.SINGLE(НояВс1)+5,\"\"))","v":"2021-11-05"},{"$f":"IF(DAY(_xlfn.SINGLE(НояВс1))=1,\"\",IF(AND(YEAR(_xlfn.SINGLE(НояВс1)+6)=_xlfn.SINGLE(КалендарныйГод),MONTH(_xlfn.SINGLE(НояВс1)+6)=11),_xlfn.SINGLE(НояВс1)+6,\"\"))","v":"2021-11-06"},{"$f":"_xlfn.SINGLE(IF(DAY(_xlfn.SINGLE(НояВс1))=1,IF(AND(YEAR(_xlfn.SINGLE(НояВс1))=_xlfn.SINGLE(КалендарныйГод),MONTH(_xlfn.SINGLE(НояВс1))=11),НояВс1,\"\"),IF(AND(YEAR(_xlfn.SINGLE(НояВс1)+7)=_xlfn.SINGLE(КалендарныйГод),MONTH(_xlfn.SINGLE(НояВс1)+7)=11),_xlfn.SINGLE(НояВс1)+7,\"\")))","v":"2021-11-07"},null,{"$f":"IF(DAY(_xlfn.SINGLE(ДекВс1))=1,\"\",IF(AND(YEAR(_xlfn.SINGLE(ДекВс1)+1)=_xlfn.SINGLE(КалендарныйГод),MONTH(_xlfn.SINGLE(ДекВс1)+1)=12),_xlfn.SINGLE(ДекВс1)+1,\"\"))","v":""},{"$f":"IF(DAY(_xlfn.SINGLE(ДекВс1))=1,\"\",IF(AND(YEAR(_xlfn.SINGLE(ДекВс1)+2)=_xlfn.SINGLE(КалендарныйГод),MONTH(_xlfn.SINGLE(ДекВс1)+2)=12),_xlfn.SINGLE(ДекВс1)+2,\"\"))","v":""},{"$f":"IF(DAY(_xlfn.SINGLE(ДекВс1))=1,\"\",IF(AND(YEAR(_xlfn.SINGLE(ДекВс1)+3)=_xlfn.SINGLE(КалендарныйГод),MONTH(_xlfn.SINGLE(ДекВс1)+3)=12),_xlfn.SINGLE(ДекВс1)+3,\"\"))","v":"2021-12-01"},{"$f":"IF(DAY(_xlfn.SINGLE(ДекВс1))=1,\"\",IF(AND(YEAR(_xlfn.SINGLE(ДекВс1)+4)=_xlfn.SINGLE(КалендарныйГод),MONTH(_xlfn.SINGLE(ДекВс1)+4)=12),_xlfn.SINGLE(ДекВс1)+4,\"\"))","v":"2021-12-02"},{"$f":"IF(DAY(_xlfn.SINGLE(ДекВс1))=1,\"\",IF(AND(YEAR(_xlfn.SINGLE(ДекВс1)+5)=_xlfn.SINGLE(КалендарныйГод),MONTH(_xlfn.SINGLE(ДекВс1)+5)=12),_xlfn.SINGLE(ДекВс1)+5,\"\"))","v":"2021-12-03"},{"$f":"IF(DAY(_xlfn.SINGLE(ДекВс1))=1,\"\",IF(AND(YEAR(_xlfn.SINGLE(ДекВс1)+6)=_xlfn.SINGLE(КалендарныйГод),MONTH(_xlfn.SINGLE(ДекВс1)+6)=12),_xlfn.SINGLE(ДекВс1)+6,\"\"))","v":"2021-12-04"},{"$f":"_xlfn.SINGLE(IF(DAY(_xlfn.SINGLE(ДекВс1))=1,IF(AND(YEAR(_xlfn.SINGLE(ДекВс1))=_xlfn.SINGLE(КалендарныйГод),MONTH(_xlfn.SINGLE(ДекВс1))=12),ДекВс1,\"\"),IF(AND(YEAR(_xlfn.SINGLE(ДекВс1)+7)=_xlfn.SINGLE(КалендарныйГод),MONTH(_xlfn.SINGLE(ДекВс1)+7)=12),_xlfn.SINGLE(ДекВс1)+7,\"\")))","v":"2021-12-05"}]
[null,{"$f":"IF(DAY(_xlfn.SINGLE(СенВс1))=1,IF(AND(YEAR(_xlfn.SINGLE(СенВс1)+1)=_xlfn.SINGLE(КалендарныйГод),MONTH(_xlfn.SINGLE(СенВс1)+1)=9),_xlfn.SINGLE(СенВс1)+1,\"\"),IF(AND(YEAR(_xlfn.SINGLE(СенВс1)+8)=_xlfn.SINGLE(КалендарныйГод),MONTH(_xlfn.SINGLE(СенВс1)+8)=9),_xlfn.SINGLE(СенВс1)+8,\"\"))","v":"2021-09-06"},{"$f":"IF(DAY(_xlfn.SINGLE(СенВс1))=1,IF(AND(YEAR(_xlfn.SINGLE(СенВс1)+2)=_xlfn.SINGLE(КалендарныйГод),MONTH(_xlfn.SINGLE(СенВс1)+2)=9),_xlfn.SINGLE(СенВс1)+2,\"\"),IF(AND(YEAR(_xlfn.SINGLE(СенВс1)+9)=_xlfn.SINGLE(КалендарныйГод),MONTH(_xlfn.SINGLE(СенВс1)+9)=9),_xlfn.SINGLE(СенВс1)+9,\"\"))","v":"2021-09-07"},{"$f":"IF(DAY(_xlfn.SINGLE(СенВс1))=1,IF(AND(YEAR(_xlfn.SINGLE(СенВс1)+3)=_xlfn.SINGLE(КалендарныйГод),MONTH(_xlfn.SINGLE(СенВс1)+3)=9),_xlfn.SINGLE(СенВс1)+3,\"\"),IF(AND(YEAR(_xlfn.SINGLE(СенВс1)+10)=_xlfn.SINGLE(КалендарныйГод),MONTH(_xlfn.SINGLE(СенВс1)+10)=9),_xlfn.SINGLE(СенВс1)+10,\"\"))","v":"2021-09-08"},{"$f":"IF(DAY(_xlfn.SINGLE(СенВс1))=1,IF(AND(YEAR(_xlfn.SINGLE(СенВс1)+4)=_xlfn.SINGLE(КалендарныйГод),MONTH(_xlfn.SINGLE(СенВс1)+4)=9),_xlfn.SINGLE(СенВс1)+4,\"\"),IF(AND(YEAR(_xlfn.SINGLE(СенВс1)+11)=_xlfn.SINGLE(КалендарныйГод),MONTH(_xlfn.SINGLE(СенВс1)+11)=9),_xlfn.SINGLE(СенВс1)+11,\"\"))","v":"2021-09-09"},{"$f":"IF(DAY(_xlfn.SINGLE(СенВс1))=1,IF(AND(YEAR(_xlfn.SINGLE(СенВс1)+5)=_xlfn.SINGLE(КалендарныйГод),MONTH(_xlfn.SINGLE(СенВс1)+5)=9),_xlfn.SINGLE(СенВс1)+5,\"\"),IF(AND(YEAR(_xlfn.SINGLE(СенВс1)+12)=_xlfn.SINGLE(КалендарныйГод),MONTH(_xlfn.SINGLE(СенВс1)+12)=9),_xlfn.SINGLE(СенВс1)+12,\"\"))","v":"2021-09-10"},{"$f":"IF(DAY(_xlfn.SINGLE(СенВс1))=1,IF(AND(YEAR(_xlfn.SINGLE(СенВс1)+6)=_xlfn.SINGLE(КалендарныйГод),MONTH(_xlfn.SINGLE(СенВс1)+6)=9),_xlfn.SINGLE(СенВс1)+6,\"\"),IF(AND(YEAR(_xlfn.SINGLE(СенВс1)+13)=_xlfn.SINGLE(КалендарныйГод),MONTH(_xlfn.SINGLE(СенВс1)+13)=9),_xlfn.SINGLE(СенВс1)+13,\"\"))","v":"2021-09-11"},{"$f":"IF(DAY(_xlfn.SINGLE(СенВс1))=1,IF(AND(YEAR(_xlfn.SINGLE(СенВс1)+7)=_xlfn.SINGLE(КалендарныйГод),MONTH(_xlfn.SINGLE(СенВс1)+7)=9),_xlfn.SINGLE(СенВс1)+7,\"\"),IF(AND(YEAR(_xlfn.SINGLE(СенВс1)+14)=_xlfn.SINGLE(КалендарныйГод),MONTH(_xlfn.SINGLE(СенВс1)+14)=9),_xlfn.SINGLE(СенВс1)+14,\"\"))","v":"2021-09-12"},null,{"$f":"IF(DAY(_xlfn.SINGLE(ОктВс1))=1,IF(AND(YEAR(_xlfn.SINGLE(ОктВс1)+1)=_xlfn.SINGLE(КалендарныйГод),MONTH(_xlfn.SINGLE(ОктВс1)+1)=10),_xlfn.SINGLE(ОктВс1)+1,\"\"),IF(AND(YEAR(_xlfn.SINGLE(ОктВс1)+8)=_xlfn.SINGLE(КалендарныйГод),MONTH(_xlfn.SINGLE(ОктВс1)+8)=10),_xlfn.SINGLE(ОктВс1)+8,\"\"))","v":"2021-10-04"},{"$f":"IF(DAY(_xlfn.SINGLE(ОктВс1))=1,IF(AND(YEAR(_xlfn.SINGLE(ОктВс1)+2)=_xlfn.SINGLE(КалендарныйГод),MONTH(_xlfn.SINGLE(ОктВс1)+2)=10),_xlfn.SINGLE(ОктВс1)+2,\"\"),IF(AND(YEAR(_xlfn.SINGLE(ОктВс1)+9)=_xlfn.SINGLE(КалендарныйГод),MONTH(_xlfn.SINGLE(ОктВс1)+9)=10),_xlfn.SINGLE(ОктВс1)+9,\"\"))","v":"2021-10-05"},{"$f":"IF(DAY(_xlfn.SINGLE(ОктВс1))=1,IF(AND(YEAR(_xlfn.SINGLE(ОктВс1)+3)=_xlfn.SINGLE(КалендарныйГод),MONTH(_xlfn.SINGLE(ОктВс1)+3)=10),_xlfn.SINGLE(ОктВс1)+3,\"\"),IF(AND(YEAR(_xlfn.SINGLE(ОктВс1)+10)=_xlfn.SINGLE(КалендарныйГод),MONTH(_xlfn.SINGLE(ОктВс1)+10)=10),_xlfn.SINGLE(ОктВс1)+10,\"\"))","v":"2021-10-06"},{"$f":"IF(DAY(_xlfn.SINGLE(ОктВс1))=1,IF(AND(YEAR(_xlfn.SINGLE(ОктВс1)+4)=_xlfn.SINGLE(КалендарныйГод),MONTH(_xlfn.SINGLE(ОктВс1)+4)=10),_xlfn.SINGLE(ОктВс1)+4,\"\"),IF(AND(YEAR(_xlfn.SINGLE(ОктВс1)+11)=_xlfn.SINGLE(КалендарныйГод),MONTH(_xlfn.SINGLE(ОктВс1)+11)=10),_xlfn.SINGLE(ОктВс1)+11,\"\"))","v":"2021-10-07"},{"$f":"IF(DAY(_xlfn.SINGLE(ОктВс1))=1,IF(AND(YEAR(_xlfn.SINGLE(ОктВс1)+5)=_xlfn.SINGLE(КалендарныйГод),MONTH(_xlfn.SINGLE(ОктВс1)+5)=10),_xlfn.SINGLE(ОктВс1)+5,\"\"),IF(AND(YEAR(_xlfn.SINGLE(ОктВс1)+12)=_xlfn.SINGLE(КалендарныйГод),MONTH(_xlfn.SINGLE(ОктВс1)+12)=10),_xlfn.SINGLE(ОктВс1)+12,\"\"))","v":"2021-10-08"},{"$f":"IF(DAY(_xlfn.SINGLE(ОктВс1))=1,IF(AND(YEAR(_xlfn.SINGLE(ОктВс1)+6)=_xlfn.SINGLE(КалендарныйГод),MONTH(_xlfn.SINGLE(ОктВс1)+6)=10),_xlfn.SINGLE(ОктВс1)+6,\"\"),IF(AND(YEAR(_xlfn.SINGLE(ОктВс1)+13)=_xlfn.SINGLE(КалендарныйГод),MONTH(_xlfn.SINGLE(ОктВс1)+13)=10),_xlfn.SINGLE(ОктВс1)+13,\"\"))","v":"2021-10-09"},{"$f":"IF(DAY(_xlfn.SINGLE(ОктВс1))=1,IF(AND(YEAR(_xlfn.SINGLE(ОктВс1)+7)=_xlfn.SINGLE(КалендарныйГод),MONTH(_xlfn.SINGLE(ОктВс1)+7)=10),_xlfn.SINGLE(ОктВс1)+7,\"\"),IF(AND(YEAR(_xlfn.SINGLE(ОктВс1)+14)=_xlfn.SINGLE(КалендарныйГод),MONTH(_xlfn.SINGLE(ОктВс1)+14)=10),_xlfn.SINGLE(ОктВс1)+14,\"\"))","v":"2021-10-10"},null,{"$f":"IF(DAY(_xlfn.SINGLE(НояВс1))=1,IF(AND(YEAR(_xlfn.SINGLE(НояВс1)+1)=_xlfn.SINGLE(КалендарныйГод),MONTH(_xlfn.SINGLE(НояВс1)+1)=11),_xlfn.SINGLE(НояВс1)+1,\"\"),IF(AND(YEAR(_xlfn.SINGLE(НояВс1)+8)=_xlfn.SINGLE(КалендарныйГод),MONTH(_xlfn.SINGLE(НояВс1)+8)=11),_xlfn.SINGLE(НояВс1)+8,\"\"))","v":"2021-11-08"},{"$f":"IF(DAY(_xlfn.SINGLE(НояВс1))=1,IF(AND(YEAR(_xlfn.SINGLE(НояВс1)+2)=_xlfn.SINGLE(КалендарныйГод),MONTH(_xlfn.SINGLE(НояВс1)+2)=11),_xlfn.SINGLE(НояВс1)+2,\"\"),IF(AND(YEAR(_xlfn.SINGLE(НояВс1)+9)=_xlfn.SINGLE(КалендарныйГод),MONTH(_xlfn.SINGLE(НояВс1)+9)=11),_xlfn.SINGLE(НояВс1)+9,\"\"))","v":"2021-11-09"},{"$f":"IF(DAY(_xlfn.SINGLE(НояВс1))=1,IF(AND(YEAR(_xlfn.SINGLE(НояВс1)+3)=_xlfn.SINGLE(КалендарныйГод),MONTH(_xlfn.SINGLE(НояВс1)+3)=11),_xlfn.SINGLE(НояВс1)+3,\"\"),IF(AND(YEAR(_xlfn.SINGLE(НояВс1)+10)=_xlfn.SINGLE(КалендарныйГод),MONTH(_xlfn.SINGLE(НояВс1)+10)=11),_xlfn.SINGLE(НояВс1)+10,\"\"))","v":"2021-11-10"},{"$f":"IF(DAY(_xlfn.SINGLE(НояВс1))=1,IF(AND(YEAR(_xlfn.SINGLE(НояВс1)+4)=_xlfn.SINGLE(КалендарныйГод),MONTH(_xlfn.SINGLE(НояВс1)+4)=11),_xlfn.SINGLE(НояВс1)+4,\"\"),IF(AND(YEAR(_xlfn.SINGLE(НояВс1)+11)=_xlfn.SINGLE(КалендарныйГод),MONTH(_xlfn.SINGLE(НояВс1)+11)=11),_xlfn.SINGLE(НояВс1)+11,\"\"))","v":"2021-11-11"},{"$f":"IF(DAY(_xlfn.SINGLE(НояВс1))=1,IF(AND(YEAR(_xlfn.SINGLE(НояВс1)+5)=_xlfn.SINGLE(КалендарныйГод),MONTH(_xlfn.SINGLE(НояВс1)+5)=11),_xlfn.SINGLE(НояВс1)+5,\"\"),IF(AND(YEAR(_xlfn.SINGLE(НояВс1)+12)=_xlfn.SINGLE(КалендарныйГод),MONTH(_xlfn.SINGLE(НояВс1)+12)=11),_xlfn.SINGLE(НояВс1)+12,\"\"))","v":"2021-11-12"},{"$f":"IF(DAY(_xlfn.SINGLE(НояВс1))=1,IF(AND(YEAR(_xlfn.SINGLE(НояВс1)+6)=_xlfn.SINGLE(КалендарныйГод),MONTH(_xlfn.SINGLE(НояВс1)+6)=11),_xlfn.SINGLE(НояВс1)+6,\"\"),IF(AND(YEAR(_xlfn.SINGLE(НояВс1)+13)=_xlfn.SINGLE(КалендарныйГод),MONTH(_xlfn.SINGLE(НояВс1)+13)=11),_xlfn.SINGLE(НояВс1)+13,\"\"))","v":"2021-11-13"},{"$f":"IF(DAY(_xlfn.SINGLE(НояВс1))=1,IF(AND(YEAR(_xlfn.SINGLE(НояВс1)+7)=_xlfn.SINGLE(КалендарныйГод),MONTH(_xlfn.SINGLE(НояВс1)+7)=11),_xlfn.SINGLE(НояВс1)+7,\"\"),IF(AND(YEAR(_xlfn.SINGLE(НояВс1)+14)=_xlfn.SINGLE(КалендарныйГод),MONTH(_xlfn.SINGLE(НояВс1)+14)=11),_xlfn.SINGLE(НояВс1)+14,\"\"))","v":"2021-11-14"},null,{"$f":"IF(DAY(_xlfn.SINGLE(ДекВс1))=1,IF(AND(YEAR(_xlfn.SINGLE(ДекВс1)+1)=_xlfn.SINGLE(КалендарныйГод),MONTH(_xlfn.SINGLE(ДекВс1)+1)=12),_xlfn.SINGLE(ДекВс1)+1,\"\"),IF(AND(YEAR(_xlfn.SINGLE(ДекВс1)+8)=_xlfn.SINGLE(КалендарныйГод),MONTH(_xlfn.SINGLE(ДекВс1)+8)=12),_xlfn.SINGLE(ДекВс1)+8,\"\"))","v":"2021-12-06"},{"$f":"IF(DAY(_xlfn.SINGLE(ДекВс1))=1,IF(AND(YEAR(_xlfn.SINGLE(ДекВс1)+2)=_xlfn.SINGLE(КалендарныйГод),MONTH(_xlfn.SINGLE(ДекВс1)+2)=12),_xlfn.SINGLE(ДекВс1)+2,\"\"),IF(AND(YEAR(_xlfn.SINGLE(ДекВс1)+9)=_xlfn.SINGLE(КалендарныйГод),MONTH(_xlfn.SINGLE(ДекВс1)+9)=12),_xlfn.SINGLE(ДекВс1)+9,\"\"))","v":"2021-12-07"},{"$f":"IF(DAY(_xlfn.SINGLE(ДекВс1))=1,IF(AND(YEAR(_xlfn.SINGLE(ДекВс1)+3)=_xlfn.SINGLE(КалендарныйГод),MONTH(_xlfn.SINGLE(ДекВс1)+3)=12),_xlfn.SINGLE(ДекВс1)+3,\"\"),IF(AND(YEAR(_xlfn.SINGLE(ДекВс1)+10)=_xlfn.SINGLE(КалендарныйГод),MONTH(_xlfn.SINGLE(ДекВс1)+10)=12),_xlfn.SINGLE(ДекВс1)+10,\"\"))","v":"2021-12-08"},{"$f":"IF(DAY(_xlfn.SINGLE(ДекВс1))=1,IF(AND(YEAR(_xlfn.SINGLE(ДекВс1)+4)=_xlfn.SINGLE(КалендарныйГод),MONTH(_xlfn.SINGLE(ДекВс1)+4)=12),_xlfn.SINGLE(ДекВс1)+4,\"\"),IF(AND(YEAR(_xlfn.SINGLE(ДекВс1)+11)=_xlfn.SINGLE(КалендарныйГод),MONTH(_xlfn.SINGLE(ДекВс1)+11)=12),_xlfn.SINGLE(ДекВс1)+11,\"\"))","v":"2021-12-09"},{"$f":"IF(DAY(_xlfn.SINGLE(ДекВс1))=1,IF(AND(YEAR(_xlfn.SINGLE(ДекВс1)+5)=_xlfn.SINGLE(КалендарныйГод),MONTH(_xlfn.SINGLE(ДекВс1)+5)=12),_xlfn.SINGLE(ДекВс1)+5,\"\"),IF(AND(YEAR(_xlfn.SINGLE(ДекВс1)+12)=_xlfn.SINGLE(КалендарныйГод),MONTH(_xlfn.SINGLE(ДекВс1)+12)=12),_xlfn.SINGLE(ДекВс1)+12,\"\"))","v":"2021-12-10"},{"$f":"IF(DAY(_xlfn.SINGLE(ДекВс1))=1,IF(AND(YEAR(_xlfn.SINGLE(ДекВс1)+6)=_xlfn.SINGLE(КалендарныйГод),MONTH(_xlfn.SINGLE(ДекВс1)+6)=12),_xlfn.SINGLE(ДекВс1)+6,\"\"),IF(AND(YEAR(_xlfn.SINGLE(ДекВс1)+13)=_xlfn.SINGLE(КалендарныйГод),MONTH(_xlfn.SINGLE(ДекВс1)+13)=12),_xlfn.SINGLE(ДекВс1)+13,\"\"))","v":"2021-12-11"},{"$f":"IF(DAY(_xlfn.SINGLE(ДекВс1))=1,IF(AND(YEAR(_xlfn.SINGLE(ДекВс1)+7)=_xlfn.SINGLE(КалендарныйГод),MONTH(_xlfn.SINGLE(ДекВс1)+7)=12),_xlfn.SINGLE(ДекВс1)+7,\"\"),IF(AND(YEAR(_xlfn.SINGLE(ДекВс1)+14)=_xlfn.SINGLE(КалендарныйГод),MONTH(_xlfn.SINGLE(ДекВс1)+14)=12),_xlfn.SINGLE(ДекВс1)+14,\"\"))","v":"2021-12-12"}]
[null,{"$f":"IF(DAY(_xlfn.SINGLE(СенВс1))=1,IF(AND(YEAR(_xlfn.SINGLE(СенВс1)+8)=_xlfn.SINGLE(КалендарныйГод),MONTH(_xlfn.SINGLE(СенВс1)+8)=9),_xlfn.SINGLE(СенВс1)+8,\"\"),IF(AND(YEAR(_xlfn.SINGLE(СенВс1)+15)=_xlfn.SINGLE(КалендарныйГод),MONTH(_xlfn.SINGLE(СенВс1)+15)=9),_xlfn.SINGLE(СенВс1)+15,\"\"))","v":"2021-09-13"},{"$f":"IF(DAY(_xlfn.SINGLE(СенВс1))=1,IF(AND(YEAR(_xlfn.SINGLE(СенВс1)+9)=_xlfn.SINGLE(КалендарныйГод),MONTH(_xlfn.SINGLE(СенВс1)+9)=9),_xlfn.SINGLE(СенВс1)+9,\"\"),IF(AND(YEAR(_xlfn.SINGLE(СенВс1)+16)=_xlfn.SINGLE(КалендарныйГод),MONTH(_xlfn.SINGLE(СенВс1)+16)=9),_xlfn.SINGLE(СенВс1)+16,\"\"))","v":"2021-09-14"},{"$f":"IF(DAY(_xlfn.SINGLE(СенВс1))=1,IF(AND(YEAR(_xlfn.SINGLE(СенВс1)+10)=_xlfn.SINGLE(КалендарныйГод),MONTH(_xlfn.SINGLE(СенВс1)+10)=9),_xlfn.SINGLE(СенВс1)+10,\"\"),IF(AND(YEAR(_xlfn.SINGLE(СенВс1)+17)=_xlfn.SINGLE(КалендарныйГод),MONTH(_xlfn.SINGLE(СенВс1)+17)=9),_xlfn.SINGLE(СенВс1)+17,\"\"))","v":"2021-09-15"},{"$f":"IF(DAY(_xlfn.SINGLE(СенВс1))=1,IF(AND(YEAR(_xlfn.SINGLE(СенВс1)+11)=_xlfn.SINGLE(КалендарныйГод),MONTH(_xlfn.SINGLE(СенВс1)+11)=9),_xlfn.SINGLE(СенВс1)+11,\"\"),IF(AND(YEAR(_xlfn.SINGLE(СенВс1)+18)=_xlfn.SINGLE(КалендарныйГод),MONTH(_xlfn.SINGLE(СенВс1)+18)=9),_xlfn.SINGLE(СенВс1)+18,\"\"))","v":"2021-09-16"},{"$f":"IF(DAY(_xlfn.SINGLE(СенВс1))=1,IF(AND(YEAR(_xlfn.SINGLE(СенВс1)+12)=_xlfn.SINGLE(КалендарныйГод),MONTH(_xlfn.SINGLE(СенВс1)+12)=9),_xlfn.SINGLE(СенВс1)+12,\"\"),IF(AND(YEAR(_xlfn.SINGLE(СенВс1)+19)=_xlfn.SINGLE(КалендарныйГод),MONTH(_xlfn.SINGLE(СенВс1)+19)=9),_xlfn.SINGLE(СенВс1)+19,\"\"))","v":"2021-09-17"},{"$f":"IF(DAY(_xlfn.SINGLE(СенВс1))=1,IF(AND(YEAR(_xlfn.SINGLE(СенВс1)+13)=_xlfn.SINGLE(КалендарныйГод),MONTH(_xlfn.SINGLE(СенВс1)+13)=9),_xlfn.SINGLE(СенВс1)+13,\"\"),IF(AND(YEAR(_xlfn.SINGLE(СенВс1)+20)=_xlfn.SINGLE(КалендарныйГод),MONTH(_xlfn.SINGLE(СенВс1)+20)=9),_xlfn.SINGLE(СенВс1)+20,\"\"))","v":"2021-09-18"},{"$f":"IF(DAY(_xlfn.SINGLE(СенВс1))=1,IF(AND(YEAR(_xlfn.SINGLE(СенВс1)+14)=_xlfn.SINGLE(КалендарныйГод),MONTH(_xlfn.SINGLE(СенВс1)+14)=9),_xlfn.SINGLE(СенВс1)+14,\"\"),IF(AND(YEAR(_xlfn.SINGLE(СенВс1)+21)=_xlfn.SINGLE(КалендарныйГод),MONTH(_xlfn.SINGLE(СенВс1)+21)=9),_xlfn.SINGLE(СенВс1)+21,\"\"))","v":"2021-09-19"},null,{"$f":"IF(DAY(_xlfn.SINGLE(ОктВс1))=1,IF(AND(YEAR(_xlfn.SINGLE(ОктВс1)+8)=_xlfn.SINGLE(КалендарныйГод),MONTH(_xlfn.SINGLE(ОктВс1)+8)=10),_xlfn.SINGLE(ОктВс1)+8,\"\"),IF(AND(YEAR(_xlfn.SINGLE(ОктВс1)+15)=_xlfn.SINGLE(КалендарныйГод),MONTH(_xlfn.SINGLE(ОктВс1)+15)=10),_xlfn.SINGLE(ОктВс1)+15,\"\"))","v":"2021-10-11"},{"$f":"IF(DAY(_xlfn.SINGLE(ОктВс1))=1,IF(AND(YEAR(_xlfn.SINGLE(ОктВс1)+9)=_xlfn.SINGLE(КалендарныйГод),MONTH(_xlfn.SINGLE(ОктВс1)+9)=10),_xlfn.SINGLE(ОктВс1)+9,\"\"),IF(AND(YEAR(_xlfn.SINGLE(ОктВс1)+16)=_xlfn.SINGLE(КалендарныйГод),MONTH(_xlfn.SINGLE(ОктВс1)+16)=10),_xlfn.SINGLE(ОктВс1)+16,\"\"))","v":"2021-10-12"},{"$f":"IF(DAY(_xlfn.SINGLE(ОктВс1))=1,IF(AND(YEAR(_xlfn.SINGLE(ОктВс1)+10)=_xlfn.SINGLE(КалендарныйГод),MONTH(_xlfn.SINGLE(ОктВс1)+10)=10),_xlfn.SINGLE(ОктВс1)+10,\"\"),IF(AND(YEAR(_xlfn.SINGLE(ОктВс1)+17)=_xlfn.SINGLE(КалендарныйГод),MONTH(_xlfn.SINGLE(ОктВс1)+17)=10),_xlfn.SINGLE(ОктВс1)+17,\"\"))","v":"2021-10-13"},{"$f":"IF(DAY(_xlfn.SINGLE(ОктВс1))=1,IF(AND(YEAR(_xlfn.SINGLE(ОктВс1)+11)=_xlfn.SINGLE(КалендарныйГод),MONTH(_xlfn.SINGLE(ОктВс1)+11)=10),_xlfn.SINGLE(ОктВс1)+11,\"\"),IF(AND(YEAR(_xlfn.SINGLE(ОктВс1)+18)=_xlfn.SINGLE(КалендарныйГод),MONTH(_xlfn.SINGLE(ОктВс1)+18)=10),_xlfn.SINGLE(ОктВс1)+18,\"\"))","v":"2021-10-14"},{"$f":"IF(DAY(_xlfn.SINGLE(ОктВс1))=1,IF(AND(YEAR(_xlfn.SINGLE(ОктВс1)+12)=_xlfn.SINGLE(КалендарныйГод),MONTH(_xlfn.SINGLE(ОктВс1)+12)=10),_xlfn.SINGLE(ОктВс1)+12,\"\"),IF(AND(YEAR(_xlfn.SINGLE(ОктВс1)+19)=_xlfn.SINGLE(КалендарныйГод),MONTH(_xlfn.SINGLE(ОктВс1)+19)=10),_xlfn.SINGLE(ОктВс1)+19,\"\"))","v":"2021-10-15"},{"$f":"IF(DAY(_xlfn.SINGLE(ОктВс1))=1,IF(AND(YEAR(_xlfn.SINGLE(ОктВс1)+13)=_xlfn.SINGLE(КалендарныйГод),MONTH(_xlfn.SINGLE(ОктВс1)+13)=10),_xlfn.SINGLE(ОктВс1)+13,\"\"),IF(AND(YEAR(_xlfn.SINGLE(ОктВс1)+20)=_xlfn.SINGLE(КалендарныйГод),MONTH(_xlfn.SINGLE(ОктВс1)+20)=10),_xlfn.SINGLE(ОктВс1)+20,\"\"))","v":"2021-10-16"},{"$f":"IF(DAY(_xlfn.SINGLE(ОктВс1))=1,IF(AND(YEAR(_xlfn.SINGLE(ОктВс1)+14)=_xlfn.SINGLE(КалендарныйГод),MONTH(_xlfn.SINGLE(ОктВс1)+14)=10),_xlfn.SINGLE(ОктВс1)+14,\"\"),IF(AND(YEAR(_xlfn.SINGLE(ОктВс1)+21)=_xlfn.SINGLE(КалендарныйГод),MONTH(_xlfn.SINGLE(ОктВс1)+21)=10),_xlfn.SINGLE(ОктВс1)+21,\"\"))","v":"2021-10-17"},null,{"$f":"IF(DAY(_xlfn.SINGLE(НояВс1))=1,IF(AND(YEAR(_xlfn.SINGLE(НояВс1)+8)=_xlfn.SINGLE(КалендарныйГод),MONTH(_xlfn.SINGLE(НояВс1)+8)=11),_xlfn.SINGLE(НояВс1)+8,\"\"),IF(AND(YEAR(_xlfn.SINGLE(НояВс1)+15)=_xlfn.SINGLE(КалендарныйГод),MONTH(_xlfn.SINGLE(НояВс1)+15)=11),_xlfn.SINGLE(НояВс1)+15,\"\"))","v":"2021-11-15"},{"$f":"IF(DAY(_xlfn.SINGLE(НояВс1))=1,IF(AND(YEAR(_xlfn.SINGLE(НояВс1)+9)=_xlfn.SINGLE(КалендарныйГод),MONTH(_xlfn.SINGLE(НояВс1)+9)=11),_xlfn.SINGLE(НояВс1)+9,\"\"),IF(AND(YEAR(_xlfn.SINGLE(НояВс1)+16)=_xlfn.SINGLE(КалендарныйГод),MONTH(_xlfn.SINGLE(НояВс1)+16)=11),_xlfn.SINGLE(НояВс1)+16,\"\"))","v":"2021-11-16"},{"$f":"IF(DAY(_xlfn.SINGLE(НояВс1))=1,IF(AND(YEAR(_xlfn.SINGLE(НояВс1)+10)=_xlfn.SINGLE(КалендарныйГод),MONTH(_xlfn.SINGLE(НояВс1)+10)=11),_xlfn.SINGLE(НояВс1)+10,\"\"),IF(AND(YEAR(_xlfn.SINGLE(НояВс1)+17)=_xlfn.SINGLE(КалендарныйГод),MONTH(_xlfn.SINGLE(НояВс1)+17)=11),_xlfn.SINGLE(НояВс1)+17,\"\"))","v":"2021-11-17"},{"$f":"IF(DAY(_xlfn.SINGLE(НояВс1))=1,IF(AND(YEAR(_xlfn.SINGLE(НояВс1)+11)=_xlfn.SINGLE(КалендарныйГод),MONTH(_xlfn.SINGLE(НояВс1)+11)=11),_xlfn.SINGLE(НояВс1)+11,\"\"),IF(AND(YEAR(_xlfn.SINGLE(НояВс1)+18)=_xlfn.SINGLE(КалендарныйГод),MONTH(_xlfn.SINGLE(НояВс1)+18)=11),_xlfn.SINGLE(НояВс1)+18,\"\"))","v":"2021-11-18"},{"$f":"IF(DAY(_xlfn.SINGLE(НояВс1))=1,IF(AND(YEAR(_xlfn.SINGLE(НояВс1)+12)=_xlfn.SINGLE(КалендарныйГод),MONTH(_xlfn.SINGLE(НояВс1)+12)=11),_xlfn.SINGLE(НояВс1)+12,\"\"),IF(AND(YEAR(_xlfn.SINGLE(НояВс1)+19)=_xlfn.SINGLE(КалендарныйГод),MONTH(_xlfn.SINGLE(НояВс1)+19)=11),_xlfn.SINGLE(НояВс1)+19,\"\"))","v":"2021-11-19"},{"$f":"IF(DAY(_xlfn.SINGLE(НояВс1))=1,IF(AND(YEAR(_xlfn.SINGLE(НояВс1)+13)=_xlfn.SINGLE(КалендарныйГод),MONTH(_xlfn.SINGLE(НояВс1)+13)=11),_xlfn.SINGLE(НояВс1)+13,\"\"),IF(AND(YEAR(_xlfn.SINGLE(НояВс1)+20)=_xlfn.SINGLE(КалендарныйГод),MONTH(_xlfn.SINGLE(НояВс1)+20)=11),_xlfn.SINGLE(НояВс1)+20,\"\"))","v":"2021-11-20"},{"$f":"IF(DAY(_xlfn.SINGLE(НояВс1))=1,IF(AND(YEAR(_xlfn.SINGLE(НояВс1)+14)=_xlfn.SINGLE(КалендарныйГод),MONTH(_xlfn.SINGLE(НояВс1)+14)=11),_xlfn.SINGLE(НояВс1)+14,\"\"),IF(AND(YEAR(_xlfn.SINGLE(НояВс1)+21)=_xlfn.SINGLE(КалендарныйГод),MONTH(_xlfn.SINGLE(НояВс1)+21)=11),_xlfn.SINGLE(НояВс1)+21,\"\"))","v":"2021-11-21"},null,{"$f":"IF(DAY(_xlfn.SINGLE(ДекВс1))=1,IF(AND(YEAR(_xlfn.SINGLE(ДекВс1)+8)=_xlfn.SINGLE(КалендарныйГод),MONTH(_xlfn.SINGLE(ДекВс1)+8)=12),_xlfn.SINGLE(ДекВс1)+8,\"\"),IF(AND(YEAR(_xlfn.SINGLE(ДекВс1)+15)=_xlfn.SINGLE(КалендарныйГод),MONTH(_xlfn.SINGLE(ДекВс1)+15)=12),_xlfn.SINGLE(ДекВс1)+15,\"\"))","v":"2021-12-13"},{"$f":"IF(DAY(_xlfn.SINGLE(ДекВс1))=1,IF(AND(YEAR(_xlfn.SINGLE(ДекВс1)+9)=_xlfn.SINGLE(КалендарныйГод),MONTH(_xlfn.SINGLE(ДекВс1)+9)=12),_xlfn.SINGLE(ДекВс1)+9,\"\"),IF(AND(YEAR(_xlfn.SINGLE(ДекВс1)+16)=_xlfn.SINGLE(КалендарныйГод),MONTH(_xlfn.SINGLE(ДекВс1)+16)=12),_xlfn.SINGLE(ДекВс1)+16,\"\"))","v":"2021-12-14"},{"$f":"IF(DAY(_xlfn.SINGLE(ДекВс1))=1,IF(AND(YEAR(_xlfn.SINGLE(ДекВс1)+10)=_xlfn.SINGLE(КалендарныйГод),MONTH(_xlfn.SINGLE(ДекВс1)+10)=12),_xlfn.SINGLE(ДекВс1)+10,\"\"),IF(AND(YEAR(_xlfn.SINGLE(ДекВс1)+17)=_xlfn.SINGLE(КалендарныйГод),MONTH(_xlfn.SINGLE(ДекВс1)+17)=12),_xlfn.SINGLE(ДекВс1)+17,\"\"))","v":"2021-12-15"},{"$f":"IF(DAY(_xlfn.SINGLE(ДекВс1))=1,IF(AND(YEAR(_xlfn.SINGLE(ДекВс1)+11)=_xlfn.SINGLE(КалендарныйГод),MONTH(_xlfn.SINGLE(ДекВс1)+11)=12),_xlfn.SINGLE(ДекВс1)+11,\"\"),IF(AND(YEAR(_xlfn.SINGLE(ДекВс1)+18)=_xlfn.SINGLE(КалендарныйГод),MONTH(_xlfn.SINGLE(ДекВс1)+18)=12),_xlfn.SINGLE(ДекВс1)+18,\"\"))","v":"2021-12-16"},{"$f":"IF(DAY(_xlfn.SINGLE(ДекВс1))=1,IF(AND(YEAR(_xlfn.SINGLE(ДекВс1)+12)=_xlfn.SINGLE(КалендарныйГод),MONTH(_xlfn.SINGLE(ДекВс1)+12)=12),_xlfn.SINGLE(ДекВс1)+12,\"\"),IF(AND(YEAR(_xlfn.SINGLE(ДекВс1)+19)=_xlfn.SINGLE(КалендарныйГод),MONTH(_xlfn.SINGLE(ДекВс1)+19)=12),_xlfn.SINGLE(ДекВс1)+19,\"\"))","v":"2021-12-17"},{"$f":"IF(DAY(_xlfn.SINGLE(ДекВс1))=1,IF(AND(YEAR(_xlfn.SINGLE(ДекВс1)+13)=_xlfn.SINGLE(КалендарныйГод),MONTH(_xlfn.SINGLE(ДекВс1)+13)=12),_xlfn.SINGLE(ДекВс1)+13,\"\"),IF(AND(YEAR(_xlfn.SINGLE(ДекВс1)+20)=_xlfn.SINGLE(КалендарныйГод),MONTH(_xlfn.SINGLE(ДекВс1)+20)=12),_xlfn.SINGLE(ДекВс1)+20,\"\"))","v":"2021-12-18"},{"$f":"IF(DAY(_xlfn.SINGLE(ДекВс1))=1,IF(AND(YEAR(_xlfn.SINGLE(ДекВс1)+14)=_xlfn.SINGLE(КалендарныйГод),MONTH(_xlfn.SINGLE(ДекВс1)+14)=12),_xlfn.SINGLE(ДекВс1)+14,\"\"),IF(AND(YEAR(_xlfn.SINGLE(ДекВс1)+21)=_xlfn.SINGLE(КалендарныйГод),MONTH(_xlfn.SINGLE(ДекВс1)+21)=12),_xlfn.SINGLE(ДекВс1)+21,\"\"))","v":"2021-12-19"}]
[null,{"$f":"IF(DAY(_xlfn.SINGLE(СенВс1))=1,IF(AND(YEAR(_xlfn.SINGLE(СенВс1)+15)=_xlfn.SINGLE(КалендарныйГод),MONTH(_xlfn.SINGLE(СенВс1)+15)=9),_xlfn.SINGLE(СенВс1)+15,\"\"),IF(AND(YEAR(_xlfn.SINGLE(СенВс1)+22)=_xlfn.SINGLE(КалендарныйГод),MONTH(_xlfn.SINGLE(СенВс1)+22)=9),_xlfn.SINGLE(СенВс1)+22,\"\"))","v":"2021-09-20"},{"$f":"IF(DAY(_xlfn.SINGLE(СенВс1))=1,IF(AND(YEAR(_xlfn.SINGLE(СенВс1)+16)=_xlfn.SINGLE(КалендарныйГод),MONTH(_xlfn.SINGLE(СенВс1)+16)=9),_xlfn.SINGLE(СенВс1)+16,\"\"),IF(AND(YEAR(_xlfn.SINGLE(СенВс1)+23)=_xlfn.SINGLE(КалендарныйГод),MONTH(_xlfn.SINGLE(СенВс1)+23)=9),_xlfn.SINGLE(СенВс1)+23,\"\"))","v":"2021-09-21"},{"$f":"IF(DAY(_xlfn.SINGLE(СенВс1))=1,IF(AND(YEAR(_xlfn.SINGLE(СенВс1)+17)=_xlfn.SINGLE(КалендарныйГод),MONTH(_xlfn.SINGLE(СенВс1)+17)=9),_xlfn.SINGLE(СенВс1)+17,\"\"),IF(AND(YEAR(_xlfn.SINGLE(СенВс1)+24)=_xlfn.SINGLE(КалендарныйГод),MONTH(_xlfn.SINGLE(СенВс1)+24)=9),_xlfn.SINGLE(СенВс1)+24,\"\"))","v":"2021-09-22"},{"$f":"IF(DAY(_xlfn.SINGLE(СенВс1))=1,IF(AND(YEAR(_xlfn.SINGLE(СенВс1)+18)=_xlfn.SINGLE(КалендарныйГод),MONTH(_xlfn.SINGLE(СенВс1)+18)=9),_xlfn.SINGLE(СенВс1)+18,\"\"),IF(AND(YEAR(_xlfn.SINGLE(СенВс1)+25)=_xlfn.SINGLE(КалендарныйГод),MONTH(_xlfn.SINGLE(СенВс1)+25)=9),_xlfn.SINGLE(СенВс1)+25,\"\"))","v":"2021-09-23"},{"$f":"IF(DAY(_xlfn.SINGLE(СенВс1))=1,IF(AND(YEAR(_xlfn.SINGLE(СенВс1)+19)=_xlfn.SINGLE(КалендарныйГод),MONTH(_xlfn.SINGLE(СенВс1)+19)=9),_xlfn.SINGLE(СенВс1)+19,\"\"),IF(AND(YEAR(_xlfn.SINGLE(СенВс1)+26)=_xlfn.SINGLE(КалендарныйГод),MONTH(_xlfn.SINGLE(СенВс1)+26)=9),_xlfn.SINGLE(СенВс1)+26,\"\"))","v":"2021-09-24"},{"$f":"IF(DAY(_xlfn.SINGLE(СенВс1))=1,IF(AND(YEAR(_xlfn.SINGLE(СенВс1)+20)=_xlfn.SINGLE(КалендарныйГод),MONTH(_xlfn.SINGLE(СенВс1)+20)=9),_xlfn.SINGLE(СенВс1)+20,\"\"),IF(AND(YEAR(_xlfn.SINGLE(СенВс1)+27)=_xlfn.SINGLE(КалендарныйГод),MONTH(_xlfn.SINGLE(СенВс1)+27)=9),_xlfn.SINGLE(СенВс1)+27,\"\"))","v":"2021-09-25"},{"$f":"IF(DAY(_xlfn.SINGLE(СенВс1))=1,IF(AND(YEAR(_xlfn.SINGLE(СенВс1)+21)=_xlfn.SINGLE(КалендарныйГод),MONTH(_xlfn.SINGLE(СенВс1)+21)=9),_xlfn.SINGLE(СенВс1)+21,\"\"),IF(AND(YEAR(_xlfn.SINGLE(СенВс1)+28)=_xlfn.SINGLE(КалендарныйГод),MONTH(_xlfn.SINGLE(СенВс1)+28)=9),_xlfn.SINGLE(СенВс1)+28,\"\"))","v":"2021-09-26"},null,{"$f":"IF(DAY(_xlfn.SINGLE(ОктВс1))=1,IF(AND(YEAR(_xlfn.SINGLE(ОктВс1)+15)=_xlfn.SINGLE(КалендарныйГод),MONTH(_xlfn.SINGLE(ОктВс1)+15)=10),_xlfn.SINGLE(ОктВс1)+15,\"\"),IF(AND(YEAR(_xlfn.SINGLE(ОктВс1)+22)=_xlfn.SINGLE(КалендарныйГод),MONTH(_xlfn.SINGLE(ОктВс1)+22)=10),_xlfn.SINGLE(ОктВс1)+22,\"\"))","v":"2021-10-18"},{"$f":"IF(DAY(_xlfn.SINGLE(ОктВс1))=1,IF(AND(YEAR(_xlfn.SINGLE(ОктВс1)+16)=_xlfn.SINGLE(КалендарныйГод),MONTH(_xlfn.SINGLE(ОктВс1)+16)=10),_xlfn.SINGLE(ОктВс1)+16,\"\"),IF(AND(YEAR(_xlfn.SINGLE(ОктВс1)+23)=_xlfn.SINGLE(КалендарныйГод),MONTH(_xlfn.SINGLE(ОктВс1)+23)=10),_xlfn.SINGLE(ОктВс1)+23,\"\"))","v":"2021-10-19"},{"$f":"IF(DAY(_xlfn.SINGLE(ОктВс1))=1,IF(AND(YEAR(_xlfn.SINGLE(ОктВс1)+17)=_xlfn.SINGLE(КалендарныйГод),MONTH(_xlfn.SINGLE(ОктВс1)+17)=10),_xlfn.SINGLE(ОктВс1)+17,\"\"),IF(AND(YEAR(_xlfn.SINGLE(ОктВс1)+24)=_xlfn.SINGLE(КалендарныйГод),MONTH(_xlfn.SINGLE(ОктВс1)+24)=10),_xlfn.SINGLE(ОктВс1)+24,\"\"))","v":"2021-10-20"},{"$f":"IF(DAY(_xlfn.SINGLE(ОктВс1))=1,IF(AND(YEAR(_xlfn.SINGLE(ОктВс1)+18)=_xlfn.SINGLE(КалендарныйГод),MONTH(_xlfn.SINGLE(ОктВс1)+18)=10),_xlfn.SINGLE(ОктВс1)+18,\"\"),IF(AND(YEAR(_xlfn.SINGLE(ОктВс1)+25)=_xlfn.SINGLE(КалендарныйГод),MONTH(_xlfn.SINGLE(ОктВс1)+25)=10),_xlfn.SINGLE(ОктВс1)+25,\"\"))","v":"2021-10-21"},{"$f":"IF(DAY(_xlfn.SINGLE(ОктВс1))=1,IF(AND(YEAR(_xlfn.SINGLE(ОктВс1)+19)=_xlfn.SINGLE(КалендарныйГод),MONTH(_xlfn.SINGLE(ОктВс1)+19)=10),_xlfn.SINGLE(ОктВс1)+19,\"\"),IF(AND(YEAR(_xlfn.SINGLE(ОктВс1)+26)=_xlfn.SINGLE(КалендарныйГод),MONTH(_xlfn.SINGLE(ОктВс1)+26)=10),_xlfn.SINGLE(ОктВс1)+26,\"\"))","v":"2021-10-22"},{"$f":"IF(DAY(_xlfn.SINGLE(ОктВс1))=1,IF(AND(YEAR(_xlfn.SINGLE(ОктВс1)+20)=_xlfn.SINGLE(КалендарныйГод),MONTH(_xlfn.SINGLE(ОктВс1)+20)=10),_xlfn.SINGLE(ОктВс1)+20,\"\"),IF(AND(YEAR(_xlfn.SINGLE(ОктВс1)+27)=_xlfn.SINGLE(КалендарныйГод),MONTH(_xlfn.SINGLE(ОктВс1)+27)=10),_xlfn.SINGLE(ОктВс1)+27,\"\"))","v":"2021-10-23"},{"$f":"IF(DAY(_xlfn.SINGLE(ОктВс1))=1,IF(AND(YEAR(_xlfn.SINGLE(ОктВс1)+21)=_xlfn.SINGLE(КалендарныйГод),MONTH(_xlfn.SINGLE(ОктВс1)+21)=10),_xlfn.SINGLE(ОктВс1)+21,\"\"),IF(AND(YEAR(_xlfn.SINGLE(ОктВс1)+28)=_xlfn.SINGLE(КалендарныйГод),MONTH(_xlfn.SINGLE(ОктВс1)+28)=10),_xlfn.SINGLE(ОктВс1)+28,\"\"))","v":"2021-10-24"},null,{"$f":"IF(DAY(_xlfn.SINGLE(НояВс1))=1,IF(AND(YEAR(_xlfn.SINGLE(НояВс1)+15)=_xlfn.SINGLE(КалендарныйГод),MONTH(_xlfn.SINGLE(НояВс1)+15)=11),_xlfn.SINGLE(НояВс1)+15,\"\"),IF(AND(YEAR(_xlfn.SINGLE(НояВс1)+22)=_xlfn.SINGLE(КалендарныйГод),MONTH(_xlfn.SINGLE(НояВс1)+22)=11),_xlfn.SINGLE(НояВс1)+22,\"\"))","v":"2021-11-22"},{"$f":"IF(DAY(_xlfn.SINGLE(НояВс1))=1,IF(AND(YEAR(_xlfn.SINGLE(НояВс1)+16)=_xlfn.SINGLE(КалендарныйГод),MONTH(_xlfn.SINGLE(НояВс1)+16)=11),_xlfn.SINGLE(НояВс1)+16,\"\"),IF(AND(YEAR(_xlfn.SINGLE(НояВс1)+23)=_xlfn.SINGLE(КалендарныйГод),MONTH(_xlfn.SINGLE(НояВс1)+23)=11),_xlfn.SINGLE(НояВс1)+23,\"\"))","v":"2021-11-23"},{"$f":"IF(DAY(_xlfn.SINGLE(НояВс1))=1,IF(AND(YEAR(_xlfn.SINGLE(НояВс1)+17)=_xlfn.SINGLE(КалендарныйГод),MONTH(_xlfn.SINGLE(НояВс1)+17)=11),_xlfn.SINGLE(НояВс1)+17,\"\"),IF(AND(YEAR(_xlfn.SINGLE(НояВс1)+24)=_xlfn.SINGLE(КалендарныйГод),MONTH(_xlfn.SINGLE(НояВс1)+24)=11),_xlfn.SINGLE(НояВс1)+24,\"\"))","v":"2021-11-24"},{"$f":"IF(DAY(_xlfn.SINGLE(НояВс1))=1,IF(AND(YEAR(_xlfn.SINGLE(НояВс1)+18)=_xlfn.SINGLE(КалендарныйГод),MONTH(_xlfn.SINGLE(НояВс1)+18)=11),_xlfn.SINGLE(НояВс1)+18,\"\"),IF(AND(YEAR(_xlfn.SINGLE(НояВс1)+25)=_xlfn.SINGLE(КалендарныйГод),MONTH(_xlfn.SINGLE(НояВс1)+25)=11),_xlfn.SINGLE(НояВс1)+25,\"\"))","v":"2021-11-25"},{"$f":"IF(DAY(_xlfn.SINGLE(НояВс1))=1,IF(AND(YEAR(_xlfn.SINGLE(НояВс1)+19)=_xlfn.SINGLE(КалендарныйГод),MONTH(_xlfn.SINGLE(НояВс1)+19)=11),_xlfn.SINGLE(НояВс1)+19,\"\"),IF(AND(YEAR(_xlfn.SINGLE(НояВс1)+26)=_xlfn.SINGLE(КалендарныйГод),MONTH(_xlfn.SINGLE(НояВс1)+26)=11),_xlfn.SINGLE(НояВс1)+26,\"\"))","v":"2021-11-26"},{"$f":"IF(DAY(_xlfn.SINGLE(НояВс1))=1,IF(AND(YEAR(_xlfn.SINGLE(НояВс1)+20)=_xlfn.SINGLE(КалендарныйГод),MONTH(_xlfn.SINGLE(НояВс1)+20)=11),_xlfn.SINGLE(НояВс1)+20,\"\"),IF(AND(YEAR(_xlfn.SINGLE(НояВс1)+27)=_xlfn.SINGLE(КалендарныйГод),MONTH(_xlfn.SINGLE(НояВс1)+27)=11),_xlfn.SINGLE(НояВс1)+27,\"\"))","v":"2021-11-27"},{"$f":"IF(DAY(_xlfn.SINGLE(НояВс1))=1,IF(AND(YEAR(_xlfn.SINGLE(НояВс1)+21)=_xlfn.SINGLE(КалендарныйГод),MONTH(_xlfn.SINGLE(НояВс1)+21)=11),_xlfn.SINGLE(НояВс1)+21,\"\"),IF(AND(YEAR(_xlfn.SINGLE(НояВс1)+28)=_xlfn.SINGLE(КалендарныйГод),MONTH(_xlfn.SINGLE(НояВс1)+28)=11),_xlfn.SINGLE(НояВс1)+28,\"\"))","v":"2021-11-28"},null,{"$f":"IF(DAY(_xlfn.SINGLE(ДекВс1))=1,IF(AND(YEAR(_xlfn.SINGLE(ДекВс1)+15)=_xlfn.SINGLE(КалендарныйГод),MONTH(_xlfn.SINGLE(ДекВс1)+15)=12),_xlfn.SINGLE(ДекВс1)+15,\"\"),IF(AND(YEAR(_xlfn.SINGLE(ДекВс1)+22)=_xlfn.SINGLE(КалендарныйГод),MONTH(_xlfn.SINGLE(ДекВс1)+22)=12),_xlfn.SINGLE(ДекВс1)+22,\"\"))","v":"2021-12-20"},{"$f":"IF(DAY(_xlfn.SINGLE(ДекВс1))=1,IF(AND(YEAR(_xlfn.SINGLE(ДекВс1)+16)=_xlfn.SINGLE(КалендарныйГод),MONTH(_xlfn.SINGLE(ДекВс1)+16)=12),_xlfn.SINGLE(ДекВс1)+16,\"\"),IF(AND(YEAR(_xlfn.SINGLE(ДекВс1)+23)=_xlfn.SINGLE(КалендарныйГод),MONTH(_xlfn.SINGLE(ДекВс1)+23)=12),_xlfn.SINGLE(ДекВс1)+23,\"\"))","v":"2021-12-21"},{"$f":"IF(DAY(_xlfn.SINGLE(ДекВс1))=1,IF(AND(YEAR(_xlfn.SINGLE(ДекВс1)+17)=_xlfn.SINGLE(КалендарныйГод),MONTH(_xlfn.SINGLE(ДекВс1)+17)=12),_xlfn.SINGLE(ДекВс1)+17,\"\"),IF(AND(YEAR(_xlfn.SINGLE(ДекВс1)+24)=_xlfn.SINGLE(КалендарныйГод),MONTH(_xlfn.SINGLE(ДекВс1)+24)=12),_xlfn.SINGLE(ДекВс1)+24,\"\"))","v":"2021-12-22"},{"$f":"IF(DAY(_xlfn.SINGLE(ДекВс1))=1,IF(AND(YEAR(_xlfn.SINGLE(ДекВс1)+18)=_xlfn.SINGLE(КалендарныйГод),MONTH(_xlfn.SINGLE(ДекВс1)+18)=12),_xlfn.SINGLE(ДекВс1)+18,\"\"),IF(AND(YEAR(_xlfn.SINGLE(ДекВс1)+25)=_xlfn.SINGLE(КалендарныйГод),MONTH(_xlfn.SINGLE(ДекВс1)+25)=12),_xlfn.SINGLE(ДекВс1)+25,\"\"))","v":"2021-12-23"},{"$f":"IF(DAY(_xlfn.SINGLE(ДекВс1))=1,IF(AND(YEAR(_xlfn.SINGLE(ДекВс1)+19)=_xlfn.SINGLE(КалендарныйГод),MONTH(_xlfn.SINGLE(ДекВс1)+19)=12),_xlfn.SINGLE(ДекВс1)+19,\"\"),IF(AND(YEAR(_xlfn.SINGLE(ДекВс1)+26)=_xlfn.SINGLE(КалендарныйГод),MONTH(_xlfn.SINGLE(ДекВс1)+26)=12),_xlfn.SINGLE(ДекВс1)+26,\"\"))","v":"2021-12-24"},{"$f":"IF(DAY(_xlfn.SINGLE(ДекВс1))=1,IF(AND(YEAR(_xlfn.SINGLE(ДекВс1)+20)=_xlfn.SINGLE(КалендарныйГод),MONTH(_xlfn.SINGLE(ДекВс1)+20)=12),_xlfn.SINGLE(ДекВс1)+20,\"\"),IF(AND(YEAR(_xlfn.SINGLE(ДекВс1)+27)=_xlfn.SINGLE(КалендарныйГод),MONTH(_xlfn.SINGLE(ДекВс1)+27)=12),_xlfn.SINGLE(ДекВс1)+27,\"\"))","v":"2021-12-25"},{"$f":"IF(DAY(_xlfn.SINGLE(ДекВс1))=1,IF(AND(YEAR(_xlfn.SINGLE(ДекВс1)+21)=_xlfn.SINGLE(КалендарныйГод),MONTH(_xlfn.SINGLE(ДекВс1)+21)=12),_xlfn.SINGLE(ДекВс1)+21,\"\"),IF(AND(YEAR(_xlfn.SINGLE(ДекВс1)+28)=_xlfn.SINGLE(КалендарныйГод),MONTH(_xlfn.SINGLE(ДекВс1)+28)=12),_xlfn.SINGLE(ДекВс1)+28,\"\"))","v":"2021-12-26"}]
[null,{"$f":"IF(DAY(_xlfn.SINGLE(СенВс1))=1,IF(AND(YEAR(_xlfn.SINGLE(СенВс1)+22)=_xlfn.SINGLE(КалендарныйГод),MONTH(_xlfn.SINGLE(СенВс1)+22)=9),_xlfn.SINGLE(СенВс1)+22,\"\"),IF(AND(YEAR(_xlfn.SINGLE(СенВс1)+29)=_xlfn.SINGLE(КалендарныйГод),MONTH(_xlfn.SINGLE(СенВс1)+29)=9),_xlfn.SINGLE(СенВс1)+29,\"\"))","v":"2021-09-27"},{"$f":"IF(DAY(_xlfn.SINGLE(СенВс1))=1,IF(AND(YEAR(_xlfn.SINGLE(СенВс1)+23)=_xlfn.SINGLE(КалендарныйГод),MONTH(_xlfn.SINGLE(СенВс1)+23)=9),_xlfn.SINGLE(СенВс1)+23,\"\"),IF(AND(YEAR(_xlfn.SINGLE(СенВс1)+30)=_xlfn.SINGLE(КалендарныйГод),MONTH(_xlfn.SINGLE(СенВс1)+30)=9),_xlfn.SINGLE(СенВс1)+30,\"\"))","v":"2021-09-28"},{"$f":"IF(DAY(_xlfn.SINGLE(СенВс1))=1,IF(AND(YEAR(_xlfn.SINGLE(СенВс1)+24)=_xlfn.SINGLE(КалендарныйГод),MONTH(_xlfn.SINGLE(СенВс1)+24)=9),_xlfn.SINGLE(СенВс1)+24,\"\"),IF(AND(YEAR(_xlfn.SINGLE(СенВс1)+31)=_xlfn.SINGLE(КалендарныйГод),MONTH(_xlfn.SINGLE(СенВс1)+31)=9),_xlfn.SINGLE(СенВс1)+31,\"\"))","v":"2021-09-29"},{"$f":"IF(DAY(_xlfn.SINGLE(СенВс1))=1,IF(AND(YEAR(_xlfn.SINGLE(СенВс1)+25)=_xlfn.SINGLE(КалендарныйГод),MONTH(_xlfn.SINGLE(СенВс1)+25)=9),_xlfn.SINGLE(СенВс1)+25,\"\"),IF(AND(YEAR(_xlfn.SINGLE(СенВс1)+32)=_xlfn.SINGLE(КалендарныйГод),MONTH(_xlfn.SINGLE(СенВс1)+32)=9),_xlfn.SINGLE(СенВс1)+32,\"\"))","v":"2021-09-30"},{"$f":"IF(DAY(_xlfn.SINGLE(СенВс1))=1,IF(AND(YEAR(_xlfn.SINGLE(СенВс1)+26)=_xlfn.SINGLE(КалендарныйГод),MONTH(_xlfn.SINGLE(СенВс1)+26)=9),_xlfn.SINGLE(СенВс1)+26,\"\"),IF(AND(YEAR(_xlfn.SINGLE(СенВс1)+33)=_xlfn.SINGLE(КалендарныйГод),MONTH(_xlfn.SINGLE(СенВс1)+33)=9),_xlfn.SINGLE(СенВс1)+33,\"\"))","v":""},{"$f":"IF(DAY(_xlfn.SINGLE(СенВс1))=1,IF(AND(YEAR(_xlfn.SINGLE(СенВс1)+27)=_xlfn.SINGLE(КалендарныйГод),MONTH(_xlfn.SINGLE(СенВс1)+27)=9),_xlfn.SINGLE(СенВс1)+27,\"\"),IF(AND(YEAR(_xlfn.SINGLE(СенВс1)+34)=_xlfn.SINGLE(КалендарныйГод),MONTH(_xlfn.SINGLE(СенВс1)+34)=9),_xlfn.SINGLE(СенВс1)+34,\"\"))","v":""},{"$f":"IF(DAY(_xlfn.SINGLE(СенВс1))=1,IF(AND(YEAR(_xlfn.SINGLE(СенВс1)+28)=_xlfn.SINGLE(КалендарныйГод),MONTH(_xlfn.SINGLE(СенВс1)+28)=9),_xlfn.SINGLE(СенВс1)+28,\"\"),IF(AND(YEAR(_xlfn.SINGLE(СенВс1)+35)=_xlfn.SINGLE(КалендарныйГод),MONTH(_xlfn.SINGLE(СенВс1)+35)=9),_xlfn.SINGLE(СенВс1)+35,\"\"))","v":""},null,{"$f":"IF(DAY(_xlfn.SINGLE(ОктВс1))=1,IF(AND(YEAR(_xlfn.SINGLE(ОктВс1)+22)=_xlfn.SINGLE(КалендарныйГод),MONTH(_xlfn.SINGLE(ОктВс1)+22)=10),_xlfn.SINGLE(ОктВс1)+22,\"\"),IF(AND(YEAR(_xlfn.SINGLE(ОктВс1)+29)=_xlfn.SINGLE(КалендарныйГод),MONTH(_xlfn.SINGLE(ОктВс1)+29)=10),_xlfn.SINGLE(ОктВс1)+29,\"\"))","v":"2021-10-25"},{"$f":"IF(DAY(_xlfn.SINGLE(ОктВс1))=1,IF(AND(YEAR(_xlfn.SINGLE(ОктВс1)+23)=_xlfn.SINGLE(КалендарныйГод),MONTH(_xlfn.SINGLE(ОктВс1)+23)=10),_xlfn.SINGLE(ОктВс1)+23,\"\"),IF(AND(YEAR(_xlfn.SINGLE(ОктВс1)+30)=_xlfn.SINGLE(КалендарныйГод),MONTH(_xlfn.SINGLE(ОктВс1)+30)=10),_xlfn.SINGLE(ОктВс1)+30,\"\"))","v":"2021-10-26"},{"$f":"IF(DAY(_xlfn.SINGLE(ОктВс1))=1,IF(AND(YEAR(_xlfn.SINGLE(ОктВс1)+24)=_xlfn.SINGLE(КалендарныйГод),MONTH(_xlfn.SINGLE(ОктВс1)+24)=10),_xlfn.SINGLE(ОктВс1)+24,\"\"),IF(AND(YEAR(_xlfn.SINGLE(ОктВс1)+31)=_xlfn.SINGLE(КалендарныйГод),MONTH(_xlfn.SINGLE(ОктВс1)+31)=10),_xlfn.SINGLE(ОктВс1)+31,\"\"))","v":"2021-10-27"},{"$f":"IF(DAY(_xlfn.SINGLE(ОктВс1))=1,IF(AND(YEAR(_xlfn.SINGLE(ОктВс1)+25)=_xlfn.SINGLE(КалендарныйГод),MONTH(_xlfn.SINGLE(ОктВс1)+25)=10),_xlfn.SINGLE(ОктВс1)+25,\"\"),IF(AND(YEAR(_xlfn.SINGLE(ОктВс1)+32)=_xlfn.SINGLE(КалендарныйГод),MONTH(_xlfn.SINGLE(ОктВс1)+32)=10),_xlfn.SINGLE(ОктВс1)+32,\"\"))","v":"2021-10-28"},{"$f":"IF(DAY(_xlfn.SINGLE(ОктВс1))=1,IF(AND(YEAR(_xlfn.SINGLE(ОктВс1)+26)=_xlfn.SINGLE(КалендарныйГод),MONTH(_xlfn.SINGLE(ОктВс1)+26)=10),_xlfn.SINGLE(ОктВс1)+26,\"\"),IF(AND(YEAR(_xlfn.SINGLE(ОктВс1)+33)=_xlfn.SINGLE(КалендарныйГод),MONTH(_xlfn.SINGLE(ОктВс1)+33)=10),_xlfn.SINGLE(ОктВс1)+33,\"\"))","v":"2021-10-29"},{"$f":"IF(DAY(_xlfn.SINGLE(ОктВс1))=1,IF(AND(YEAR(_xlfn.SINGLE(ОктВс1)+27)=_xlfn.SINGLE(КалендарныйГод),MONTH(_xlfn.SINGLE(ОктВс1)+27)=10),_xlfn.SINGLE(ОктВс1)+27,\"\"),IF(AND(YEAR(_xlfn.SINGLE(ОктВс1)+34)=_xlfn.SINGLE(КалендарныйГод),MONTH(_xlfn.SINGLE(ОктВс1)+34)=10),_xlfn.SINGLE(ОктВс1)+34,\"\"))","v":"2021-10-30"},{"$f":"IF(DAY(_xlfn.SINGLE(ОктВс1))=1,IF(AND(YEAR(_xlfn.SINGLE(ОктВс1)+28)=_xlfn.SINGLE(КалендарныйГод),MONTH(_xlfn.SINGLE(ОктВс1)+28)=10),_xlfn.SINGLE(ОктВс1)+28,\"\"),IF(AND(YEAR(_xlfn.SINGLE(ОктВс1)+35)=_xlfn.SINGLE(КалендарныйГод),MONTH(_xlfn.SINGLE(ОктВс1)+35)=10),_xlfn.SINGLE(ОктВс1)+35,\"\"))","v":"2021-10-31"},null,{"$f":"IF(DAY(_xlfn.SINGLE(НояВс1))=1,IF(AND(YEAR(_xlfn.SINGLE(НояВс1)+22)=_xlfn.SINGLE(КалендарныйГод),MONTH(_xlfn.SINGLE(НояВс1)+22)=11),_xlfn.SINGLE(НояВс1)+22,\"\"),IF(AND(YEAR(_xlfn.SINGLE(НояВс1)+29)=_xlfn.SINGLE(КалендарныйГод),MONTH(_xlfn.SINGLE(НояВс1)+29)=11),_xlfn.SINGLE(НояВс1)+29,\"\"))","v":"2021-11-29"},{"$f":"IF(DAY(_xlfn.SINGLE(НояВс1))=1,IF(AND(YEAR(_xlfn.SINGLE(НояВс1)+23)=_xlfn.SINGLE(КалендарныйГод),MONTH(_xlfn.SINGLE(НояВс1)+23)=11),_xlfn.SINGLE(НояВс1)+23,\"\"),IF(AND(YEAR(_xlfn.SINGLE(НояВс1)+30)=_xlfn.SINGLE(КалендарныйГод),MONTH(_xlfn.SINGLE(НояВс1)+30)=11),_xlfn.SINGLE(НояВс1)+30,\"\"))","v":"2021-11-30"},{"$f":"IF(DAY(_xlfn.SINGLE(НояВс1))=1,IF(AND(YEAR(_xlfn.SINGLE(НояВс1)+24)=_xlfn.SINGLE(КалендарныйГод),MONTH(_xlfn.SINGLE(НояВс1)+24)=11),_xlfn.SINGLE(НояВс1)+24,\"\"),IF(AND(YEAR(_xlfn.SINGLE(НояВс1)+31)=_xlfn.SINGLE(КалендарныйГод),MONTH(_xlfn.SINGLE(НояВс1)+31)=11),_xlfn.SINGLE(НояВс1)+31,\"\"))","v":""},{"$f":"IF(DAY(_xlfn.SINGLE(НояВс1))=1,IF(AND(YEAR(_xlfn.SINGLE(НояВс1)+25)=_xlfn.SINGLE(КалендарныйГод),MONTH(_xlfn.SINGLE(НояВс1)+25)=11),_xlfn.SINGLE(НояВс1)+25,\"\"),IF(AND(YEAR(_xlfn.SINGLE(НояВс1)+32)=_xlfn.SINGLE(КалендарныйГод),MONTH(_xlfn.SINGLE(НояВс1)+32)=11),_xlfn.SINGLE(НояВс1)+32,\"\"))","v":""},{"$f":"IF(DAY(_xlfn.SINGLE(НояВс1))=1,IF(AND(YEAR(_xlfn.SINGLE(НояВс1)+26)=_xlfn.SINGLE(КалендарныйГод),MONTH(_xlfn.SINGLE(НояВс1)+26)=11),_xlfn.SINGLE(НояВс1)+26,\"\"),IF(AND(YEAR(_xlfn.SINGLE(НояВс1)+33)=_xlfn.SINGLE(КалендарныйГод),MONTH(_xlfn.SINGLE(НояВс1)+33)=11),_xlfn.SINGLE(НояВс1)+33,\"\"))","v":""},{"$f":"IF(DAY(_xlfn.SINGLE(НояВс1))=1,IF(AND(YEAR(_xlfn.SINGLE(НояВс1)+27)=_xlfn.SINGLE(КалендарныйГод),MONTH(_xlfn.SINGLE(НояВс1)+27)=11),_xlfn.SINGLE(НояВс1)+27,\"\"),IF(AND(YEAR(_xlfn.SINGLE(НояВс1)+34)=_xlfn.SINGLE(КалендарныйГод),MONTH(_xlfn.SINGLE(НояВс1)+34)=11),_xlfn.SINGLE(НояВс1)+34,\"\"))","v":""},{"$f":"IF(DAY(_xlfn.SINGLE(НояВс1))=1,IF(AND(YEAR(_xlfn.SINGLE(НояВс1)+28)=_xlfn.SINGLE(КалендарныйГод),MONTH(_xlfn.SINGLE(НояВс1)+28)=11),_xlfn.SINGLE(НояВс1)+28,\"\"),IF(AND(YEAR(_xlfn.SINGLE(НояВс1)+35)=_xlfn.SINGLE(КалендарныйГод),MONTH(_xlfn.SINGLE(НояВс1)+35)=11),_xlfn.SINGLE(НояВс1)+35,\"\"))","v":""},null,{"$f":"IF(DAY(_xlfn.SINGLE(ДекВс1))=1,IF(AND(YEAR(_xlfn.SINGLE(ДекВс1)+22)=_xlfn.SINGLE(КалендарныйГод),MONTH(_xlfn.SINGLE(ДекВс1)+22)=12),_xlfn.SINGLE(ДекВс1)+22,\"\"),IF(AND(YEAR(_xlfn.SINGLE(ДекВс1)+29)=_xlfn.SINGLE(КалендарныйГод),MONTH(_xlfn.SINGLE(ДекВс1)+29)=12),_xlfn.SINGLE(ДекВс1)+29,\"\"))","v":"2021-12-27"},{"$f":"IF(DAY(_xlfn.SINGLE(ДекВс1))=1,IF(AND(YEAR(_xlfn.SINGLE(ДекВс1)+23)=_xlfn.SINGLE(КалендарныйГод),MONTH(_xlfn.SINGLE(ДекВс1)+23)=12),_xlfn.SINGLE(ДекВс1)+23,\"\"),IF(AND(YEAR(_xlfn.SINGLE(ДекВс1)+30)=_xlfn.SINGLE(КалендарныйГод),MONTH(_xlfn.SINGLE(ДекВс1)+30)=12),_xlfn.SINGLE(ДекВс1)+30,\"\"))","v":"2021-12-28"},{"$f":"IF(DAY(_xlfn.SINGLE(ДекВс1))=1,IF(AND(YEAR(_xlfn.SINGLE(ДекВс1)+24)=_xlfn.SINGLE(КалендарныйГод),MONTH(_xlfn.SINGLE(ДекВс1)+24)=12),_xlfn.SINGLE(ДекВс1)+24,\"\"),IF(AND(YEAR(_xlfn.SINGLE(ДекВс1)+31)=_xlfn.SINGLE(КалендарныйГод),MONTH(_xlfn.SINGLE(ДекВс1)+31)=12),_xlfn.SINGLE(ДекВс1)+31,\"\"))","v":"2021-12-29"},{"$f":"IF(DAY(_xlfn.SINGLE(ДекВс1))=1,IF(AND(YEAR(_xlfn.SINGLE(ДекВс1)+25)=_xlfn.SINGLE(КалендарныйГод),MONTH(_xlfn.SINGLE(ДекВс1)+25)=12),_xlfn.SINGLE(ДекВс1)+25,\"\"),IF(AND(YEAR(_xlfn.SINGLE(ДекВс1)+32)=_xlfn.SINGLE(КалендарныйГод),MONTH(_xlfn.SINGLE(ДекВс1)+32)=12),_xlfn.SINGLE(ДекВс1)+32,\"\"))","v":"2021-12-30"},{"$f":"IF(DAY(_xlfn.SINGLE(ДекВс1))=1,IF(AND(YEAR(_xlfn.SINGLE(ДекВс1)+26)=_xlfn.SINGLE(КалендарныйГод),MONTH(_xlfn.SINGLE(ДекВс1)+26)=12),_xlfn.SINGLE(ДекВс1)+26,\"\"),IF(AND(YEAR(_xlfn.SINGLE(ДекВс1)+33)=_xlfn.SINGLE(КалендарныйГод),MONTH(_xlfn.SINGLE(ДекВс1)+33)=12),_xlfn.SINGLE(ДекВс1)+33,\"\"))","v":"2021-12-31"},{"$f":"IF(DAY(_xlfn.SINGLE(ДекВс1))=1,IF(AND(YEAR(_xlfn.SINGLE(ДекВс1)+27)=_xlfn.SINGLE(КалендарныйГод),MONTH(_xlfn.SINGLE(ДекВс1)+27)=12),_xlfn.SINGLE(ДекВс1)+27,\"\"),IF(AND(YEAR(_xlfn.SINGLE(ДекВс1)+34)=_xlfn.SINGLE(КалендарныйГод),MONTH(_xlfn.SINGLE(ДекВс1)+34)=12),_xlfn.SINGLE(ДекВс1)+34,\"\"))","v":""},{"$f":"IF(DAY(_xlfn.SINGLE(ДекВс1))=1,IF(AND(YEAR(_xlfn.SINGLE(ДекВс1)+28)=_xlfn.SINGLE(КалендарныйГод),MONTH(_xlfn.SINGLE(ДекВс1)+28)=12),_xlfn.SINGLE(ДекВс1)+28,\"\"),IF(AND(YEAR(_xlfn.SINGLE(ДекВс1)+35)=_xlfn.SINGLE(КалендарныйГод),MONTH(_xlfn.SINGLE(ДекВс1)+35)=12),_xlfn.SINGLE(ДекВс1)+35,\"\"))","v":""}]
[null,{"$f":"IF(DAY(_xlfn.SINGLE(СенВс1))=1,IF(AND(YEAR(_xlfn.SINGLE(СенВс1)+29)=_xlfn.SINGLE(КалендарныйГод),MONTH(_xlfn.SINGLE(СенВс1)+29)=9),_xlfn.SINGLE(СенВс1)+29,\"\"),IF(AND(YEAR(_xlfn.SINGLE(СенВс1)+36)=_xlfn.SINGLE(КалендарныйГод),MONTH(_xlfn.SINGLE(СенВс1)+36)=9),_xlfn.SINGLE(СенВс1)+36,\"\"))","v":""},{"$f":"IF(DAY(_xlfn.SINGLE(СенВс1))=1,IF(AND(YEAR(_xlfn.SINGLE(СенВс1)+30)=_xlfn.SINGLE(КалендарныйГод),MONTH(_xlfn.SINGLE(СенВс1)+30)=9),_xlfn.SINGLE(СенВс1)+30,\"\"),IF(AND(YEAR(_xlfn.SINGLE(СенВс1)+37)=_xlfn.SINGLE(КалендарныйГод),MONTH(_xlfn.SINGLE(СенВс1)+37)=9),_xlfn.SINGLE(СенВс1)+37,\"\"))","v":""},{"$f":"IF(DAY(_xlfn.SINGLE(СенВс1))=1,IF(AND(YEAR(_xlfn.SINGLE(СенВс1)+31)=_xlfn.SINGLE(КалендарныйГод),MONTH(_xlfn.SINGLE(СенВс1)+31)=9),_xlfn.SINGLE(СенВс1)+31,\"\"),IF(AND(YEAR(_xlfn.SINGLE(СенВс1)+38)=_xlfn.SINGLE(КалендарныйГод),MONTH(_xlfn.SINGLE(СенВс1)+38)=9),_xlfn.SINGLE(СенВс1)+38,\"\"))","v":""},{"$f":"IF(DAY(_xlfn.SINGLE(СенВс1))=1,IF(AND(YEAR(_xlfn.SINGLE(СенВс1)+32)=_xlfn.SINGLE(КалендарныйГод),MONTH(_xlfn.SINGLE(СенВс1)+32)=9),_xlfn.SINGLE(СенВс1)+32,\"\"),IF(AND(YEAR(_xlfn.SINGLE(СенВс1)+39)=_xlfn.SINGLE(КалендарныйГод),MONTH(_xlfn.SINGLE(СенВс1)+39)=9),_xlfn.SINGLE(СенВс1)+39,\"\"))","v":""},{"$f":"IF(DAY(_xlfn.SINGLE(СенВс1))=1,IF(AND(YEAR(_xlfn.SINGLE(СенВс1)+33)=_xlfn.SINGLE(КалендарныйГод),MONTH(_xlfn.SINGLE(СенВс1)+33)=9),_xlfn.SINGLE(СенВс1)+33,\"\"),IF(AND(YEAR(_xlfn.SINGLE(СенВс1)+40)=_xlfn.SINGLE(КалендарныйГод),MONTH(_xlfn.SINGLE(СенВс1)+40)=9),_xlfn.SINGLE(СенВс1)+40,\"\"))","v":""},{"$f":"IF(DAY(_xlfn.SINGLE(СенВс1))=1,IF(AND(YEAR(_xlfn.SINGLE(СенВс1)+34)=_xlfn.SINGLE(КалендарныйГод),MONTH(_xlfn.SINGLE(СенВс1)+34)=9),_xlfn.SINGLE(СенВс1)+34,\"\"),IF(AND(YEAR(_xlfn.SINGLE(СенВс1)+41)=_xlfn.SINGLE(КалендарныйГод),MONTH(_xlfn.SINGLE(СенВс1)+41)=9),_xlfn.SINGLE(СенВс1)+41,\"\"))","v":""},{"$f":"IF(DAY(_xlfn.SINGLE(СенВс1))=1,IF(AND(YEAR(_xlfn.SINGLE(СенВс1)+35)=_xlfn.SINGLE(КалендарныйГод),MONTH(_xlfn.SINGLE(СенВс1)+35)=9),_xlfn.SINGLE(СенВс1)+35,\"\"),IF(AND(YEAR(_xlfn.SINGLE(СенВс1)+42)=_xlfn.SINGLE(КалендарныйГод),MONTH(_xlfn.SINGLE(СенВс1)+42)=9),_xlfn.SINGLE(СенВс1)+42,\"\"))","v":""},null,{"$f":"IF(DAY(_xlfn.SINGLE(ОктВс1))=1,IF(AND(YEAR(_xlfn.SINGLE(ОктВс1)+29)=_xlfn.SINGLE(КалендарныйГод),MONTH(_xlfn.SINGLE(ОктВс1)+29)=10),_xlfn.SINGLE(ОктВс1)+29,\"\"),IF(AND(YEAR(_xlfn.SINGLE(ОктВс1)+36)=_xlfn.SINGLE(КалендарныйГод),MONTH(_xlfn.SINGLE(ОктВс1)+36)=10),_xlfn.SINGLE(ОктВс1)+36,\"\"))","v":""},{"$f":"IF(DAY(_xlfn.SINGLE(ОктВс1))=1,IF(AND(YEAR(_xlfn.SINGLE(ОктВс1)+30)=_xlfn.SINGLE(КалендарныйГод),MONTH(_xlfn.SINGLE(ОктВс1)+30)=10),_xlfn.SINGLE(ОктВс1)+30,\"\"),IF(AND(YEAR(_xlfn.SINGLE(ОктВс1)+37)=_xlfn.SINGLE(КалендарныйГод),MONTH(_xlfn.SINGLE(ОктВс1)+37)=10),_xlfn.SINGLE(ОктВс1)+37,\"\"))","v":""},{"$f":"IF(DAY(_xlfn.SINGLE(ОктВс1))=1,IF(AND(YEAR(_xlfn.SINGLE(ОктВс1)+31)=_xlfn.SINGLE(КалендарныйГод),MONTH(_xlfn.SINGLE(ОктВс1)+31)=10),_xlfn.SINGLE(ОктВс1)+31,\"\"),IF(AND(YEAR(_xlfn.SINGLE(ОктВс1)+38)=_xlfn.SINGLE(КалендарныйГод),MONTH(_xlfn.SINGLE(ОктВс1)+38)=10),_xlfn.SINGLE(ОктВс1)+38,\"\"))","v":""},{"$f":"IF(DAY(_xlfn.SINGLE(ОктВс1))=1,IF(AND(YEAR(_xlfn.SINGLE(ОктВс1)+32)=_xlfn.SINGLE(КалендарныйГод),MONTH(_xlfn.SINGLE(ОктВс1)+32)=10),_xlfn.SINGLE(ОктВс1)+32,\"\"),IF(AND(YEAR(_xlfn.SINGLE(ОктВс1)+39)=_xlfn.SINGLE(КалендарныйГод),MONTH(_xlfn.SINGLE(ОктВс1)+39)=10),_xlfn.SINGLE(ОктВс1)+39,\"\"))","v":""},{"$f":"IF(DAY(_xlfn.SINGLE(ОктВс1))=1,IF(AND(YEAR(_xlfn.SINGLE(ОктВс1)+33)=_xlfn.SINGLE(КалендарныйГод),MONTH(_xlfn.SINGLE(ОктВс1)+33)=10),_xlfn.SINGLE(ОктВс1)+33,\"\"),IF(AND(YEAR(_xlfn.SINGLE(ОктВс1)+40)=_xlfn.SINGLE(КалендарныйГод),MONTH(_xlfn.SINGLE(ОктВс1)+40)=10),_xlfn.SINGLE(ОктВс1)+40,\"\"))","v":""},{"$f":"IF(DAY(_xlfn.SINGLE(ОктВс1))=1,IF(AND(YEAR(_xlfn.SINGLE(ОктВс1)+34)=_xlfn.SINGLE(КалендарныйГод),MONTH(_xlfn.SINGLE(ОктВс1)+34)=10),_xlfn.SINGLE(ОктВс1)+34,\"\"),IF(AND(YEAR(_xlfn.SINGLE(ОктВс1)+41)=_xlfn.SINGLE(КалендарныйГод),MONTH(_xlfn.SINGLE(ОктВс1)+41)=10),_xlfn.SINGLE(ОктВс1)+41,\"\"))","v":""},{"$f":"IF(DAY(_xlfn.SINGLE(ОктВс1))=1,IF(AND(YEAR(_xlfn.SINGLE(ОктВс1)+35)=_xlfn.SINGLE(КалендарныйГод),MONTH(_xlfn.SINGLE(ОктВс1)+35)=10),_xlfn.SINGLE(ОктВс1)+35,\"\"),IF(AND(YEAR(_xlfn.SINGLE(ОктВс1)+42)=_xlfn.SINGLE(КалендарныйГод),MONTH(_xlfn.SINGLE(ОктВс1)+42)=10),_xlfn.SINGLE(ОктВс1)+42,\"\"))","v":""},null,{"$f":"IF(DAY(_xlfn.SINGLE(НояВс1))=1,IF(AND(YEAR(_xlfn.SINGLE(НояВс1)+29)=_xlfn.SINGLE(КалендарныйГод),MONTH(_xlfn.SINGLE(НояВс1)+29)=11),_xlfn.SINGLE(НояВс1)+29,\"\"),IF(AND(YEAR(_xlfn.SINGLE(НояВс1)+36)=_xlfn.SINGLE(КалендарныйГод),MONTH(_xlfn.SINGLE(НояВс1)+36)=11),_xlfn.SINGLE(НояВс1)+36,\"\"))","v":""},{"$f":"IF(DAY(_xlfn.SINGLE(НояВс1))=1,IF(AND(YEAR(_xlfn.SINGLE(НояВс1)+30)=_xlfn.SINGLE(КалендарныйГод),MONTH(_xlfn.SINGLE(НояВс1)+30)=11),_xlfn.SINGLE(НояВс1)+30,\"\"),IF(AND(YEAR(_xlfn.SINGLE(НояВс1)+37)=_xlfn.SINGLE(КалендарныйГод),MONTH(_xlfn.SINGLE(НояВс1)+37)=11),_xlfn.SINGLE(НояВс1)+37,\"\"))","v":""},{"$f":"IF(DAY(_xlfn.SINGLE(НояВс1))=1,IF(AND(YEAR(_xlfn.SINGLE(НояВс1)+31)=_xlfn.SINGLE(КалендарныйГод),MONTH(_xlfn.SINGLE(НояВс1)+31)=11),_xlfn.SINGLE(НояВс1)+31,\"\"),IF(AND(YEAR(_xlfn.SINGLE(НояВс1)+38)=_xlfn.SINGLE(КалендарныйГод),MONTH(_xlfn.SINGLE(НояВс1)+38)=11),_xlfn.SINGLE(НояВс1)+38,\"\"))","v":""},{"$f":"IF(DAY(_xlfn.SINGLE(НояВс1))=1,IF(AND(YEAR(_xlfn.SINGLE(НояВс1)+32)=_xlfn.SINGLE(КалендарныйГод),MONTH(_xlfn.SINGLE(НояВс1)+32)=11),_xlfn.SINGLE(НояВс1)+32,\"\"),IF(AND(YEAR(_xlfn.SINGLE(НояВс1)+39)=_xlfn.SINGLE(КалендарныйГод),MONTH(_xlfn.SINGLE(НояВс1)+39)=11),_xlfn.SINGLE(НояВс1)+39,\"\"))","v":""},{"$f":"IF(DAY(_xlfn.SINGLE(НояВс1))=1,IF(AND(YEAR(_xlfn.SINGLE(НояВс1)+33)=_xlfn.SINGLE(КалендарныйГод),MONTH(_xlfn.SINGLE(НояВс1)+33)=11),_xlfn.SINGLE(НояВс1)+33,\"\"),IF(AND(YEAR(_xlfn.SINGLE(НояВс1)+40)=_xlfn.SINGLE(КалендарныйГод),MONTH(_xlfn.SINGLE(НояВс1)+40)=11),_xlfn.SINGLE(НояВс1)+40,\"\"))","v":""},{"$f":"IF(DAY(_xlfn.SINGLE(НояВс1))=1,IF(AND(YEAR(_xlfn.SINGLE(НояВс1)+34)=_xlfn.SINGLE(КалендарныйГод),MONTH(_xlfn.SINGLE(НояВс1)+34)=11),_xlfn.SINGLE(НояВс1)+34,\"\"),IF(AND(YEAR(_xlfn.SINGLE(НояВс1)+41)=_xlfn.SINGLE(КалендарныйГод),MONTH(_xlfn.SINGLE(НояВс1)+41)=11),_xlfn.SINGLE(НояВс1)+41,\"\"))","v":""},{"$f":"IF(DAY(_xlfn.SINGLE(НояВс1))=1,IF(AND(YEAR(_xlfn.SINGLE(НояВс1)+35)=_xlfn.SINGLE(КалендарныйГод),MONTH(_xlfn.SINGLE(НояВс1)+35)=11),_xlfn.SINGLE(НояВс1)+35,\"\"),IF(AND(YEAR(_xlfn.SINGLE(НояВс1)+42)=_xlfn.SINGLE(КалендарныйГод),MONTH(_xlfn.SINGLE(НояВс1)+42)=11),_xlfn.SINGLE(НояВс1)+42,\"\"))","v":""},null,{"$f":"IF(DAY(_xlfn.SINGLE(ДекВс1))=1,IF(AND(YEAR(_xlfn.SINGLE(ДекВс1)+29)=_xlfn.SINGLE(КалендарныйГод),MONTH(_xlfn.SINGLE(ДекВс1)+29)=12),_xlfn.SINGLE(ДекВс1)+29,\"\"),IF(AND(YEAR(_xlfn.SINGLE(ДекВс1)+36)=_xlfn.SINGLE(КалендарныйГод),MONTH(_xlfn.SINGLE(ДекВс1)+36)=12),_xlfn.SINGLE(ДекВс1)+36,\"\"))","v":""},{"$f":"IF(DAY(_xlfn.SINGLE(ДекВс1))=1,IF(AND(YEAR(_xlfn.SINGLE(ДекВс1)+30)=_xlfn.SINGLE(КалендарныйГод),MONTH(_xlfn.SINGLE(ДекВс1)+30)=12),_xlfn.SINGLE(ДекВс1)+30,\"\"),IF(AND(YEAR(_xlfn.SINGLE(ДекВс1)+37)=_xlfn.SINGLE(КалендарныйГод),MONTH(_xlfn.SINGLE(ДекВс1)+37)=12),_xlfn.SINGLE(ДекВс1)+37,\"\"))","v":""},{"$f":"IF(DAY(_xlfn.SINGLE(ДекВс1))=1,IF(AND(YEAR(_xlfn.SINGLE(ДекВс1)+31)=_xlfn.SINGLE(КалендарныйГод),MONTH(_xlfn.SINGLE(ДекВс1)+31)=12),_xlfn.SINGLE(ДекВс1)+31,\"\"),IF(AND(YEAR(_xlfn.SINGLE(ДекВс1)+38)=_xlfn.SINGLE(КалендарныйГод),MONTH(_xlfn.SINGLE(ДекВс1)+38)=12),_xlfn.SINGLE(ДекВс1)+38,\"\"))","v":""},{"$f":"IF(DAY(_xlfn.SINGLE(ДекВс1))=1,IF(AND(YEAR(_xlfn.SINGLE(ДекВс1)+32)=_xlfn.SINGLE(КалендарныйГод),MONTH(_xlfn.SINGLE(ДекВс1)+32)=12),_xlfn.SINGLE(ДекВс1)+32,\"\"),IF(AND(YEAR(_xlfn.SINGLE(ДекВс1)+39)=_xlfn.SINGLE(КалендарныйГод),MONTH(_xlfn.SINGLE(ДекВс1)+39)=12),_xlfn.SINGLE(ДекВс1)+39,\"\"))","v":""},{"$f":"IF(DAY(_xlfn.SINGLE(ДекВс1))=1,IF(AND(YEAR(_xlfn.SINGLE(ДекВс1)+33)=_xlfn.SINGLE(КалендарныйГод),MONTH(_xlfn.SINGLE(ДекВс1)+33)=12),_xlfn.SINGLE(ДекВс1)+33,\"\"),IF(AND(YEAR(_xlfn.SINGLE(ДекВс1)+40)=_xlfn.SINGLE(КалендарныйГод),MONTH(_xlfn.SINGLE(ДекВс1)+40)=12),_xlfn.SINGLE(ДекВс1)+40,\"\"))","v":""},{"$f":"IF(DAY(_xlfn.SINGLE(ДекВс1))=1,IF(AND(YEAR(_xlfn.SINGLE(ДекВс1)+34)=_xlfn.SINGLE(КалендарныйГод),MONTH(_xlfn.SINGLE(ДекВс1)+34)=12),_xlfn.SINGLE(ДекВс1)+34,\"\"),IF(AND(YEAR(_xlfn.SINGLE(ДекВс1)+41)=_xlfn.SINGLE(КалендарныйГод),MONTH(_xlfn.SINGLE(ДекВс1)+41)=12),_xlfn.SINGLE(ДекВс1)+41,\"\"))","v":""},{"$f":"IF(DAY(_xlfn.SINGLE(ДекВс1))=1,IF(AND(YEAR(_xlfn.SINGLE(ДекВс1)+35)=_xlfn.SINGLE(КалендарныйГод),MONTH(_xlfn.SINGLE(ДекВс1)+35)=12),_xlfn.SINGLE(ДекВс1)+35,\"\"),IF(AND(YEAR(_xlfn.SINGLE(ДекВс1)+42)=_xlfn.SINGLE(КалендарныйГод),MONTH(_xlfn.SINGLE(ДекВс1)+42)=12),_xlfn.SINGLE(ДекВс1)+42,\"\"))","v":""}]

{"sheet":"Структура смен","index":1,"n_rows":12,"n_cols":5,"rows_kept":12,"merged":[[8,2,8,3],[10,2,10,3],[11,2,11,3]]}
[null,"Структура смен",null,null," "]
[]
[null,"Расписание смен","Код","Время смены"]
[null,"Дневная смена","Д","6:00 – 14:00"]
[null,"Ночная смена","Н","22:00 – 6:00"]
[null,"Настраиваемая смена","Нс"]
[null,"Выходной","x"]
[]
[null,"Дата начала структуры",{"$f":"DATE(КалендарныйГод,1,1)","v":"2021-01-01"}]
[]
[null,"Структура смен","ДДДДxxННННxxДДДxНННxxxДДxННx"]
[null,null,"Задайте структуру смены с помощью букв в столбце кода в приведенной выше таблице."]